Entity,Vendor Name,Expenditure Account ,Document Number,Clearing Date,Amount (�),Merchant Category
RAIL FOR LONDON LIMITED,BOMBARDIER TRANSPORT UK,Civil Engineering Construction Works,1020\5109400105,28-Sep-18,"42,558,662.00",
TRANSPORT TRADING LTD,RAIL SETTLEMENT PLAN,Rail Settlement Plan - PAYG Creditor,1004\1901661377,28-Sep-18,"37,432,189.66",
LONDON BUS SERVICES LTD,METROLINE TRAVEL LIMITED,Bus Contract Payments,1006\1900041305,28-Sep-18,"15,745,838.48",
LONDON UNDERGROUND LTD,FERROVIAL LAING O ROURKE JV,Civil Engineering Construction Works,1005\5109399542,10-Oct-18,"14,801,693.79",
RAIL FOR LONDON LIMITED,ARRIVA RAIL LONDON,Franchise/Concession Fixed Fee,1020\5109407812,10-Oct-18,"14,681,670.00",
RAIL FOR LONDON LIMITED,MTR CORPORATION (CROSSRAIL) LTD,Franchise/Concession Fixed Fee,1020\5109404863,10-Oct-18,"14,453,030.98",
LONDON BUS SERVICES LTD,ARRIVA LONDON NORTH LTD,Bus Contract Payments,1006\1900041294,28-Sep-18,"14,024,261.57",
LUL NOMINEE SSL LIMITED,THALES RAIL SIGNALLING SOLUTIONS,Civil Engineering Construction Works,1031\5109400125,08-Oct-18,"12,772,828.82",
LONDON BUS SERVICES LTD,LONDON GENERAL TRANSPORT SERV,Bus Contract Payments,1006\1900041301,28-Sep-18,"10,263,332.19",
RAIL FOR LONDON LIMITED,BOMBARDIER TRANSPORT UK,Vehicle Purchases,1020\5109400109,28-Sep-18,"10,079,020.48",
LONDON BUS SERVICES LTD,LONDON UNITED BUSWAYS,Bus Contract Payments,1006\1900041303,28-Sep-18,"9,830,849.66",
LONDON BUS SERVICES LTD,LONDON CENTRAL BUS COMPANY LTD,Bus Contract Payments,1006\1900041300,28-Sep-18,"9,695,972.95",
LONDON BUS SERVICES LTD,STAGECOACH,Bus Contract Payments,1006\1900041299,28-Sep-18,"8,422,488.03",
RAIL FOR LONDON LIMITED,BOMBARDIER TRANSPORT UK,Vehicle Purchases,1020\5109400110,28-Sep-18,"8,189,204.14",
SURFACE TRANSPORT CORP,METROPOLITAN POLICE,MPS Employment Costs SM,1002\5109381362,19-Sep-18,"7,118,735.83",
LONDON BUS SERVICES LTD,STAGECOACH,Bus Contract Payments,1006\1900041308,28-Sep-18,"6,430,411.87",
LONDON BUS SERVICES LTD,ARRIVA LONDON SOUTH LIMITED,Bus Contract Payments,1006\1900041295,28-Sep-18,"6,417,306.52",
LONDON BUS SERVICES LTD,ABELLIO LONDON LTD,Bus Contract Payments,1006\1900041292,28-Sep-18,"6,398,201.26",
DOCKLANDS LIGHT RAILWAY,KEOLIS AMEY DOCKLANDS LIMITED,Franchise/Concession Fixed Fee,1012\5109403262,08-Oct-18,"6,339,397.08",
TRANSPORT TRADING LTD,CUBIC TRANSPORTATION SYSTEMS LTD,Cubic Oyster Contract Costs,1004\5109393308,26-Sep-18,"5,942,378.32",
LONDON UNDERGROUND LTD,DRAGADOS S.A.,Civil Engineering Construction Works,1005\5109396636,10-Oct-18,"5,496,931.55",
LONDON BUS SERVICES LTD,METROLINE WEST LIMITED,Bus Contract Payments,1006\1900041306,28-Sep-18,"5,228,480.24",
LONDON BUS SERVICES LTD,METROLINE TRAVEL LIMITED,Bus Contract Payments,1006\1900041424,12-Oct-18,"5,151,872.42",
LONDON BUS SERVICES LTD,TOWER TRANSIT OPERATIONS LTD,Bus Contract Payments,1006\1900041310,28-Sep-18,"5,002,096.75",
LONDON BUS SERVICES LTD,ARRIVA LONDON NORTH LTD,Bus Contract Payments,1006\1900041413,12-Oct-18,"4,618,601.75",
RAIL FOR LONDON LIMITED,BOMBARDIER TRANSPORT UK,Vehicle Purchases,1020\5109400108,28-Sep-18,"4,500,000.00",
TFL CORPORATE,MARSH SERVICES LTD,General Insurance,1001\5109391073,01-Oct-18,"4,015,200.00",
LONDON UNDERGROUND LTD,DEPT OF COMMUNITIES AND LOCAL GOVER,Rates - Central Listed,1005\1900202629,17-Sep-18,"3,944,000.00",
LONDON UNDERGROUND LTD,BRITISH TRANSPORT POLICE,MPS Employment Costs SM,1005\5109364297,01-Oct-18,"3,648,054.00",
LONDON UNDERGROUND LTD,BRITISH TRANSPORT POLICE,MPS Employment Costs SM,1005\5109404988,10-Oct-18,"3,648,054.00",
LONDON BUS SERVICES LTD,LONDON GENERAL TRANSPORT SERV,Bus Contract Payments,1006\1900041420,12-Oct-18,"3,360,765.22",
LONDON UNDERGROUND LTD,ALSTOM NL SERVICE PROVISION LTD,Fleet Tsssa Contract,1005\5109388508,26-Sep-18,"3,222,376.18",
DOCKLANDS LIGHT RAILWAY,CGL RAIL,Franchise/Concession Fixed Fee,1012\5109402844,03-Oct-18,"3,209,062.00",
LONDON BUS SERVICES LTD,LONDON CENTRAL BUS COMPANY LTD,Bus Contract Payments,1006\1900041419,12-Oct-18,"3,186,415.19",
LONDON BUS SERVICES LTD,LONDON UNITED BUSWAYS,Bus Contract Payments,1006\1900041422,12-Oct-18,"3,184,563.26",
LUL NOMINEE SSL LIMITED,BALFOUR BEATTY RAIL LTD,Track General Maintenance,1031\5109391354,17-Sep-18,"3,076,491.14",
LONDON BUS SERVICES LTD,METROBUS LIMITED,Bus Contract Payments,1006\1900041304,28-Sep-18,"3,031,610.42",
RAIL FOR LONDON LIMITED,QW RAIL LEASING LIMITED,Vehicle Operating Leases,1020\5109407462,10-Oct-18,"2,997,708.21",
RAIL FOR LONDON LIMITED,BOMBARDIER TRANSPORT UK,Vehicle Purchases,1020\5109400111,28-Sep-18,"2,834,724.51",
LONDON BUS SERVICES LTD,BLUE TRIANGLE BUSES LTD,Bus Contract Payments,1006\1900041296,28-Sep-18,"2,779,107.46",
LONDON BUS SERVICES LTD,STAGECOACH,Bus Contract Payments,1006\1900041418,12-Oct-18,"2,739,446.25",
TRANSPORT TRADING LTD,CUBIC TRANSPORTATION SYSTEMS LTD,Cubic Oyster Contract Costs,1004\5109393301,26-Sep-18,"2,704,531.13",
LONDON BUS SERVICES LTD,ABELLIO LONDON LTD,Bus Contract Payments,1006\1900041293,28-Sep-18,"2,642,730.66",
LONDON UNDERGROUND LTD,BRITISH TRANSPORT POLICE,MPS Employment Costs SM,1005\5109289887,01-Oct-18,"2,481,952.90",
LONDON UNDERGROUND LTD,GBM SERVICES LTD,Operational Cleaning,1005\5109405672,10-Oct-18,"2,477,812.59",
LONDON BUS SERVICES LTD,LONDON SOVEREIGN LTD,Bus Contract Payments,1006\1900041302,28-Sep-18,"2,413,913.34",
LUL NOMINEE SSL LIMITED,THALES GROUND TRANSPORTATION SYSTEM,Civil Engineering Construction Works,1031\5109400909,12-Oct-18,"2,397,600.64",
LONDON UNDERGROUND LTD,ALSTOM NL SERVICE PROVISION LTD,Fleet Tsssa Contract,1005\5109388555,26-Sep-18,"2,327,859.39",
LUL NOMINEE SSL LIMITED,BALFOUR BEATTY RAIL LTD,Track General Maintenance,1031\5109407398,10-Oct-18,"2,228,334.99",
LONDON BUS SERVICES LTD,ARRIVA LONDON SOUTH LIMITED,Bus Contract Payments,1006\1900041414,12-Oct-18,"2,115,619.00",
LONDON BUS SERVICES LTD,STAGECOACH,Bus Contract Payments,1006\1900041427,12-Oct-18,"2,096,651.34",
TRANSPORT TRADING LTD,RAIL SETTLEMENT PLAN,Rail Settlement Plan - PAYG Creditor,1004\1901661378,28-Sep-18,"2,073,333.94",
LONDON BUS SERVICES LTD,ABELLIO LONDON LTD,Bus Contract Payments,1006\1900041411,12-Oct-18,"2,046,446.89",
SURFACE TRANSPORT CORP,ROAD MANAGEMENT SERVICES A13 PLC,A13 PFI Service Costs,1002\5109394928,19-Sep-18,"1,852,661.06",
LONDON BUS SERVICES LTD,METROLINE WEST LIMITED,Bus Contract Payments,1006\1900041425,12-Oct-18,"1,707,040.71",
LONDON BUS SERVICES LTD,CT PLUS LIMITED,Bus Contract Payments,1006\1900041297,28-Sep-18,"1,645,189.01",
RAIL FOR LONDON LIMITED,QW RAIL LEASING LIMITED,Vehicle Operating Leases,1020\5109407464,10-Oct-18,"1,622,671.54",
LONDON BUS SERVICES LTD,TOWER TRANSIT OPERATIONS LTD,Bus Contract Payments,1006\1900041429,12-Oct-18,"1,598,774.23",
TRANSPORT TRADING LTD,TIDEWAY INVESTMENT MANAGEMENT LTD,Commercial Property Rent,1004\1901661215,26-Sep-18,"1,450,335.00",
LONDON UNDERGROUND LTD,BRITISH TRANSPORT POLICE,MPS Employment Costs SM,1005\5109380339,01-Oct-18,"1,390,905.03",
SURFACE TRANSPORT CORP,RINGWAY JACOBS LIMITED,Road Maintenance,1002\5109402766,03-Oct-18,"1,294,945.41",
RAIL FOR LONDON LIMITED,TRAM OPERATIONS LIMITED,Franchise/Concession Fixed Fee,1020\5109384308,19-Sep-18,"1,223,312.04",
TFL CORPORATE,AXA PPP HEALTHCARE,General Insurance,1001\5109405380,08-Oct-18,"1,197,076.40",
RAIL FOR LONDON LIMITED,BOMBARDIER TRANSPORT UK,Vehicle Operating Leases,1020\5109399153,26-Sep-18,"1,183,448.45",
SURFACE TRANSPORT CORP,LONDON BOROUGH OF NEWHAM,Borough Services - Claim Against Pr Yr Accrual,1002\1900056015,08-Oct-18,"1,122,204.05",
LONDON BUS SERVICES LTD,HR RICHMOND LTD T/A EPSOM BUSES,Bus Contract Payments,1006\1900041307,28-Sep-18,"1,087,848.61",
SURFACE TRANSPORT CORP,ROAD MANAGEMENT SERVICES A13 PLC,A13 PFI Service Costs,1002\5109394930,19-Sep-18,"1,070,000.00",
RAIL FOR LONDON LIMITED,VINCI CONSTRUCTION UK LTD,Civil Engineering Construction Works,1020\5109388316,19-Sep-18,"1,029,706.85",
SURFACE TRANSPORT CORP,CONWAY AECOM LTD,Road Maintenance,1002\5109402757,03-Oct-18,"1,028,038.24",
LONDON BUS SERVICES LTD,METROBUS LIMITED,Bus Contract Payments,1006\1900041423,12-Oct-18,"1,012,417.68",
SURFACE TRANSPORT CORP,CVU JOINT VENTURE,Contracted Services - Roads,1002\5109397023,01-Oct-18,"996,609.49",
RAIL FOR LONDON LIMITED,BOMBARDIER TRANSPORT UK,Vehicle Repairs & Maintenance,1020\5109403754,08-Oct-18,"979,868.70",
LONDON UNDERGROUND LTD,ALSTOM NL SERVICE PROVISION LTD,Fleet Tsssa Contract,1005\5109388506,26-Sep-18,"972,677.77",
LONDON BUS SERVICES LTD,BLUE TRIANGLE BUSES LTD,Bus Contract Payments,1006\1900041415,12-Oct-18,"942,144.02",
RAIL FOR LONDON LIMITED,CLESHAR CONTRACT SERVICES LTD,Maintenance of Plant & Equipment,1020\5109391730,17-Sep-18,"877,222.98",
LONDON BUS SERVICES LTD,ABELLIO LONDON LTD,Bus Contract Payments,1006\1900041412,12-Oct-18,"851,293.97",
LONDON BUS SERVICES LTD,TAIT EUROPE LTD,Radio Systems Equipment & Maintenance,1006\5109386639,26-Sep-18,"831,903.84",
LONDON BUS SERVICES LTD,DOCKLANDS MINIBUS LTD,Bus Contract Payments,1006\1900041298,28-Sep-18,"829,941.44",
SURFACE TRANSPORT CORP,LONDON COUNCILS LTD,Taxicard Funding,1002\1900056369,17-Sep-18,"821,174.95",
CYCLE HIRE SCHEME,SERCO LTD,Concession Maintenance Charge,1016\5109383858,26-Sep-18,"820,331.51",
LONDON UNDERGROUND LTD,SIEMENS MOBILITY LIMITED,Traction Current,1005\5109380282,24-Sep-18,"812,274.15",
SURFACE TRANSPORT CORP,CARRAIG INVESTMENTS S.A.R.L,Sundry Creditors,1002\1900056373,19-Sep-18,"806,190.00",
LUL NOMINEE SSL LIMITED,ROAD MANAGEMENT SERVICES A13 PLC,Sundry Debtors,1031\1700001652,09-Oct-18,"800,000.00",
TRANSPORT TRADING LTD,CBRE,Commercial Property Rent,1004\1901661173,26-Sep-18,"800,000.00",
LONDON UNDERGROUND LTD,TELENT TECHNOLOGY SERVICES LTD,Equipment Repairs & Maintenance,1005\5109384362,17-Sep-18,"785,989.48",
DOCKLANDS LIGHT RAILWAY,PITTVILLE LEASING LTD,Civil Engineering Construction Works,1012\5109404896,10-Oct-18,"776,850.35",
SURFACE TRANSPORT CORP,ENTERPRISEMOUCHEL LIMITED,Road Maintenance,1002\5109402736,03-Oct-18,"768,100.79",
SURFACE TRANSPORT CORP,HOCHTIEF UK CONSTRUCTION LTD,Contracted Services - Highway Bridges,1002\5109393480,03-Oct-18,"753,553.28",
LONDON BUS SERVICES LTD,TRAPEZE PTI LTD,Maintenance of Plant & Equipment,1006\5109391710,01-Oct-18,"749,537.25",
LONDON UNDERGROUND LTD,GBM SERVICES LTD,Operational Cleaning,1005\5109405685,08-Oct-18,"723,993.45",
SURFACE TRANSPORT CORP,LONDON BOROUGH OF REDBRIDGE,Borough Services - Claim Against Pr Yr Accrual,1002\1900056307,24-Sep-18,"706,344.45",
LONDON BUS SERVICES LTD,LONDON SOVEREIGN LTD,Bus Contract Payments,1006\1900041421,12-Oct-18,"705,746.14",
TFL CORPORATE,MARSH SERVICES LTD,General Insurance,1001\5109391089,17-Sep-18,"688,271.36",
LONDON UNDERGROUND LTD,MORSON HUMAN RESOURCES LTD,Maintenance of Plant & Equipment,1005\5109395613,24-Sep-18,"662,171.85",
TRANSPORT TRADING LTD,COLLINS RIVER ENTERPRISES LTD,Gross Sales Clearance,1004\800036860,17-Sep-18,"660,187.00",
TRANSPORT TRADING LTD,COLLINS RIVER ENTERPRISES LTD,Gross Sales Clearance,1004\800037181,17-Sep-18,"645,277.00",
TFL CORPORATE,NETWORK RAIL,Planning & Development Consultancy,1001\5109390494,17-Sep-18,"637,118.90",
TFL CORPORATE,MARSH SERVICES LTD,General Insurance,1001\5109391096,17-Sep-18,"627,200.00",
TRANSPORT TRADING LTD,COLLINS RIVER ENTERPRISES LTD,Gross Sales Clearance,1004\800036859,17-Sep-18,"618,359.00",
LONDON RIVER SERVICES LTD,BRIGGS MARINE CONTRACTORS LIMITED,Operator Costs,1007\5109399905,08-Oct-18,"613,930.00",
LUL NOMINEE BCV LIMITED,GBM SERVICES LTD,Operational Cleaning,1033\5109386912,17-Sep-18,"612,117.49",
LUL NOMINEE BCV LIMITED,GBM SERVICES LTD,Operational Cleaning,1033\5109405660,10-Oct-18,"612,117.49",
TRANSPORT TRADING LTD,COLLINS RIVER ENTERPRISES LTD,Gross Sales Clearance,1004\800037180,17-Sep-18,"606,647.00",
RAIL FOR LONDON LIMITED,HOCHTIEF UK CONSTRUCTION LTD,Civil Engineering Construction Works,1020\5109405400,10-Oct-18,"605,159.08",
LONDON BUS SERVICES LTD,TOWER TRANSIT OPERATIONS LTD,Purchases from TTL Properties Limited,1006\5109386802,17-Sep-18,"589,579.69",
TRANSPORT TRADING LTD,SAVILLS COMMERCIAL LTD,Commercial Property Rent,1004\1901661216,26-Sep-18,"587,500.00",
SURFACE TRANSPORT CORP,RINGWAY JACOBS LIMITED,Maintenance of Plant & Equipment,1002\5109401499,03-Oct-18,"587,136.55",
TRANSPORT TRADING LTD,LONDON BOROUGH OF SOUTHWARK,Rates,1004\1901661425,27-Sep-18,"580,203.00",
LONDON UNDERGROUND LTD,HOCHTIEF UK CONSTRUCTION LTD,MR Construction Costs,1005\5109399798,08-Oct-18,"568,413.03",
DOCKLANDS LIGHT RAILWAY,EDF ENERGY,Electricity,1012\5109388567,08-Oct-18,"564,409.17",
LONDON UNDERGROUND LTD,EDF ENERGY,Electricity,1005\1900205248,19-Sep-18,"561,211.80",
TRANSPORT TRADING LTD,COLLINS RIVER ENTERPRISES LTD,Gross Sales Clearance,1004\800037365,24-Sep-18,"542,988.00",
LONDON UNDERGROUND LTD,EDF ENERGY,Electricity,1005\1900205303,24-Sep-18,"538,169.28",
LUL NOMINEE SSL LIMITED,SSE CONTRACTING,Civil Engineering Construction Works,1031\5109399343,01-Oct-18,"538,119.21",
LUL NOMINEE BCV LIMITED,LANES GROUP PLC,Building Maintenance & Repairs,1033\5109390387,08-Oct-18,"531,837.03",
SURFACE TRANSPORT CORP,RINGWAY JACOBS LIMITED,Contracted Services - Roads,1002\5109397001,26-Sep-18,"531,770.44",
LONDON UNDERGROUND LTD,CLESHAR CONTRACT SERVICES LTD,Maintenance of Plant & Equipment,1005\5109395478,24-Sep-18,"531,718.10",
SURFACE TRANSPORT CORP,AA DRIVETECH,Contracted Services - Roads,1002\5109380984,17-Sep-18,"526,417.36",
LONDON RIVER SERVICES LTD,BRIGGS MARINE CONTRACTORS LIMITED,Building Maintenance & Repairs,1007\5109395510,19-Sep-18,"517,903.40",
SURFACE TRANSPORT CORP,ENTERPRISEMOUCHEL LIMITED,Contracted Services - Roads,1002\5109397038,26-Sep-18,"516,471.25",
LONDON BUS SERVICES LTD,SULLIVAN BUS & COACH LTD,Bus Contract Payments,1006\1900041309,28-Sep-18,"510,844.09",
RAIL FOR LONDON LIMITED,J MURPHY & SONS LTD,Civil Engineering Construction Works,1020\5109404232,10-Oct-18,"505,513.53",
LUL NOMINEE SSL LIMITED,GBM SERVICES LTD,Operational Cleaning,1031\5109405678,10-Oct-18,"505,190.15",
LONDON BUS SERVICES LTD,CT PLUS LIMITED,Bus Contract Payments,1006\1900041416,12-Oct-18,"479,398.37",
RAIL FOR LONDON LIMITED,BRITISH TRANSPORT POLICE,Security Services (Guards),1020\5109380749,17-Sep-18,"473,329.21",
TRANSPORT TRADING LTD,INTERSERVE,Security Services (Guards),1004\5109388971,03-Oct-18,"472,329.72",
LUL NOMINEE SSL LIMITED,KIROW ARDELT GMBH,Equipment Repairs & Maintenance,1031\5109394424,27-Sep-18,"471,672.63",
SURFACE TRANSPORT CORP,WSP UK LTD,Planning & Development Consultancy,1002\5109395438,01-Oct-18,"465,216.29",
RAIL FOR LONDON LIMITED,HEATHROW AIRPORT LTD,Franchise/Concession Fixed Fee,1020\5109390266,19-Sep-18,"460,616.00",
TRANSPORT TRADING LTD,COLLINS RIVER ENTERPRISES LTD,Gross Sales Clearance,1004\800037364,24-Sep-18,"450,940.00",
LUL NOMINEE BCV LIMITED,TELENT TECHNOLOGY SERVICES LTD,Equipment Repairs & Maintenance,1033\5109384367,17-Sep-18,"448,861.72",
LUL NOMINEE SSL LIMITED,INTERSERVE,Security Services (Guards),1031\5109388975,03-Oct-18,"445,183.31",
LUL NOMINEE BCV LIMITED,TELENT TECHNOLOGY SERVICES LTD,Equipment Repairs & Maintenance,1033\5109405369,10-Oct-18,"444,477.69",
RFL (INFRASTRUCTURE) LTD,GB RAILFREIGHT LTD,Equipment Repairs & Maintenance,1025\5109385220,26-Sep-18,"436,396.89",
RAIL FOR LONDON LIMITED,BUCKINGHAM GROUP CONTRACTING LTD,Civil Engineering Construction Works,1020\5109396937,25-Sep-18,"426,212.49",
LONDON UNDERGROUND LTD,SKANSKA CONTRUCTIONS UK LTD,Civil Engineering Construction Works,1005\5109385343,17-Sep-18,"415,670.32",
TRANSPORT TRADING LTD,CBS OUTDOOR LIMITED,Purchase of Associates Loan Notes (Activity),1004\5109391122,26-Sep-18,"413,671.64",
LONDON UNDERGROUND LTD,CITYLINK TELECOMMUNICATIONS LTD,PFI Service Costs - Power,1005\5109393219,19-Sep-18,"412,463.04",
LUL NOMINEE SSL LIMITED,GIFFEN GROUP LTD,Civil Engineering Construction Works,1031\5109399617,28-Sep-18,"411,424.04",
SURFACE TRANSPORT CORP,GOWLING WLG,Purchase of Land & Buildings,1002\1900056487,01-Oct-18,"401,300.00",
RAIL FOR LONDON LIMITED,MORGAN SINDALL  PLC,Civil Engineering Construction Works,1020\5109400733,10-Oct-18,"400,672.38",
SURFACE TRANSPORT CORP,HOCHTIEF UK CONSTRUCTION LTD,Contracted Services - Roads,1002\5109391825,01-Oct-18,"400,010.30",
SURFACE TRANSPORT CORP,WSP UK LTD,Planning & Development Consultancy,1002\5109392205,19-Sep-18,"399,674.40",
SURFACE TRANSPORT CORP,LONDON BOROUGH OF HILLINGDON,Borough Services - Claim Against Pr Yr Accrual,1002\1900056020,24-Sep-18,"396,846.75",
LONDON UNDERGROUND LTD,MORSON HUMAN RESOURCES LTD,Track General Maintenance,1005\5109395616,24-Sep-18,"396,708.71",
SURFACE TRANSPORT CORP,CONWAY AECOM LTD,Contracted Services - Roads,1002\5109397052,26-Sep-18,"393,786.25",
LONDON UNDERGROUND LTD,CLESHAR CONTRACT SERVICES LTD,Track General Maintenance,1005\5109406847,10-Oct-18,"391,542.49",
LONDON UNDERGROUND LTD,TAYLOR WOODROW CONS BAM NUTTAL LTD,MR Construction Costs,1005\5109384316,24-Sep-18,"381,034.05",
LONDON UNDERGROUND LTD,MORGAN SINDALL  PLC,MR Construction Costs,1005\5109399331,10-Oct-18,"377,777.00",
LUL NOMINEE SSL LIMITED,CLESHAR CONTRACT SERVICES LTD,Civil Engineering Construction Works,1031\5109391703,17-Sep-18,"374,252.29",
LONDON BUS SERVICES LTD,DOCKLANDS MINIBUS LTD,Bus Contract Payments,1006\1900041417,12-Oct-18,"371,155.96",
TRANSPORT TRADING LTD,GBM SERVICES LTD,Office Cleaning,1004\5109405666,10-Oct-18,"364,030.42",
LUL NOMINEE SSL LIMITED,INTERSERVE,Track General Maintenance,1031\5109386829,26-Sep-18,"362,488.78",
LUL NOMINEE SSL LIMITED,VAE UK LIMITED,Track General Maintenance,1031\5109395615,10-Oct-18,"362,156.96",
LUL NOMINEE BCV LIMITED,INTERSERVE,Track General Maintenance,1033\5109386821,26-Sep-18,"361,405.89",
TRANSPORT TRADING LTD,ITC CONCEPTS LTD,Civil Engineering Construction Works,1004\5109393388,19-Sep-18,"360,346.60",
PUBLIC CARRIAGE OFFICE,NSL LIMITED,PCO Outsourced Services,1003\5109396039,26-Sep-18,"358,477.45",
LONDON UNDERGROUND LTD,KONE PLC,Escalators,1005\5109391839,17-Sep-18,"353,365.45",
DOCKLANDS LIGHT RAILWAY,MACE MACRO LTD,Professional Engineering Services,1012\5109393583,03-Oct-18,"349,565.24",
SURFACE TRANSPORT CORP,CAPITA BUSINESS SERVICES LTD,CCS Service Contract,1002\5109379808,17-Sep-18,"345,282.33",
TRANSPORT TRADING LTD,INSTANT OFFICES MANAGED LLP,Commercial Property Rent,1004\1901660631,24-Sep-18,"335,013.00",
LONDON UNDERGROUND LTD,SERVICES SUPPORT (BTP) LTD,BTP PFI Service Costs,1005\5109394947,26-Sep-18,"334,196.51",
TFL CORPORATE,MARSH SERVICES LTD,General Insurance,1001\5109391093,17-Sep-18,"330,829.58",
SURFACE TRANSPORT CORP,LONDON BOROUGH OF HACKNEY,Borough Services,1002\1900056433,01-Oct-18,"328,703.84",
RAIL FOR LONDON LIMITED,BOMBARDIER TRANSPORT UK,Vehicle Repairs & Maintenance,1020\5109400113,28-Sep-18,"324,612.40",
LUL NOMINEE SSL LIMITED,ENGIE SERVICES LTD,Equipment Repairs & Maintenance,1031\5109388000,03-Oct-18,"324,478.69",
TFL CORPORATE,DELOITTE,Management & Support Consultancy,1001\5109393466,10-Oct-18,"321,477.50",
SURFACE TRANSPORT CORP,EDF ENERGY,Electricity,1002\5109391438,17-Sep-18,"319,602.28",
LONDON UNDERGROUND LTD,THALES GROUND TRANSPORTATION SYSTEM,Civil Engineering Construction Works,1005\5109400906,12-Oct-18,"310,372.63",
LONDON UNDERGROUND LTD,ENGIE SERVICES LTD,Equipment Repairs & Maintenance,1005\5109388398,03-Oct-18,"309,912.63",
TRANSPORT TRADING LTD,VINCI CONSTRUCTION UK LTD,Building Maintenance & Repairs,1004\5109401346,03-Oct-18,"309,014.98",
LUL NOMINEE SSL LIMITED,MORGAN SINDALL  PLC,Civil Engineering Construction Works,1031\5109401390,10-Oct-18,"307,839.40",
LONDON BUS SERVICES LTD,HR RICHMOND LTD T/A EPSOM BUSES,Bus Contract Payments,1006\1900041426,12-Oct-18,"306,634.86",
TRANSPORT TRADING LTD,CBS OUTDOOR LIMITED,Purchase of Associates Loan Notes (Activity),1004\5109391115,26-Sep-18,"306,044.77",
LONDON UNDERGROUND LTD,LANES GROUP PLC,Building Maintenance & Repairs,1005\5109390390,08-Oct-18,"303,272.20",
LUL NOMINEE SSL LIMITED,CLESHAR CONTRACT SERVICES LTD,Track General Maintenance,1031\5109395954,03-Oct-18,"298,451.49",
LONDON RIVER SERVICES LTD,BRIGGS MARINE CONTRACTORS LIMITED,Operator Costs,1007\5109380754,10-Oct-18,"297,503.12",
LONDON UNDERGROUND LTD,THALES GROUND TRANSPORTATION SYSTEM,Civil Engineering Construction Works,1005\5109400912,12-Oct-18,"296,387.43",
RAIL FOR LONDON LIMITED,MTR CORPORATION (CROSSRAIL) LTD,Management & Support Consultancy,1020\5109376154,19-Sep-18,"296,347.32",
LONDON UNDERGROUND LTD,KONE PLC,Escalators,1005\5109407688,10-Oct-18,"290,199.85",
LONDON RIVER SERVICES LTD,BRIGGS MARINE CONTRACTORS LIMITED,Building Maintenance & Repairs,1007\5109396047,21-Sep-18,"287,531.59",
LONDON UNDERGROUND LTD,CITYLINK TELECOMMUNICATIONS LTD,PFI Service Costs - Power,1005\5109393222,19-Sep-18,"281,220.67",
LONDON UNDERGROUND LTD,HERBERT SMITH LLP,Legal Fees,1005\5109390837,26-Sep-18,"277,943.85",
SURFACE TRANSPORT CORP,ATKINS LIMITED,Professional Engineering Services,1002\5109383871,24-Sep-18,"266,835.78",
SURFACE TRANSPORT CORP,SIEMENS,Cameras,1002\5109391397,08-Oct-18,"261,970.13",
TRANSPORT TRADING LTD,BAA BUSINESS SUPPORT CENTR LTD,Commercial Property Rent,1004\1901661179,27-Sep-18,"261,570.27",
LUL NOMINEE SSL LIMITED,LANES GROUP PLC,Building Maintenance & Repairs,1031\5109387911,26-Sep-18,"254,710.73",
DOCKLANDS LIGHT RAILWAY,THALES RAIL SIGNALLING SOLUTIONS,Civil Engineering Construction Works,1012\5109380686,17-Sep-18,"250,740.00",
SURFACE TRANSPORT CORP,MORGAN SINDALL  PLC,Contracted Services - Highway Bridges,1002\5109384840,26-Sep-18,"250,655.30",
TRANSPORT TRADING LTD,JOURNEYCALL LTD,Ticket & Pass Production,1004\5109363982,03-Oct-18,"249,721.97",
SURFACE TRANSPORT CORP,METROPOLITAN POLICE,MPS Employment Costs SM,1002\5109381373,19-Sep-18,"247,297.79",
TRANSPORT TRADING LTD,JOURNEYCALL LTD,Ticket & Pass Production,1004\5109383812,03-Oct-18,"246,199.12",
LONDON UNDERGROUND LTD,SKANSKA CONTRUCTIONS UK LTD,Civil Engineering Construction Works,1005\5109385341,17-Sep-18,"244,733.20",
LONDON UNDERGROUND LTD,AURORA LIFTS LTD,Escalators,1005\5109393330,08-Oct-18,"243,602.43",
VICTORIA COACH STATN LTD,NATIONAL EXPRESS LTD,VCS Repayments & Commission,1008\1900004254,17-Sep-18,"243,463.61",
LONDON UNDERGROUND LTD,JACOBS U.K LIMITED,Planning & Development Consultancy,1005\5109376986,17-Sep-18,"241,264.98",
LONDON UNDERGROUND LTD,JACOBS U.K LIMITED,Planning & Development Consultancy,1005\5109391994,17-Sep-18,"241,264.98",
TRANSPORT TRADING LTD,JOURNEYCALL LTD,Ticket & Pass Production,1004\5109406922,10-Oct-18,"240,214.14",
TRANSPORT TRADING LTD,EDF ENERGY,Electricity,1004\1901661017,24-Sep-18,"238,290.21",
LUL NOMINEE SSL LIMITED,INTERSERVE,Security Services (Guards),1031\5109388956,03-Oct-18,"237,227.33",
TRANSPORT TRADING LTD,NOVACROFT DIRECT LTD,Ticket & Pass Production,1004\5109398564,01-Oct-18,"235,462.69",
LONDON UNDERGROUND LTD,AURORA LIFTS LTD,Lift Maintenance,1005\5109371937,08-Oct-18,"231,811.50",
TFL CORPORATE,GALLAGHER BASSETT INT LTD,Claim Settlements,1001\1900061912,26-Sep-18,"231,403.47",
SURFACE TRANSPORT CORP,CAPITA BUSINESS SERVICES LTD,CCS Service Contract,1002\5109379381,17-Sep-18,"228,722.73",
LUL NOMINEE BCV LIMITED,BOMBARDIER TRANSPORT UK,Fleet,1033\5109393469,10-Oct-18,"228,658.43",
TRANSPORT TRADING LTD,LONDON BOROUGH OF GREENWICH,Rates,1004\1901661499,27-Sep-18,"227,772.00",
TFL CORPORATE,TURNER & TOWNSEND LLP,Management & Support Consultancy,1001\5109386934,26-Sep-18,"227,316.47",
LUL NOMINEE SSL LIMITED,GIFFEN GROUP LTD,Civil Engineering Construction Works,1031\5109395758,24-Sep-18,"226,713.42",
SURFACE TRANSPORT CORP,ROAD MANAGEMENT SERVICES A13 PLC,A13 PFI Service Costs,1002\5109394927,19-Sep-18,"225,312.39",
LUL NOMINEE SSL LIMITED,BOMBARDIER TRANSPORT UK,Fleet Tsssa Contract,1031\5109399747,10-Oct-18,"224,745.05",
LUL NOMINEE SSL LIMITED,KN NETWORK SERVICES LTD,Civil Engineering Construction Works,1031\5109373055,26-Sep-18,"224,595.66",
LUL NOMINEE SSL LIMITED,KN NETWORK SERVICES LTD,Civil Engineering Construction Works,1031\5109373027,26-Sep-18,"221,398.89",
LONDON UNDERGROUND LTD,ONE TRANSPORT LIMITED,Travel to/from work (Unsocial Hours),1005\5109391912,17-Sep-18,"221,030.90",
LONDON UNDERGROUND LTD,HERBERT SMITH LLP,Legal Fees,1005\5109402738,03-Oct-18,"218,686.58",
LONDON UNDERGROUND LTD,HERBERT SMITH LLP,Legal Fees,1005\5109402741,03-Oct-18,"213,954.59",
TFL CORPORATE,MARSH SERVICES LTD,General Insurance,1001\5109391100,01-Oct-18,"212,800.00",
SURFACE TRANSPORT CORP,SIEMENS,Maintenance of Plant & Equipment,1002\5109391737,24-Sep-18,"211,948.83",
TRANSPORT TRADING LTD,CBS OUTDOOR LIMITED,Purchase of Associates Loan Notes (Activity),1004\5109391164,26-Sep-18,"210,575.97",
LONDON UNDERGROUND LTD,LANES GROUP PLC,Civil Engineering Construction Works,1005\5109402717,10-Oct-18,"210,393.75",
LONDON UNDERGROUND LTD,JACOBS U.K LIMITED,Planning & Development Consultancy,1005\5109392857,10-Oct-18,"208,976.27",
SURFACE TRANSPORT CORP,TELENT TECHNOLOGY SERVICES LTD,Road Maintenance,1002\5109392125,24-Sep-18,"207,446.30",
TFL CORPORATE,OPEN TEXT UK LTD,Software Maintenance,1001\5109385158,01-Oct-18,"206,708.67",
TFL CORPORATE,GALLAGHER BASSETT INT LTD,Claim Settlements,1001\1900062039,26-Sep-18,"203,074.00",
RAIL FOR LONDON LIMITED,BRITISH TRANSPORT POLICE,Security Services (Guards),1020\5109380750,17-Sep-18,"202,717.10",
TFL CORPORATE,MARSH SERVICES LTD,General Insurance,1001\5109391082,17-Sep-18,"202,608.00",
SURFACE TRANSPORT CORP,TELENT TECHNOLOGY SERVICES LTD,Maintenance of Plant & Equipment,1002\5109400236,10-Oct-18,"202,090.37",
LONDON UNDERGROUND LTD,LYNCH I.E.I. LIMITED,MR Construction Costs,1005\5109395861,03-Oct-18,"202,035.00",
LUL NOMINEE SSL LIMITED,CLESHAR CONTRACT SERVICES LTD,Civil Engineering Construction Works,1031\5109388323,01-Oct-18,"201,610.04",
RAIL FOR LONDON LIMITED,BOMBARDIER TRANSPORT UK,Vehicle Purchases,1020\5109400115,28-Sep-18,"200,000.00",
LONDON UNDERGROUND LTD,AURORA LIFTS LTD,Escalators,1005\5109393395,08-Oct-18,"199,645.54",
LONDON UNDERGROUND LTD,COSTAIN LTD,Civil Engineering Construction Works,1005\5109396099,10-Oct-18,"199,134.37",
TFL CORPORATE,ETHOS COMMUNICATIONS SOLUTIONS PLC,Computer Hardware,1001\5109408716,12-Oct-18,"197,600.00",
SURFACE TRANSPORT CORP,SIEMENS,Cameras,1002\5109391406,08-Oct-18,"197,300.18",
LONDON UNDERGROUND LTD,KONE PLC,Escalators,1005\5109386896,19-Sep-18,"196,499.78",
LONDON UNDERGROUND LTD,HERBERT SMITH LLP,Legal Fees,1005\5109402737,03-Oct-18,"196,258.94",
LUL NOMINEE SSL LIMITED,KN NETWORK SERVICES LTD,Civil Engineering Construction Works,1031\5109376943,19-Sep-18,"194,719.15",
LUL NOMINEE SSL LIMITED,GIFFEN GROUP LTD,Civil Engineering Construction Works,1031\5109399558,27-Sep-18,"193,808.55",
LONDON BUS SERVICES LTD,EDF ENERGY,Building Maintenance & Repairs,1006\5109376006,19-Sep-18,"190,930.82",
TRANSPORT TRADING LTD,CAPITAL & COUNTIES CG LIMITED,Commercial Property Rent,1004\1901661220,26-Sep-18,"190,625.00",
LONDON UNDERGROUND LTD,AURORA LIFTS LTD,Escalators,1005\5109371953,08-Oct-18,"189,953.97",
TRANSPORT TRADING LTD,CBS OUTDOOR LIMITED,Purchase of Associates Loan Notes (Activity),1004\5109391119,26-Sep-18,"189,687.22",
LUL NOMINEE SSL LIMITED,MORSON HUMAN RESOURCES LTD,Track General Maintenance,1031\5109390398,17-Sep-18,"189,457.42",
LONDON BUS SERVICES LTD,ARRIVA LONDON NORTH LTD,Vehicle Repairs & Maintenance,1006\5109367378,19-Sep-18,"187,044.00",
LUL NOMINEE SSL LIMITED,KN NETWORK SERVICES LTD,Civil Engineering Construction Works,1031\5109396265,10-Oct-18,"183,873.52",
LONDON UNDERGROUND LTD,KONE PLC,Escalators,1005\5109386878,19-Sep-18,"181,572.40",
LONDON UNDERGROUND LTD,EDF ENERGY,Electricity,1005\1900205598,10-Oct-18,"179,382.73",
SURFACE TRANSPORT CORP,CSTS LTD,Maintenance of Plant & Equipment,1002\5109398748,03-Oct-18,"178,766.27",
SURFACE TRANSPORT CORP,CSTS LTD,Maintenance of Plant & Equipment,1002\5109396464,24-Sep-18,"178,643.30",
SURFACE TRANSPORT CORP,CITY OF WESTMINSTER,Borough Services - Claim Against Pr Yr Accrual,1002\1900056403,24-Sep-18,"176,845.73",
RAIL FOR LONDON LIMITED,BOMBARDIER TRANSPORT UK,Vehicle Operating Leases,1020\5109399152,26-Sep-18,"175,082.85",
LONDON UNDERGROUND LTD,INSTALLATION TECHNOLOGY LTD,Maintenance of Plant & Equipment,1005\5109398540,10-Oct-18,"174,913.28",
LUL NOMINEE SSL LIMITED,LENDLEASE JACOBS JOINT VENTURE,MR Construction Costs,1031\5109393239,19-Sep-18,"173,428.94",
LUL NOMINEE SSL LIMITED,CPC PROJECT SERVICES LLP,Civil Engineering Construction Works,1031\5109359945,19-Sep-18,"172,568.34",
LUL NOMINEE SSL LIMITED,GIFFEN GROUP LTD,Civil Engineering Construction Works,1031\5109399518,28-Sep-18,"172,324.82",
LONDON UNDERGROUND LTD,ENGIE SERVICES LTD,Fire and Safety Equipment,1005\5109381107,17-Sep-18,"170,767.08",
LONDON UNDERGROUND LTD,KONE PLC,MR Construction Costs,1005\5109391647,17-Sep-18,"170,246.52",
LONDON UNDERGROUND LTD,HAYLEY GROUP PLC,Protective Clothing,1005\5109395035,19-Sep-18,"169,863.21",
LUL NOMINEE SSL LIMITED,GIFFEN GROUP LTD,Civil Engineering Construction Works,1031\5109399607,27-Sep-18,"169,740.50",
TRANSPORT TRADING LTD,CBS OUTDOOR LIMITED,Purchase of Associates Loan Notes (Activity),1004\5109391112,01-Oct-18,"169,737.94",
LUL NOMINEE BCV LIMITED,MORSON HUMAN RESOURCES LTD,Track General Maintenance,1033\5109396908,26-Sep-18,"167,510.48",
SURFACE TRANSPORT CORP,INTEROUTE MANAGED SERVICES UK LTD,Telephony Fixed,1002\5109395496,10-Oct-18,"167,034.33",
SURFACE TRANSPORT CORP,INTEROUTE MANAGED SERVICES UK LTD,Telephony Fixed,1002\5109378958,19-Sep-18,"167,033.91",
TRANSPORT TRADING LTD,LAMBERT SMITH HAMPTON,Commercial Property Rent,1004\1901661208,26-Sep-18,"165,686.99",
LONDON UNDERGROUND LTD,MORSON HUMAN RESOURCES LTD,Track General Maintenance,1005\5109395198,19-Sep-18,"165,439.84",
LONDON BUS SERVICES LTD,SULLIVAN BUS & COACH LTD,Bus Contract Payments,1006\1900041428,12-Oct-18,"163,540.80",
LONDON UNDERGROUND LTD,CASTLE WATER LIMITED,Water,1005\1900205548,08-Oct-18,"163,279.67",
LUL NOMINEE SSL LIMITED,ENGIE SERVICES LTD,Fire and Safety Equipment,1031\5109381103,17-Sep-18,"161,979.74",
LONDON UNDERGROUND LTD,ABB LTD,Retentions Control Account > 1Year,1005\5109395415,10-Oct-18,"159,227.88",
LUL NOMINEE SSL LIMITED,CLESHAR CONTRACT SERVICES LTD,Civil Engineering Construction Works,1031\5109405065,08-Oct-18,"158,712.71",
TFL CORPORATE,GFK NOP LTD,Research For Marketing Campaigns And Activities,1001\5109394922,26-Sep-18,"158,437.00",
LONDON UNDERGROUND LTD,KONE PLC,Escalators,1005\5109382971,17-Sep-18,"157,743.87",
TRANSPORT TRADING LTD,LONDON BOROUGH OF CAMDEN,Rates,1004\1901661413,27-Sep-18,"156,909.00",
LUL NOMINEE SSL LIMITED,SSE PLC,Civil Engineering Construction Works,1031\5109396920,10-Oct-18,"156,094.73",
LONDON UNDERGROUND LTD,DYER & BUTLER LTD,Civil Engineering Construction Works,1005\5109381654,19-Sep-18,"155,501.39",
LUL NOMINEE SSL LIMITED,HYDER CONSULTING (UK) LTD,Planning & Development Consultancy,1031\5109391740,24-Sep-18,"154,287.28",
LUL NOMINEE SSL LIMITED,GIFFEN GROUP LTD,Civil Engineering Construction Works,1031\5109400852,11-Oct-18,"154,266.14",
LONDON UNDERGROUND LTD,EDF ENERGY,Electricity,1005\1900205362,24-Sep-18,"153,700.30",
LUL NOMINEE SSL LIMITED,HYDER CONSULTING (UK) LTD,Planning & Development Consultancy,1031\5109400881,10-Oct-18,"151,324.80",
LONDON BUS SERVICES LTD,METROLINE TRAVEL LIMITED,Vehicle Repairs & Maintenance,1006\5109390783,03-Oct-18,"151,114.20",
LONDON UNDERGROUND LTD,GBM SERVICES LTD,Office Cleaning,1005\5109405680,10-Oct-18,"150,929.69",
SURFACE TRANSPORT CORP,ROAD MANAGEMENT SERVICES A13 PLC,A13 PFI Service Costs,1002\5109394929,19-Sep-18,"150,000.00",
RAIL FOR LONDON LIMITED,VOLKERRAIL SPECIALIST BUSINESSES LTD,Management & Support Consultancy,1020\5109392493,17-Sep-18,"148,868.36",
LUL NOMINEE SSL LIMITED,LENDLEASE JACOBS JOINT VENTURE,MR Construction Costs,1031\5109393295,19-Sep-18,"148,308.57",
LUL NOMINEE BCV LIMITED,LANES GROUP PLC,Building Maintenance & Repairs,1033\5109387922,26-Sep-18,"147,464.79",
LONDON BUS SERVICES LTD,GBM SERVICES LTD,Office Cleaning,1006\5109405654,10-Oct-18,"147,103.86",
LUL NOMINEE BCV LIMITED,CLESHAR CONTRACT SERVICES LTD,Track General Maintenance,1033\5109395951,24-Sep-18,"146,852.70",
TRANSPORT TRADING LTD,CITY OF WESTMINSTER,Rates,1004\1901661465,27-Sep-18,"146,718.00",
TRANSPORT TRADING LTD,ITSO LIMITED,Computer Software,1004\5109369278,20-Sep-18,"146,548.00",
LONDON UNDERGROUND LTD,ASHURST LLP,Legal Fees,1005\5109398981,26-Sep-18,"145,429.40",
TFL CORPORATE,TNS UK LTD,Planning & Development Consultancy,1001\5109387667,01-Oct-18,"145,413.00",
LUL NOMINEE BCV LIMITED,BARWIT CONTROL SYSTEMS LTD,Escalators,1033\5109400265,03-Oct-18,"141,833.00",
LUL NOMINEE SSL LIMITED,ROBERT STEVENS & SONS LTD,MR Construction Costs,1031\5109399418,01-Oct-18,"141,016.41",
LONDON UNDERGROUND LTD,HYDER CONSULTING (UK) LTD,Professional Engineering Services,1005\5109404324,08-Oct-18,"141,005.30",
TRANSPORT TRADING LTD,SAVILLS COMMERCIAL LTD,Commercial Property Rent,1004\1901661213,26-Sep-18,"140,000.00",
SURFACE TRANSPORT CORP,LONDON COUNCILS LTD,Borough Services - Claim Against Pr Yr Accrual,1002\1900056094,01-Oct-18,"140,000.00",
LONDON UNDERGROUND LTD,DELATIM LIMITED,Building Maintenance & Repairs,1005\5109404297,08-Oct-18,"139,982.49",
TRANSPORT TRADING LTD,EVERSHEDS,Legal Fees,1004\5109398975,26-Sep-18,"139,795.40",
LONDON UNDERGROUND LTD,SPENCE LIMITED,MR Construction Costs,1005\5109391850,17-Sep-18,"139,563.37",
LONDON UNDERGROUND LTD,OCL RAIL LTD,MR Construction Costs,1005\5109398875,01-Oct-18,"139,081.13",
RAIL FOR LONDON LIMITED,HEATHROW AIRPORT LTD,Franchise/Concession Fixed Fee,1020\5109387775,26-Sep-18,"139,004.00",
RAIL FOR LONDON LIMITED,HEATHROW AIRPORT LTD,Franchise/Concession Fixed Fee,1020\5109389121,01-Oct-18,"139,004.00",
RAIL FOR LONDON LIMITED,MOTT MACDONALD LIMITED,Management & Support Consultancy,1020\5109390525,03-Oct-18,"138,460.04",
LUL NOMINEE SSL LIMITED,CH2M HILL UNITED KINGDOM,Civil Engineering Construction Works,1031\5109405410,10-Oct-18,"137,884.33",
LONDON UNDERGROUND LTD,MCGINLEY SUPPORT SERVICES LTD,Track General Maintenance,1005\5109391419,17-Sep-18,"137,459.18",
TRANSPORT TRADING LTD,NOVACROFT DIRECT LTD,Ticket & Pass Production,1004\5109392889,17-Sep-18,"137,285.84",
SURFACE TRANSPORT CORP,SUSTRANS LTD,Transport Planning Consultancy & Services,1002\5109391242,03-Oct-18,"136,311.51",
RAIL FOR LONDON LIMITED,RAIL SAFETY & STANDARDS BOARD,Management & Support Consultancy,1020\5109384062,26-Sep-18,"135,363.93",
SURFACE TRANSPORT CORP,CSTS LTD,Contracted Services - Tunnels,1002\5109398680,10-Oct-18,"134,848.71",
TFL CORPORATE,ARE1 FARRINGDON HOLDINGS SARL,Purchase of Land & Buildings,1001\1900062209,08-Oct-18,"134,789.47",
SURFACE TRANSPORT CORP,CSTS LTD,Contracted Services - Tunnels,1002\5109387859,03-Oct-18,"134,685.95",
LONDON UNDERGROUND LTD,NETWORK RAIL,National Rail Variable Track Access Charges,1005\5109386584,26-Sep-18,"134,426.28",
TFL CORPORATE,GFK NOP LTD,Research For Marketing Campaigns And Activities,1001\5109379626,17-Sep-18,"133,871.50",
LONDON UNDERGROUND LTD,MCGINLEY SUPPORT SERVICES LTD,Track General Maintenance,1005\5109395558,20-Sep-18,"133,069.40",
LONDON UNDERGROUND LTD,OTB ENGINEERING LTD,MR Construction Costs,1005\5109400738,03-Oct-18,"132,831.53",
SURFACE TRANSPORT CORP,LONDON BOROUGH OF LAMBETH,Borough Services - Claim Against Pr Yr Accrual,1002\1900055959,24-Sep-18,"131,950.23",
TFL CORPORATE,CAPITA BUSINESS SERVICES LTD,Software Maintenance,1001\5109384741,26-Sep-18,"131,658.00",
LONDON UNDERGROUND LTD,NCP SERVICES LTD,Property Development-Planning & Development Consul,1005\5109387614,19-Sep-18,"131,291.72",
TRANSPORT TRADING LTD,LONDON BOROUGH OF LEWISHAM,Rates,1004\1901661495,27-Sep-18,"130,815.00",
LONDON UNDERGROUND LTD,KONE PLC,MR Construction Costs,1005\5109399632,01-Oct-18,"130,563.15",
RAIL FOR LONDON LIMITED,WALKER CONSTRUCTION (UK) LIMITED,Contractors,1020\5109392695,19-Sep-18,"129,186.15",
SURFACE TRANSPORT CORP,TELENT TECHNOLOGY SERVICES LTD,Maintenance of Plant & Equipment,1002\5109400249,10-Oct-18,"128,830.23",
LONDON UNDERGROUND LTD,NCP SERVICES LTD,Property Development-Planning & Development Consul,1005\5109387565,26-Sep-18,"128,815.16",
TRANSPORT TRADING LTD,THE LEISURE PASS GROUP,Ticket & Pass Production,1004\1901661522,01-Oct-18,"128,470.77",
TRANSPORT TRADING LTD,NOVACROFT DIRECT LTD,Ticket & Pass Production,1004\5109398233,01-Oct-18,"127,840.26",
SURFACE TRANSPORT CORP,GLOBAL SWITCH LIMITED,Commercial Property Rent,1002\5109392078,26-Sep-18,"126,989.53",
LUL NOMINEE SSL LIMITED,LENDLEASE JACOBS JOINT VENTURE,MR Construction Costs,1031\5109393319,19-Sep-18,"126,385.88",
LONDON UNDERGROUND LTD,CASTLE WATER LIMITED,Water,1005\1900205557,08-Oct-18,"125,510.27",
TFL CORPORATE,BNP PARIBAS REAL ESTATE,Planning & Development Consultancy,1001\5109381320,19-Sep-18,"125,000.00",
LONDON UNDERGROUND LTD,SRL SOLUTIONS,Civil Engineering Construction Works,1005\5109392886,19-Sep-18,"124,705.08",
LONDON BUS SERVICES LTD,ARRIVA LONDON NORTH LTD,Vehicle Repairs & Maintenance,1006\5109367373,19-Sep-18,"124,696.00",
TFL CORPORATE,MOTT MACDONALD LIMITED,Planning & Development Consultancy,1001\5109390504,17-Sep-18,"124,338.49",
LONDON UNDERGROUND LTD,THALES RAIL SIGNALLING SOLUTIONS,Civil Engineering Construction Works,1005\5109399090,10-Oct-18,"123,887.67",
RAIL FOR LONDON LIMITED,EDF ENERGY,Traction Current,1020\5109390633,24-Sep-18,"123,680.95",
LUL NOMINEE SSL LIMITED,TRACKWORK LTD,Track General Maintenance,1031\5109405780,10-Oct-18,"123,612.03",
TRANSPORT TRADING LTD,INSTANT OFFICES MANAGED LLP,Commercial Property Rent,1004\1901661232,20-Sep-18,"122,157.00",
LONDON UNDERGROUND LTD,ATKINS LIMITED,Planning & Development Consultancy,1005\5109403775,08-Oct-18,"120,695.93",
SURFACE TRANSPORT CORP,TELENT TECHNOLOGY SERVICES LTD,Traffic Signals,1002\5109399363,08-Oct-18,"120,442.63",
TRANSPORT TRADING LTD,OYSTER SALES SERVICE,Partnership Marketing - Costs Incurred,1004\5109387593,26-Sep-18,"120,000.00",
TRANSPORT TRADING LTD,NETWORK RAIL,Commercial Property Rent,1004\1901661717,11-Oct-18,"119,950.60",
DOCKLANDS LIGHT RAILWAY,DYER & BUTLER LTD,Civil Engineering Construction Works,1012\5109399377,08-Oct-18,"119,694.39",
SURFACE TRANSPORT CORP,EDF ENERGY,Electricity,1002\5109390627,17-Sep-18,"119,589.86",
TRANSPORT TRADING LTD,BAXTERSTOREY LTD,Caterers Service Charges,1004\5109398775,01-Oct-18,"119,001.88",
TRANSPORT TRADING LTD,CENTURYLINK COMMUNICATIONS UK LTD,Maintenance of Telecommunications Equipment,1004\5109387854,24-Sep-18,"118,689.63",
LUL NOMINEE SSL LIMITED,TRACKWORK LTD,Track General Maintenance,1031\5109405772,10-Oct-18,"118,206.38",
TRANSPORT TRADING LTD,GVA GRIMLEY LTD,Commercial Property Rent,1004\1901661198,26-Sep-18,"118,175.00",
SURFACE TRANSPORT CORP,CSTS LTD,Traffic Signals,1002\5109391295,24-Sep-18,"117,911.73",
SURFACE TRANSPORT CORP,CONWAY AECOM LTD,Contracted Services - Highway Bridges,1002\5109398384,03-Oct-18,"117,842.64",
SURFACE TRANSPORT CORP,REDSPEED INTERNATIONAL  LTD,Maintenance of Plant & Equipment,1002\5109390775,24-Sep-18,"117,272.96",
LONDON UNDERGROUND LTD,KONE PLC,Escalators,1005\5109386893,19-Sep-18,"117,003.91",
LONDON UNDERGROUND LTD,NCP SERVICES LTD,Property Development-Planning & Development Consul,1005\5109387573,19-Sep-18,"116,877.00",
RAIL FOR LONDON LIMITED,NETWORK RAIL,Civil Engineering Construction Works,1020\5109388437,19-Sep-18,"116,062.08",
LUL NOMINEE SSL LIMITED,GPX ENGINEERING LTD,Track General Maintenance,1031\5109406999,10-Oct-18,"115,828.04",
SURFACE TRANSPORT CORP,CAPITA BUSINESS SERVICES LTD,CCS Service Contract,1002\5109379372,17-Sep-18,"115,438.82",
LONDON BUS SERVICES LTD,TAIT EUROPE LTD,Radio Systems Equipment & Maintenance,1006\5109385336,26-Sep-18,"114,886.38",
LONDON UNDERGROUND LTD,NCP SERVICES LTD,Property Development-Planning & Development Consul,1005\5109392865,10-Oct-18,"113,688.73",
SURFACE TRANSPORT CORP,INTEROUTE MANAGED SERVICES UK LTD,Telephony Fixed,1002\5109378959,19-Sep-18,"112,389.77",
LONDON UNDERGROUND LTD,KNORR-BREMSE RAIL SERVICES,Signalling Systems,1005\5109395396,01-Oct-18,"112,215.47",
LONDON UNDERGROUND LTD,KONE PLC,Escalators,1005\5109382969,17-Sep-18,"112,075.80",
TFL CORPORATE,OPEN TEXT UK LTD,Software Maintenance,1001\5109385157,01-Oct-18,"111,908.68",
LONDON UNDERGROUND LTD,KONE PLC,Escalators,1005\5109382973,17-Sep-18,"111,594.76",
LONDON UNDERGROUND LTD,NETWORK RAIL,Traction Current,1005\5109386591,26-Sep-18,"111,164.13",
LONDON UNDERGROUND LTD,ARK SIGNALLING CONSULTANCY,Professional Engineering Services,1005\5109395426,24-Sep-18,"111,085.00",
LUL NOMINEE SSL LIMITED,SIGNALLING INSTALLATION & MAINT,Track General Maintenance,1031\5109396124,10-Oct-18,"110,081.18",
TFL CORPORATE,EQUINIX (UK) LTD,Manage IT Services,1001\5109356326,01-Oct-18,"109,902.67",
TFL CORPORATE,EQUINIX (UK) LTD,Manage IT Services,1001\5109374610,01-Oct-18,"109,902.67",
TFL CORPORATE,EQUINIX (UK) LTD,Manage IT Services,1001\5109391263,01-Oct-18,"109,902.67",
SURFACE TRANSPORT CORP,INTEROUTE MANAGED SERVICES UK LTD,Traffic Control Infrastucture,1002\5109378961,19-Sep-18,"109,473.72",
TFL CORPORATE,BLOOM PROCUREMENT SERVICES LIMITED,Management & Support Consultancy,1001\5109370638,24-Sep-18,"109,380.00",
TFL CORPORATE,BLOOM PROCUREMENT SERVICES LIMITED,Management & Support Consultancy,1001\5109392765,19-Sep-18,"109,380.00",
LUL NOMINEE SSL LIMITED,CH2M HILL UNITED KINGDOM,Civil Engineering Construction Works,1031\5109395932,24-Sep-18,"108,325.39",
LONDON UNDERGROUND LTD,LANES GROUP PLC,Civil Engineering Construction Works,1005\5109402716,10-Oct-18,"108,027.94",
LUL NOMINEE SSL LIMITED,NETWORK RAIL,Civil Engineering Construction Works,1031\5109327253,26-Sep-18,"107,932.72",
SURFACE TRANSPORT CORP,CAPITA BUSINESS SERVICES LTD,CCS Service Contract,1002\5109379815,17-Sep-18,"107,741.63",
TFL CORPORATE,TURNER & TOWNSEND LLP,Contractors,1001\5109388968,26-Sep-18,"107,559.01",
LONDON UNDERGROUND LTD,SPECIALIST COMPLIANT COATINGS LTD,Professional Engineering Services,1005\5109392532,17-Sep-18,"107,400.00",
LONDON UNDERGROUND LTD,SPECIALIST COMPLIANT COATINGS LTD,Professional Engineering Services,1005\5109394893,19-Sep-18,"107,400.00",
LONDON UNDERGROUND LTD,SPECIALIST COMPLIANT COATINGS LTD,Professional Engineering Services,1005\5109403064,08-Oct-18,"107,400.00",
LUL NOMINEE SSL LIMITED,HALCROW GROUP LTD,Professional Engineering Services,1031\5109371834,17-Sep-18,"107,053.38",
TRANSPORT TRADING LTD,WORKMAN FACILITIES MANAGEMENT LTD,Commercial Property Rent,1004\1901661153,26-Sep-18,"106,896.00",
LONDON UNDERGROUND LTD,AURORA LIFTS LTD,Lift Maintenance,1005\5109393399,08-Oct-18,"105,804.25",
TRANSPORT TRADING LTD,CITY OF WESTMINSTER,Rates,1004\1901661473,27-Sep-18,"105,678.00",
LONDON UNDERGROUND LTD,AURORA LIFTS LTD,MR Construction Costs,1005\5109393402,08-Oct-18,"105,339.07",
TFL CORPORATE,JACOBS U.K LIMITED,Planning & Development Consultancy,1001\5109387324,01-Oct-18,"104,904.50",
SURFACE TRANSPORT CORP,LONDON BOROUGH OF HAVERING,Borough Services - Claim Against Pr Yr Accrual,1002\1900055945,24-Sep-18,"104,219.75",
LUL NOMINEE SSL LIMITED,GIFFEN GROUP LTD,Civil Engineering Construction Works,1031\5109399532,27-Sep-18,"102,680.44",
TRANSPORT TRADING LTD,LONDON BOROUGH OF CROYDON,Rates,1004\1901661395,27-Sep-18,"102,600.00",
LONDON UNDERGROUND LTD,CASTLE WATER LIMITED,Water,1005\1900205571,08-Oct-18,"102,481.90",
TRANSPORT TRADING LTD,NOVACROFT DIRECT LTD,Ticket & Pass Production,1004\5109398229,01-Oct-18,"102,237.15",
TFL CORPORATE,GFK NOP LTD,Research For Marketing Campaigns And Activities,1001\5109394921,26-Sep-18,"101,388.00",
TRANSPORT TRADING LTD,HAYS ACCOUNTANCY PERSONNEL,Agency Staff,1004\5109378217,17-Sep-18,"101,286.65",
LONDON BUS SERVICES LTD,MITIE CLEANING & ENVIRONMENTAL,Building Maintenance & Repairs,1006\5109379875,17-Sep-18,"100,750.17",
LONDON UNDERGROUND LTD,GPX ENGINEERING LTD,Track General Maintenance,1005\5109405797,10-Oct-18,"100,565.44",
LUL NOMINEE BCV LIMITED,SPOOR-TECH LTD,MR Construction Costs,1033\5109398947,26-Sep-18,"100,333.15",
LONDON UNDERGROUND LTD,BALFOUR BEATTY RAIL LTD,Civil Engineering Construction Works,1005\5109395032,10-Oct-18,"99,998.43",
LONDON UNDERGROUND LTD,KONE PLC,Escalators,1005\5109382975,17-Sep-18,"99,878.81",
LONDON BUS SERVICES LTD,TOWER TRANSIT OPERATIONS LTD,Bus Contract Payments,1006\1900041410,12-Oct-18,"99,406.02",
LONDON UNDERGROUND LTD,TRY MARKET HALLS VICTORIA LTD,Building Maintenance & Repairs,1005\5109403514,10-Oct-18,"99,198.84",
LONDON BUS SERVICES LTD,EDF ENERGY,Building Maintenance & Repairs,1006\5109394979,24-Sep-18,"98,581.96",
SURFACE TRANSPORT CORP,SUSTRANS LTD,Transport Planning Consultancy & Services,1002\5109375797,08-Oct-18,"98,398.35",
LUL NOMINEE BCV LIMITED,LANES GROUP PLC,Building Maintenance & Repairs,1033\5109390393,08-Oct-18,"97,252.47",
RAIL FOR LONDON LIMITED,DELOITTE,Legal Fees,1020\5109391253,19-Sep-18,"97,000.00",
TRANSPORT TRADING LTD,HAYS ACCOUNTANCY PERSONNEL,Agency Staff,1004\5109382200,24-Sep-18,"96,575.08",
TFL CORPORATE,MOTT MACDONALD LIMITED,Planning & Development Consultancy,1001\5109379328,17-Sep-18,"96,390.86",
LONDON RIVER SERVICES LTD,BRIGGS MARINE CONTRACTORS LIMITED,Building Maintenance & Repairs,1007\5109395482,19-Sep-18,"95,665.58",
SURFACE TRANSPORT CORP,LONDON BOROUGH OF HAVERING,Borough Services - Claim Against Pr Yr Accrual,1002\1900055864,24-Sep-18,"95,560.41",
SURFACE TRANSPORT CORP,LONDON BOROUGH OF LAMBETH,Borough Services - Claim Against Pr Yr Accrual,1002\1900055958,24-Sep-18,"95,451.24",
LONDON BUS SERVICES LTD,MITIE CLEANING & ENVIRONMENTAL,Building Maintenance & Repairs,1006\5109379852,17-Sep-18,"95,350.33",
LONDON UNDERGROUND LTD,ENGIE SERVICES LTD,Equipment Repairs & Maintenance,1005\5109387995,03-Oct-18,"95,189.84",
LUL NOMINEE SSL LIMITED,KN NETWORK SERVICES LTD,Civil Engineering Construction Works,1031\5109403510,08-Oct-18,"94,091.48",
LONDON BUS SERVICES LTD,ARRIVA LONDON NORTH LTD,Vehicle Repairs & Maintenance,1006\5109367367,17-Sep-18,"93,522.00",
LONDON UNDERGROUND LTD,CITYLINK TELECOMMUNICATIONS LTD,PFI Service Costs - Power,1005\5109393214,19-Sep-18,"93,423.13",
LUL NOMINEE SSL LIMITED,GIFFEN GROUP LTD,Civil Engineering Construction Works,1031\5109396267,24-Sep-18,"92,828.73",
SURFACE TRANSPORT CORP,LONDON BOROUGH OF WANDSWORTH - BSP,Section 159 Payments,1002\1900056575,10-Oct-18,"92,500.00",
LUL NOMINEE SSL LIMITED,TRACKWORK LTD,Track General Maintenance,1031\5109405778,10-Oct-18,"92,359.50",
SURFACE TRANSPORT CORP,RINGWAY JACOBS LIMITED,Contracted Services - Roads,1002\5109397054,26-Sep-18,"92,219.83",
LONDON BUS SERVICES LTD,WRIGHTBUS LTD,Vehicle Repairs & Maintenance,1006\5109396450,03-Oct-18,"92,160.00",
LONDON UNDERGROUND LTD,CASTLE WATER LIMITED,Water,1005\1900205565,08-Oct-18,"91,704.06",
LONDON UNDERGROUND LTD,AURORA LIFTS LTD,Lift Maintenance,1005\5109371943,08-Oct-18,"90,558.45",
TFL CORPORATE,LONDON METROPOLITAN UNIVERSITY,Staff Training,1001\5109290975,24-Sep-18,"90,190.00",
LONDON BUS SERVICES LTD,PROVENTIA OY,Vehicle Repairs & Maintenance,1006\5109392716,27-Sep-18,"89,352.00",
LONDON BUS SERVICES LTD,PROVENTIA OY,Vehicle Repairs & Maintenance,1006\5109396302,04-Oct-18,"89,352.00",
LUL NOMINEE SSL LIMITED,MITSUBISHIELECTRICEUROPE BV GERMANY,Fleet,1031\5109363945,08-Oct-18,"88,940.00",
LONDON UNDERGROUND LTD,CPC PROJECT SERVICES LLP,Professional Engineering Services,1005\5109390575,17-Sep-18,"88,225.00",
TFL CORPORATE,MARSH SERVICES LTD,General Insurance,1001\5109391101,26-Sep-18,"87,360.00",
TFL CORPORATE,MOTT MACDONALD LIMITED,Planning & Development Consultancy,1001\5109393563,24-Sep-18,"86,528.07",
LONDON BUS SERVICES LTD,PROVENTIA OY,Vehicle Repairs & Maintenance,1006\5109384673,18-Sep-18,"86,220.00",
TRANSPORT TRADING LTD,INSTANT OFFICES MANAGED LLP,Commercial Property Rent,1004\1901660632,19-Sep-18,"86,165.00",
LONDON UNDERGROUND LTD,DELATIM LIMITED,Building Maintenance & Repairs,1005\5109391789,17-Sep-18,"85,853.37",
LONDON BUS SERVICES LTD,PROVENTIA OY,Purchases from TTL Properties Limited,1006\5109380583,21-Sep-18,"85,750.00",
LONDON UNDERGROUND LTD,NETWORK RAIL,National Rail Variable Track Access Charges,1005\5109386565,26-Sep-18,"85,474.37",
LONDON UNDERGROUND LTD,MERSEN UK HOLDINGS LIMITED,Hardware Maintenance,1005\5109379480,17-Sep-18,"85,277.95",
LUL NOMINEE SSL LIMITED,DESIGN RATIONALE LTD,MR Construction Costs,1031\5109405784,10-Oct-18,"85,235.68",
TFL CORPORATE,GARDINER & THEOBALD LLP,Professional Engineering Services,1001\5109387930,03-Oct-18,"84,918.12",
RAIL FOR LONDON LIMITED,TNS UK LTD,Transport Planning Consultancy & Services,1020\5109384189,01-Oct-18,"84,129.00",
TFL CORPORATE,ASITE SOLUTIONS LTD,Software Maintenance,1001\5109385225,26-Sep-18,"84,000.00",
SURFACE TRANSPORT CORP,TELENT TECHNOLOGY SERVICES LTD,Road Maintenance,1002\5109391167,24-Sep-18,"82,443.23",
LONDON UNDERGROUND LTD,SIGNALLING INSTALLATION & MAINT,MR Construction Costs,1005\5109396121,10-Oct-18,"81,918.23",
LUL NOMINEE SSL LIMITED,GIFFEN GROUP LTD,Civil Engineering Construction Works,1031\5109399597,28-Sep-18,"81,254.28",
LONDON UNDERGROUND LTD,EDF ENERGY,Electricity,1005\1900205319,03-Oct-18,"80,120.70",
TFL CORPORATE,MARSH SERVICES LTD,General Insurance,1001\5109391107,17-Sep-18,"79,800.00",
LUL NOMINEE SSL LIMITED,T.R.I. CONTRACTING SERVICES LTD,MR Construction Costs,1031\5109392159,19-Sep-18,"79,371.30",
TRANSPORT TRADING LTD,HAYS ACCOUNTANCY PERSONNEL,Agency Staff,1004\5109385815,01-Oct-18,"79,222.31",
DOCKLANDS LIGHT RAILWAY,KEOLIS AMEY DOCKLANDS LIMITED,Professional Engineering Services,1012\5109338749,01-Oct-18,"79,189.14",
SURFACE TRANSPORT CORP,LONDON BOROUGH OF BARNET,Borough Services - Claim Against Pr Yr Accrual,1002\1900056305,24-Sep-18,"78,848.60",
TFL CORPORATE,PRACTICAL LAW COMPANY,Publications & Periodicals,1001\5109392096,19-Sep-18,"78,748.00",
LONDON BUS SERVICES LTD,ARRIVA LONDON NORTH LTD,Vehicle Repairs & Maintenance,1006\5109390544,24-Sep-18,"77,935.00",
TRANSPORT TRADING LTD,HAYS ACCOUNTANCY PERSONNEL,Agency Staff,1004\5109389629,08-Oct-18,"77,465.50",
TRANSPORT TRADING LTD,G4S CASH SOLUTIONS (UK) LTD,Cash Handling & Processing,1004\5109387825,26-Sep-18,"77,172.58",
DIAL A RIDE,WOODALL NICHOLSON LTD,Vehicle Purchases,1010\5109393293,24-Sep-18,"76,583.00",
DIAL A RIDE,WOODALL NICHOLSON LTD,Vehicle Purchases,1010\5109393296,24-Sep-18,"76,583.00",
DIAL A RIDE,WOODALL NICHOLSON LTD,Vehicle Purchases,1010\5109393298,24-Sep-18,"76,583.00",
DIAL A RIDE,WOODALL NICHOLSON LTD,Vehicle Purchases,1010\5109393302,24-Sep-18,"76,583.00",
DIAL A RIDE,WOODALL NICHOLSON LTD,Vehicle Purchases,1010\5109393304,24-Sep-18,"76,583.00",
DIAL A RIDE,WOODALL NICHOLSON LTD,Vehicle Purchases,1010\5109393309,24-Sep-18,"76,583.00",
DIAL A RIDE,WOODALL NICHOLSON LTD,Vehicle Purchases,1010\5109393312,24-Sep-18,"76,583.00",
DIAL A RIDE,WOODALL NICHOLSON LTD,Vehicle Purchases,1010\5109393315,24-Sep-18,"76,583.00",
DIAL A RIDE,WOODALL NICHOLSON LTD,Vehicle Purchases,1010\5109393318,24-Sep-18,"76,583.00",
DIAL A RIDE,WOODALL NICHOLSON LTD,Vehicle Purchases,1010\5109393323,24-Sep-18,"76,583.00",
DIAL A RIDE,WOODALL NICHOLSON LTD,Vehicle Purchases,1010\5109393325,24-Sep-18,"76,583.00",
DIAL A RIDE,WOODALL NICHOLSON LTD,Vehicle Purchases,1010\5109393326,24-Sep-18,"76,583.00",
DIAL A RIDE,WOODALL NICHOLSON LTD,Vehicle Purchases,1010\5109393332,24-Sep-18,"76,583.00",
DIAL A RIDE,WOODALL NICHOLSON LTD,Vehicle Purchases,1010\5109393333,24-Sep-18,"76,583.00",
TRANSPORT TRADING LTD,INSTANT OFFICES MANAGED LLP,Commercial Property Rent,1004\1901660633,18-Sep-18,"75,172.50",
TRANSPORT TRADING LTD,THREADNEEDLE PENSIONS LTD,Commercial Property Rent,1004\1901661201,26-Sep-18,"75,000.00",
SURFACE TRANSPORT CORP,LONDON BOROUGH OF HAVERING,Borough Services - Claim Against Pr Yr Accrual,1002\1900055752,24-Sep-18,"74,842.51",
TRANSPORT TRADING LTD,NOVACROFT DIRECT LTD,Ticket & Pass Production,1004\5109395782,20-Sep-18,"73,980.16",
RAIL FOR LONDON LIMITED,DEUTZER TECHNISCHE KOHLE GMBH,Management & Support Consultancy,1020\5109395356,20-Sep-18,"73,926.04",
LONDON BUS SERVICES LTD,PROVENTIA OY,Vehicle Repairs & Maintenance,1006\5109396308,05-Oct-18,"73,102.50",
LONDON UNDERGROUND LTD,ALSTOM TRANSPORT LTD,Professional Engineering Services,1005\5109399008,10-Oct-18,"72,943.50",
TRANSPORT TRADING LTD,LONDON BOROUGH OF CAMDEN,Rates,1004\1901661414,27-Sep-18,"72,846.00",
TUBE LINES LTD,SPECIALIST ENGINEERING SERVICES,Maintenance,797375,28-Sep-18,"72,283.23",
LUL NOMINEE BCV LIMITED,MORSON PROJECTS LIMITED,Maintenance Materials,1033\5109392060,04-Oct-18,"72,127.96",
LUL NOMINEE BCV LIMITED,MORSON PROJECTS LIMITED,Maintenance Materials,1033\5109404924,08-Oct-18,"72,127.96",
SURFACE TRANSPORT CORP,ATKINS LIMITED,Planning & Development Consultancy,1002\5109393503,10-Oct-18,"71,482.87",
RAIL FOR LONDON LIMITED,LINBROOKE SERVICES LTD,Management & Support Consultancy,1020\5109380720,19-Sep-18,"70,785.94",
TUBE LINES LTD,PRECISION CHAINS LTD,Materials,800833,12-Oct-18,"70,500.00",
SURFACE TRANSPORT CORP,SIEMENS MOBILITY LIMITED,Traffic Signals,1002\5109407559,10-Oct-18,"70,449.00",
SURFACE TRANSPORT CORP,LONDON BOROUGH OF HAVERING,Borough Services - Claim Against Pr Yr Accrual,1002\1900056324,24-Sep-18,"70,431.66",
DOCKLANDS LIGHT RAILWAY,SOLUTION RAIL LIMITED,Civil Engineering Construction Works,1012\5109404317,10-Oct-18,"70,422.09",
LONDON BUS SERVICES LTD,PROVENTIA OY,Purchases from TTL Properties Limited,1006\5109390531,21-Sep-18,"68,600.00",
SURFACE TRANSPORT CORP,ENTERPRISEMOUCHEL LIMITED,Contracted Services - Roads,1002\5109389036,17-Sep-18,"68,483.18",
LUL NOMINEE SSL LIMITED,CLANCY DOCWRA LTD,Civil Engineering Construction Works,1031\5109400755,10-Oct-18,"68,455.88",
TRANSPORT TRADING LTD,NOVACROFT DIRECT LTD,Ticket & Pass Production,1004\5109393359,18-Sep-18,"68,310.56",
LUL NOMINEE SSL LIMITED,DUCTCLEAN (UK) LTD T/A DCUK FM,Track General Maintenance,1031\5109391822,25-Sep-18,"68,006.14",
TRANSPORT TRADING LTD,NOVACROFT DIRECT LTD,Ticket & Pass Production,1004\5109398549,01-Oct-18,"67,741.33",
RAIL FOR LONDON LIMITED,XANTA LIMITED,Professional Engineering Services,1020\5109396997,27-Sep-18,"67,289.70",
LUL NOMINEE SSL LIMITED,HAYLEY GROUP PLC,Maintenance Materials,1031\5109395052,19-Sep-18,"67,218.80",
DOCKLANDS LIGHT RAILWAY,EKSPAN,Civil Engineering Construction Works,1012\5109391794,18-Sep-18,"67,091.06",
LUL NOMINEE SSL LIMITED,LANES GROUP PLC,Civil Engineering Construction Works,1031\5109380022,17-Sep-18,"66,840.40",
LONDON BUS SERVICES LTD,ABELLIO LONDON LTD,Bus Contract Payments,1006\1900041288,28-Sep-18,"66,722.00",
TRANSPORT TRADING LTD,SSE CONTRACTING,Building Maintenance & Repairs,1004\5109384222,26-Sep-18,"66,522.40",
LONDON UNDERGROUND LTD,TPS LTD,Signalling Systems,1005\5109390803,17-Sep-18,"66,366.00",
LONDON UNDERGROUND LTD,NETWORK RAIL,Traction Current,1005\5109386668,26-Sep-18,"66,355.98",
TRANSPORT TRADING LTD,GROSVENOR ESTATE BELGRAVIA,Commercial Property Rent,1004\1901661186,26-Sep-18,"66,250.00",
LUL NOMINEE SSL LIMITED,KIROW ARDELT GMBH,Equipment Repairs & Maintenance,1031\5109394938,25-Sep-18,"66,122.39",
TFL CORPORATE,MOTT MACDONALD LIMITED,Professional Engineering Services,1001\5109398811,26-Sep-18,"65,960.98",
RAIL FOR LONDON LIMITED,OVE ARUP & PARTNERS LTD,Management & Support Consultancy,1020\5109383697,24-Sep-18,"65,757.14",
LONDON UNDERGROUND LTD,ASHURST LLP,Legal Fees,1005\5109398982,26-Sep-18,"65,339.80",
SURFACE TRANSPORT CORP,TELENT TECHNOLOGY SERVICES LTD,Maintenance of Plant & Equipment,1002\5109384499,26-Sep-18,"65,264.32",
LONDON BUS SERVICES LTD,LONDON CENTRAL BUS COMPANY LTD,Bus Contract Payments,1006\1900041289,28-Sep-18,"65,009.00",
TFL CORPORATE,DENTONS UKMEA LLP,Legal Fees,1001\5109392848,17-Sep-18,"65,000.00",
LUL NOMINEE SSL LIMITED,HOPPECKE INDUSTRIAL BATTERIES,Fleet,1031\5109400290,04-Oct-18,"64,994.85",
RAIL FOR LONDON LIMITED,OVE ARUP & PARTNERS LTD,Management & Support Consultancy,1020\5109392613,10-Oct-18,"64,557.14",
TFL CORPORATE,PROBRAND LTD,Software Maintenance,1001\5109387336,19-Sep-18,"64,444.00",
LONDON UNDERGROUND LTD,LANES GROUP PLC,Building Maintenance & Repairs,1005\5109387917,26-Sep-18,"63,981.82",
RAIL FOR LONDON LIMITED,ORION RAIL CONSTRUCTION SERVICES,Maintenance of Plant & Equipment,1020\5109393229,10-Oct-18,"63,900.00",
LONDON UNDERGROUND LTD,DELATIM LIMITED,MR Construction Costs,1005\5109401466,03-Oct-18,"63,591.48",
LONDON UNDERGROUND LTD,KONE PLC,Escalators,1005\5109382976,17-Sep-18,"63,565.86",
LONDON BUS SERVICES LTD,LONDON UNITED BUSWAYS,Bus Contract Payments,1006\1900041290,28-Sep-18,"63,530.00",
SURFACE TRANSPORT CORP,CONWAY AECOM LTD,Civil Engineering Construction Works,1002\5109395567,26-Sep-18,"63,518.93",
DOCKLANDS LIGHT RAILWAY,MOTT MACDONALD LIMITED,Professional Engineering Services,1012\5109392672,17-Sep-18,"62,715.74",
RAIL FOR LONDON LIMITED,LEND LEASE CONSULTING (EMEA) LTD,Professional Engineering Services,1020\5109398935,27-Sep-18,"62,683.38",
RAIL FOR LONDON LIMITED,AECOM INFRASTRUCTURE & ENVIR UK LTD,Professional Engineering Services,1020\5109375742,24-Sep-18,"62,528.99",
TFL CORPORATE,MOTT MACDONALD LIMITED,Planning & Development Consultancy,1001\5109404200,10-Oct-18,"62,456.70",
LONDON UNDERGROUND LTD,KONE PLC,Escalators,1005\5109382967,17-Sep-18,"61,668.94",
TFL CORPORATE,MARSH SERVICES LTD,General Insurance,1001\5109391105,26-Sep-18,"61,600.00",
RAIL FOR LONDON LIMITED,CSC COMPUTER SCIENCE,Computer Software,1020\5109380906,17-Sep-18,"61,500.00",
LUL NOMINEE SSL LIMITED,SPECIALIST ENGINEERING SERVICES,Track General Maintenance,1031\5109392198,17-Sep-18,"61,467.95",
SURFACE TRANSPORT CORP,RINGWAY JACOBS LIMITED,Contracted Services - Roads,1002\5109397056,26-Sep-18,"61,148.46",
LUL NOMINEE SSL LIMITED,CLESHAR CONTRACT SERVICES LTD,Track General Maintenance,1031\5109393138,17-Sep-18,"61,106.33",
LONDON BUS SERVICES LTD,PROVENTIA OY,Vehicle Repairs & Maintenance,1006\5109399283,09-Oct-18,"60,918.75",
SURFACE TRANSPORT CORP,"SYSTEMS ENGINEERING, ASSESSMENT",Traffic Signals,1002\5109396108,03-Oct-18,"60,752.20",
TFL CORPORATE,ATKINS LIMITED,Planning & Development Consultancy,1001\5109392529,10-Oct-18,"60,673.44",
LONDON UNDERGROUND LTD,TPS LTD,Signalling Systems,1005\5109405405,10-Oct-18,"60,619.00",
LONDON BUS SERVICES LTD,ENSIGN BUS COMPANY LTD,Rail Replacement Service Costs,1006\1900041399,08-Oct-18,"60,500.00",
LONDON UNDERGROUND LTD,MORGAN SINDALL  PLC,MR Construction Costs,1005\5109401392,03-Oct-18,"60,323.99",
LUL NOMINEE SSL LIMITED,LANES GROUP PLC,Building Maintenance & Repairs,1031\5109390500,08-Oct-18,"60,222.08",
LUL NOMINEE SSL LIMITED,MCNEALY BROWN LTD,MR Construction Costs,1031\5109391732,19-Sep-18,"60,106.58",
SURFACE TRANSPORT CORP,EURO PARKING COLLECTION PLC,CCS Street Patrols Contract,1002\5109403712,04-Oct-18,"59,890.70",
SURFACE TRANSPORT CORP,SIEMENS MOBILITY LIMITED,Computer Software,1002\5109380918,01-Oct-18,"59,835.00",
DOCKLANDS LIGHT RAILWAY,THAMES CLIPPERS,Ticket & Pass Production,1012\5109395359,20-Sep-18,"59,826.40",
VICTORIA COACH STATN LTD,GBM SERVICES LTD,Office Cleaning,1008\5109405662,10-Oct-18,"59,587.03",
LUL NOMINEE SSL LIMITED,CLESHAR CONTRACT SERVICES LTD,Track General Maintenance,1031\5109404989,10-Oct-18,"59,567.04",
LONDON UNDERGROUND LTD,WRAGGE & CO,Legal Fees,1005\5109396438,26-Sep-18,"59,561.40",
SURFACE TRANSPORT CORP,EDF ENERGY,Electricity,1002\5109390662,17-Sep-18,"59,238.48",
TFL CORPORATE,"SISCOG - SISTEMAS COGNITIVOS, SA",Software Maintenance,1001\5109334131,28-Sep-18,"58,871.00",
TFL CORPORATE,"SISCOG - SISTEMAS COGNITIVOS, SA",Software Maintenance,1001\5109359796,28-Sep-18,"58,871.00",
TFL CORPORATE,"SISCOG - SISTEMAS COGNITIVOS, SA",Software Maintenance,1001\5109371603,28-Sep-18,"58,871.00",
TFL CORPORATE,"SISCOG - SISTEMAS COGNITIVOS, SA",Software Maintenance,1001\5109403828,04-Oct-18,"58,871.00",
RAIL FOR LONDON LIMITED,O2 UK LTD,Computer Hardware,1020\5109320887,17-Sep-18,"58,565.30",
LONDON BUS SERVICES LTD,ARRIVA LONDON NORTH LTD,Rail Replacement Service Costs,1006\1900041352,28-Sep-18,"58,246.72",
TRANSPORT TRADING LTD,CITY OF LONDON CORPORATION,Rates,1004\1901661421,27-Sep-18,"58,016.00",
SURFACE TRANSPORT CORP,ATKINS LIMITED,Contracted Services - Highway Bridges,1002\5109370598,08-Oct-18,"57,986.68",
LUL NOMINEE BCV LIMITED,LANES GROUP PLC,Civil Engineering Construction Works,1033\5109380018,17-Sep-18,"57,678.94",
RAIL FOR LONDON LIMITED,INTERSERVE,Security Services (Guards),1020\5109395762,08-Oct-18,"57,561.11",
LONDON UNDERGROUND LTD,JK RAIL LIMITED,Stock of Other Spares,1005\5109400066,01-Oct-18,"57,500.00",
TFL CORPORATE,COMPUTACENTER,IT Consultancy,1001\5109384498,24-Sep-18,"57,487.85",
LONDON UNDERGROUND LTD,AURORA LIFTS LTD,Lift Maintenance,1005\5109371945,08-Oct-18,"57,324.91",
LUL NOMINEE SSL LIMITED,CPC PROJECT SERVICES LLP,Civil Engineering Construction Works,1031\5109387814,19-Sep-18,"57,057.57",
RAIL FOR LONDON LIMITED,STADLER PANKOW GMBH,Plant & Equipment Purchases,1020\5109387237,03-Oct-18,"56,879.20",
SURFACE TRANSPORT CORP,ASHURST LLP,Legal Fees,1002\5109398990,26-Sep-18,"56,783.00",
SURFACE TRANSPORT CORP,REDSPEED INTERNATIONAL  LTD,Maintenance of Plant & Equipment,1002\5109390771,24-Sep-18,"56,384.34",
SURFACE TRANSPORT CORP,REDSPEED INTERNATIONAL  LTD,Maintenance of Plant & Equipment,1002\5109399436,27-Sep-18,"56,384.34",
LUL NOMINEE BCV LIMITED,POD-TRAK LTD,MR Construction Costs,1033\5109409069,12-Oct-18,"56,347.24",
RAIL FOR LONDON LIMITED,MTR CORPORATION (CROSSRAIL) LTD,Management & Support Consultancy,1020\5109396659,01-Oct-18,"56,238.15",
TRANSPORT TRADING LTD,THE BIG BUS COMPANY,Ticket & Pass Production,1004\1901661005,26-Sep-18,"56,210.86",
LONDON BUS SERVICES LTD,PROVENTIA OY,Vehicle Repairs & Maintenance,1006\5109396362,05-Oct-18,"56,025.00",
RAIL FOR LONDON LIMITED,STADLER PANKOW GMBH,Stock of Fleet,1020\5109387965,28-Sep-18,"55,302.36",
LONDON UNDERGROUND LTD,DELATIM LIMITED,MR Construction Costs,1005\5109395016,19-Sep-18,"54,945.54",
LUL NOMINEE SSL LIMITED,NETWORK RAIL,Track General Maintenance,1031\5109392201,17-Sep-18,"54,823.38",
LUL NOMINEE SSL LIMITED,NETWORK RAIL,Track General Maintenance,1031\5109392202,17-Sep-18,"54,823.38",
SURFACE TRANSPORT CORP,ATKINS LIMITED,Contracted Services - Highway Bridges,1002\5109392829,03-Oct-18,"54,792.39",
LUL NOMINEE SSL LIMITED,CLESHAR CONTRACT SERVICES LTD,Track General Maintenance,1031\5109404934,10-Oct-18,"54,690.75",
TRANSPORT TRADING LTD,THE ORIG. LONDON SIGHTSEE. TOUR LTD,Ticket & Pass Production,1004\1901660735,24-Sep-18,"54,493.56",
TRANSPORT TRADING LTD,GEOFFREY MICHAEL WARREN,Commercial Property Rent,1004\1901661226,26-Sep-18,"54,420.00",
LONDON UNDERGROUND LTD,JK RAIL LIMITED,Maintenance of Plant & Equipment,1005\5109405318,10-Oct-18,"54,412.32",
TRANSPORT TRADING LTD,TELENT TECHNOLOGY SERVICES LTD,Building Maintenance & Repairs,1004\5109378983,17-Sep-18,"54,352.22",
TFL CORPORATE,KPMG,Management & Support Consultancy,1001\5109381359,19-Sep-18,"54,278.00",
TRANSPORT TRADING LTD,NETWORK RAIL,Commercial Property Rent,1004\1901661231,27-Sep-18,"53,750.00",
SURFACE TRANSPORT CORP,SIEMENS MOBILITY LIMITED,Traffic Signals,1002\5109398530,03-Oct-18,"53,602.30",
SURFACE TRANSPORT CORP,TELENT TECHNOLOGY SERVICES LTD,Traffic Signals,1002\5109392787,17-Sep-18,"53,545.04",
LUL NOMINEE SSL LIMITED,CLESHAR CONTRACT SERVICES LTD,Track General Maintenance,1031\5109393147,17-Sep-18,"53,359.58",
LUL NOMINEE SSL LIMITED,INTERFLEET TECHNOLOGY LIMITED,Professional Engineering Services,1031\5109394735,24-Sep-18,"53,300.00",
LUL NOMINEE SSL LIMITED,CLESHAR CONTRACT SERVICES LTD,Track General Maintenance,1031\5109393133,17-Sep-18,"53,084.31",
SURFACE TRANSPORT CORP,TELENT TECHNOLOGY SERVICES LTD,Traffic Signals,1002\5109400961,10-Oct-18,"53,044.33",
LUL NOMINEE SSL LIMITED,CLESHAR CONTRACT SERVICES LTD,Track General Maintenance,1031\5109404957,10-Oct-18,"52,966.05",
LONDON UNDERGROUND LTD,SOLUTION RAIL LIMITED,MR Construction Costs,1005\5109399415,28-Sep-18,"52,626.39",
LONDON BUS SERVICES LTD,ABELLIO LONDON LTD,Rail Replacement Service Costs,1006\1900041283,01-Oct-18,"52,615.92",
LONDON UNDERGROUND LTD,TOWER SUPPLIES,Stock of General Supplies,1005\5109405705,08-Oct-18,"52,246.97",
LUL NOMINEE SSL LIMITED,TURNER & TOWNSEND LLP,Track General Maintenance,1031\5109403486,10-Oct-18,"52,235.66",
TFL CORPORATE,MOTT MACDONALD LIMITED,Planning & Development Consultancy,1001\5109400773,10-Oct-18,"52,209.12",
TRANSPORT TRADING LTD,O2 UK LTD,Computer Hardware,1004\5109313370,17-Sep-18,"52,185.35",
LONDON UNDERGROUND LTD,KELLY INTEGRATED TRANS SERV LTD,Signalling Systems,1005\5109391152,17-Sep-18,"52,152.80",
LONDON BUS SERVICES LTD,TRAPEZE PTI LTD,Computer Consumables,1006\5109391721,11-Oct-18,"52,081.86",
LUL NOMINEE SSL LIMITED,CLESHAR CONTRACT SERVICES LTD,Track General Maintenance,1031\5109393167,17-Sep-18,"52,035.04",
LONDON UNDERGROUND LTD,THALES RAIL SIGNALLING SOLUTIONS,Civil Engineering Construction Works,1005\5109400120,08-Oct-18,"52,006.92",
LUL NOMINEE SSL LIMITED,IPS COMMUNICATIONS LTD,MR Construction Costs,1031\5109393414,19-Sep-18,"51,573.47",
LUL NOMINEE SSL LIMITED,GIFFEN GROUP LTD,MR Construction Costs,1031\5109393513,19-Sep-18,"51,543.48",
LUL NOMINEE SSL LIMITED,1STINRAIL LIMITED,Track General Maintenance,1031\5109403649,04-Oct-18,"51,480.24",
LONDON UNDERGROUND LTD,MCGINLEY SUPPORT SERVICES LTD,Track General Maintenance,1005\5109398552,26-Sep-18,"51,414.49",
TRANSPORT TRADING LTD,NETWORK RAIL,Commercial Property Rent,1004\1901661214,26-Sep-18,"51,398.93",
SURFACE TRANSPORT CORP,MOTT MACDONALD LIMITED,Contracted Services - Highway Bridges,1002\5109368350,08-Oct-18,"51,368.32",
LONDON UNDERGROUND LTD,LANES GROUP PLC,Track General Maintenance,1005\5109407545,10-Oct-18,"51,047.00",
TUBE LINES LTD,SPECIALIST ENGINEERING SERVICES,Maintenance,797374,28-Sep-18,"50,886.20",
TRANSPORT TRADING LTD,CBS OUTDOOR LIMITED,Purchase of Associates Loan Notes (Activity),1004\5109391110,01-Oct-18,"50,741.85",
SURFACE TRANSPORT CORP,TELENT TECHNOLOGY SERVICES LTD,Traffic Signals,1002\5109392573,26-Sep-18,"50,415.00",
LONDON UNDERGROUND LTD,PERCY LANE PRODUCTS,Professional Engineering Services,1005\5109394768,01-Oct-18,"50,365.49",
LONDON UNDERGROUND LTD,PERCY LANE PRODUCTS,Professional Engineering Services,1005\5109394781,24-Sep-18,"50,365.49",
LONDON UNDERGROUND LTD,PERCY LANE PRODUCTS,Professional Engineering Services,1005\5109398779,02-Oct-18,"50,365.49",
LUL NOMINEE SSL LIMITED,CLESHAR CONTRACT SERVICES LTD,Track General Maintenance,1031\5109404946,10-Oct-18,"50,134.60",
LONDON UNDERGROUND LTD,HEATHROW EXPRESS,Licence Fees,1005\5109378862,17-Sep-18,"50,046.40",
LONDON UNDERGROUND LTD,CORONA ENERGY RETAIL 4 LTD,Gas,1005\1900204941,19-Sep-18,"50,000.49",
TRANSPORT TRADING LTD,NETWORK RAIL,Commercial Property Rent,1004\1901661235,27-Sep-18,"50,000.00",
LONDON BUS SERVICES LTD,TAIT EUROPE LTD,Radio Systems Equipment & Maintenance,1006\5109394714,10-Oct-18,"50,000.00",
SURFACE TRANSPORT CORP,LONDON BOROUGH OF WANDSWORTH - BSP,Borough Services - Claim Against Pr Yr Accrual,1002\1900055999,08-Oct-18,"50,000.00",
SURFACE TRANSPORT CORP,THE ROYAL BOROUGH OF KENSINGTON &,Contracted Services - Roads,1002\1900056500,03-Oct-18,"50,000.00",
LUL NOMINEE SSL LIMITED,TOTAL RAIL SOLUTIONS,Track General Maintenance,1031\5109386680,01-Oct-18,"49,997.00",
LUL NOMINEE SSL LIMITED,NETWORK RAIL,Civil Engineering Construction Works,1031\5109377559,24-Sep-18,"49,924.18",
LUL NOMINEE SSL LIMITED,1STINRAIL LIMITED,Track General Maintenance,1031\5109403520,04-Oct-18,"49,849.38",
TFL CORPORATE,TRAPEZE GROUP (UK),Software Maintenance,1001\5109367890,27-Sep-18,"49,833.53",
RAIL FOR LONDON LIMITED,VOLKERRAIL SPECIALIST BUSINESSES LTD,Management & Support Consultancy,1020\5109386842,17-Sep-18,"49,611.09",
RAIL FOR LONDON LIMITED,NETWORK RAIL,Professional Engineering Services,1020\5109385289,17-Sep-18,"49,486.25",
CYCLE HIRE SCHEME,JOURNEYCALL LTD,Ticket & Pass Production,1016\5109363981,03-Oct-18,"49,461.64",
LONDON UNDERGROUND LTD,CITYLINK TELECOMMUNICATIONS LTD,Connect PFI Service Costs,1005\5109391239,17-Sep-18,"49,275.00",
TFL CORPORATE,MARSH SERVICES LTD,General Insurance,1001\5109391084,17-Sep-18,"49,251.55",
LONDON RIVER SERVICES LTD,THAMES CLIPPERS,Operator Costs,1007\5109399979,28-Sep-18,"49,250.43",
TRANSPORT TRADING LTD,LONDON BOROUGH OF ISLINGTON,Rates,1004\1901661485,27-Sep-18,"49,248.00",
LONDON UNDERGROUND LTD,INSTALLATION TECHNOLOGY LTD,Computer Software,1005\5109387627,17-Sep-18,"49,241.00",
TRANSPORT TRADING LTD,LONDON BOROUGH OF HACKNEY,Commercial Property Rent,1004\1901661184,26-Sep-18,"49,123.75",
LONDON BUS SERVICES LTD,PROVENTIA OY,Vehicle Repairs & Maintenance,1006\5109392701,27-Sep-18,"48,735.00",
TFL CORPORATE,MOTT MACDONALD LIMITED,Planning & Development Consultancy,1001\5109393504,19-Sep-18,"48,650.24",
TRANSPORT TRADING LTD,REALSTAR MANAGEMENT SERVICES (UK) L,Commercial Property Rent,1004\1901661158,26-Sep-18,"48,600.00",
TFL CORPORATE,MEDIAEDGE,Radio TV Press Poster Cinema Airtime And Space,1001\5109391855,01-Oct-18,"48,585.11",
TRANSPORT TRADING LTD,THE ORIG. LONDON SIGHTSEE. TOUR LTD,Ticket & Pass Production,1004\1901661131,19-Sep-18,"48,565.17",
RAIL FOR LONDON LIMITED,TELENT TECHNOLOGY SERVICES LTD,Electrical & Electronic Engineering,1020\5109404328,08-Oct-18,"48,350.54",
LUL NOMINEE SSL LIMITED,T.R.I. CONTRACTING SERVICES LTD,MR Construction Costs,1031\5109404316,08-Oct-18,"48,286.51",
TFL CORPORATE,GFK NOP LTD,Research For Marketing Campaigns And Activities,1001\5109394945,26-Sep-18,"48,194.25",
TFL CORPORATE,KNIGHT FRANK LLP,Purchase of Land & Buildings,1001\1900061758,19-Sep-18,"48,055.29",
LONDON BUS SERVICES LTD,METROLINE TRAVEL LIMITED,Rail Replacement Service Costs,1006\1900041358,03-Oct-18,"47,610.95",
TUBE LINES LTD,WILLIAM COOK RAIL LTD,Materials,799212,28-Sep-18,"47,586.00",
TRANSPORT TRADING LTD,LONDON BOROUGH OF TOWER HAMLETS,Rates,1004\1901661431,27-Sep-18,"47,452.50",
TRANSPORT TRADING LTD,LONDON BOROUGH OF TOWER HAMLETS,Rates,1004\1901661432,27-Sep-18,"47,452.50",
LUL NOMINEE SSL LIMITED,CLESHAR CONTRACT SERVICES LTD,Track General Maintenance,1031\5109404984,10-Oct-18,"47,421.10",
TFL CORPORATE,MOTT MACDONALD LIMITED,Planning & Development Consultancy,1001\5109390328,17-Sep-18,"47,395.22",
SURFACE TRANSPORT CORP,ATKINS LIMITED,Contracted Services - Highway Bridges,1002\5109348341,08-Oct-18,"47,362.49",
LUL NOMINEE SSL LIMITED,CLESHAR CONTRACT SERVICES LTD,Track General Maintenance,1031\5109404931,10-Oct-18,"47,331.58",
LUL NOMINEE SSL LIMITED,AMARO SIGNALLING LIMITED,Civil Engineering Construction Works,1031\5109404287,10-Oct-18,"47,132.05",
LONDON UNDERGROUND LTD,MORGAN SINDALL  PLC,MR Construction Costs,1005\5109401393,03-Oct-18,"47,097.44",
TRANSPORT TRADING LTD,FUJITSU SERVICES LTD,IT Consultancy,1004\5109367116,26-Sep-18,"47,031.22",
RAIL FOR LONDON LIMITED,MTR CORPORATION (CROSSRAIL) LTD,Management & Support Consultancy,1020\5109407042,10-Oct-18,"46,944.68",
LUL NOMINEE SSL LIMITED,UESL,MR Construction Costs,1031\5109396068,24-Sep-18,"46,898.04",
LUL NOMINEE SSL LIMITED,MORSON HUMAN RESOURCES LTD,Track General Maintenance,1031\5109390411,17-Sep-18,"46,785.72",
LUL NOMINEE SSL LIMITED,JNG CONSTRUCTION & ENGINEERING,MR Construction Costs,1031\5109401456,03-Oct-18,"46,694.68",
LONDON UNDERGROUND LTD,CPC PROJECT SERVICES LLP,Professional Engineering Services,1005\5109403859,05-Oct-18,"46,690.00",
LONDON BUS SERVICES LTD,PROVENTIA OY,Vehicle Repairs & Maintenance,1006\5109395869,03-Oct-18,"46,605.00",
LONDON BUS SERVICES LTD,PROVENTIA OY,Vehicle Repairs & Maintenance,1006\5109397024,05-Oct-18,"46,605.00",
SURFACE TRANSPORT CORP,SKY HIGH PLC,Traffic Signals,1002\5109386897,19-Sep-18,"46,530.00",
DOCKLANDS LIGHT RAILWAY,AECOM LTD,Professional Engineering Services,1012\5109385162,26-Sep-18,"46,444.00",
LUL NOMINEE SSL LIMITED,CLESHAR CONTRACT SERVICES LTD,Track General Maintenance,1031\5109393170,17-Sep-18,"46,353.76",
LUL NOMINEE BCV LIMITED,SOLUTION RAIL LIMITED,MR Construction Costs,1033\5109393433,19-Sep-18,"46,258.76",
LUL NOMINEE SSL LIMITED,ENGIE SERVICES LTD,Equipment Repairs & Maintenance,1031\5109387998,03-Oct-18,"46,242.54",
LONDON UNDERGROUND LTD,PCG ASSOCIATES LIMITED,Signalling Systems,1005\5109406848,10-Oct-18,"46,187.60",
DOCKLANDS LIGHT RAILWAY,CLESHAR CONTRACT SERVICES LTD,Civil Engineering Construction Works,1012\5109404914,10-Oct-18,"46,132.87",
LONDON UNDERGROUND LTD,BRITISH STEEL LIMITED,Civil Engineering Construction Works,1005\5109386996,19-Sep-18,"46,080.00",
LUL NOMINEE BCV LIMITED,MACHINE TOOL ENGINEERS,Stock of Lifts and Escalators,1033\5109407001,09-Oct-18,"45,952.60",
LUL NOMINEE SSL LIMITED,CLESHAR CONTRACT SERVICES LTD,Track General Maintenance,1031\5109393163,17-Sep-18,"45,939.43",
LUL NOMINEE BCV LIMITED,RJC (UK) LTD,Lift Maintenance,1033\5109400624,01-Oct-18,"45,744.00",
CYCLE HIRE SCHEME,JOURNEYCALL LTD,Ticket & Pass Production,1016\5109383847,03-Oct-18,"45,564.72",
LONDON UNDERGROUND LTD,ALSTOM TRANSPORT LTD,Civil Engineering Construction Works,1005\5109384204,26-Sep-18,"45,400.13",
LONDON UNDERGROUND LTD,CITYLINK TELECOMMUNICATIONS LTD,Connect PFI Service Costs,1005\5109400941,10-Oct-18,"45,355.00",
LONDON UNDERGROUND LTD,NETWORK RAIL,Traction Current,1005\5109386594,26-Sep-18,"45,240.85",
LUL NOMINEE SSL LIMITED,A J WELLS & SONS LTD,MR Construction Costs,1031\5109403820,12-Oct-18,"45,187.48",
LUL NOMINEE SSL LIMITED,MANTEC ENGINEERING LTD,Fleet,1031\5109403706,08-Oct-18,"45,160.00",
DOCKLANDS LIGHT RAILWAY,KEOLIS AMEY DOCKLANDS LIMITED,Professional Engineering Services,1012\5109343915,01-Oct-18,"45,101.11",
TRANSPORT TRADING LTD,SAVILLS COMMERCIAL LTD,Commercial Property Rent,1004\1901661165,26-Sep-18,"44,943.75",
TRANSPORT TRADING LTD,DAISY COMMUNICATIONS LTD,Computer Software,1004\5109395582,08-Oct-18,"44,865.00",
LONDON UNDERGROUND LTD,OCL RAIL LTD,MR Construction Costs,1005\5109404201,08-Oct-18,"44,847.08",
LONDON BUS SERVICES LTD,PROVENTIA OY,Vehicle Repairs & Maintenance,1006\5109392704,27-Sep-18,"44,820.00",
LONDON UNDERGROUND LTD,MILLCROFT SERVICES PLC,Maintenance of Plant & Equipment,1005\5109402733,03-Oct-18,"44,737.00",
LONDON BUS SERVICES LTD,PROVENTIA OY,Vehicle Repairs & Maintenance,1006\5109388015,17-Sep-18,"44,676.00",
DOCKLANDS LIGHT RAILWAY,OYSTER SALES SERVICE,Ticket & Pass Production,1012\5109395295,10-Oct-18,"44,675.08",
TRANSPORT TRADING LTD,HEATHROW EXPRESS,Rail Settlement Plan - PAYG Creditor,1004\1901661373,26-Sep-18,"44,598.02",
TFL CORPORATE,INSIGHT DIRECT UK LIMITED,Software Maintenance,1001\5109383862,26-Sep-18,"44,550.00",
SURFACE TRANSPORT CORP,COSTAIN LTD,Contracted Services - Highway Bridges,1002\5109381116,17-Sep-18,"44,384.32",
DOCKLANDS LIGHT RAILWAY,OYSTER SALES SERVICE,Ticket & Pass Production,1012\5109391282,03-Oct-18,"44,332.51",
VICTORIA COACH STATN LTD,FLIXBUS DACH GMBH,VCS Repayments & Commission,1008\1900004256,20-Sep-18,"44,288.51",
DOCKLANDS LIGHT RAILWAY,THAMES CLIPPERS,Ticket & Pass Production,1012\1900004836,08-Oct-18,"44,262.50",
LUL NOMINEE BCV LIMITED,MORSON PROJECTS LIMITED,Maintenance Materials,1033\5109404691,05-Oct-18,"44,245.72",
LONDON UNDERGROUND LTD,INTERFLEET TECHNOLOGY LIMITED,Contractors,1005\5109394737,03-Oct-18,"44,171.32",
SURFACE TRANSPORT CORP,O2 UK LTD,IT Consultancy,1002\5109391632,03-Oct-18,"44,166.67",
TFL CORPORATE,INSIGHT DIRECT UK LIMITED,Software Maintenance,1001\5109391364,03-Oct-18,"44,081.60",
LONDON BUS SERVICES LTD,ABELLIO LONDON LTD,Rail Replacement Service Costs,1006\1900041284,01-Oct-18,"44,061.40",
TFL CORPORATE,DBDA LTD,Promotions Incentives Merchandise Give-Aways,1001\5109394645,27-Sep-18,"44,034.23",
SURFACE TRANSPORT CORP,SIMULATION SYSTEMS LTD,Equipment Repairs & Maintenance,1002\5109398577,08-Oct-18,"43,704.32",
LUL NOMINEE SSL LIMITED,EMICO LTD,Civil Engineering Construction Works,1031\5109398846,10-Oct-18,"43,676.33",
LONDON UNDERGROUND LTD,WRAGGE & CO,Legal Fees,1005\5109396439,24-Sep-18,"43,578.40",
DOCKLANDS LIGHT RAILWAY,OYSTER SALES SERVICE,Ticket & Pass Production,1012\5109383815,19-Sep-18,"43,513.18",
TFL CORPORATE,MEDIAEDGE,Radio TV Press Poster Cinema Airtime And Space,1001\5109399785,10-Oct-18,"43,463.36",
LONDON BUS SERVICES LTD,TELENT TECHNOLOGY SERVICES LTD,Maintenance of Plant & Equipment,1006\5109379858,17-Sep-18,"43,447.46",
TFL CORPORATE,UNIVERSITY OF SOUTHAMPTON,Management & Support Consultancy,1001\5109289194,08-Oct-18,"43,135.00",
LUL NOMINEE SSL LIMITED,AMTECS LTD,Fleet,1031\5109375479,17-Sep-18,"43,108.00",
DIAL A RIDE,WALTHAM FOREST CT LTD,Operator Costs,1010\5109386505,26-Sep-18,"43,106.13",
SURFACE TRANSPORT CORP,TELENT TECHNOLOGY SERVICES LTD,Traffic Signals,1002\5109399398,08-Oct-18,"43,050.65",
LONDON BUS SERVICES LTD,SKANSKA CONTRUCTIONS UK LTD,Building Maintenance & Repairs,1006\5109391940,08-Oct-18,"42,971.84",
LUL NOMINEE SSL LIMITED,MORSON HUMAN RESOURCES LTD,Track General Maintenance,1031\5109395200,19-Sep-18,"42,882.80",
LONDON UNDERGROUND LTD,IPS COMMUNICATIONS LTD,MR Construction Costs,1005\5109395960,24-Sep-18,"42,720.20",
LUL NOMINEE SSL LIMITED,1STINRAIL LIMITED,Track General Maintenance,1031\5109403635,04-Oct-18,"42,706.11",
LUL NOMINEE SSL LIMITED,MORSON HUMAN RESOURCES LTD,Track General Maintenance,1031\5109395199,19-Sep-18,"42,498.20",
TFL CORPORATE,TMP (UK) LTD,Recruitment Advertising,1001\5109290662,17-Sep-18,"42,437.29",
LONDON UNDERGROUND LTD,AXON SOLUTIONS LTD,Computer Software,1005\5109380623,19-Sep-18,"42,430.00",
LUL NOMINEE SSL LIMITED,LIONWELD KENNEDY FLOORING LTD,Signalling Systems,1031\5109387766,26-Sep-18,"42,356.16",
SURFACE TRANSPORT CORP,INTEROUTE MANAGED SERVICES UK LTD,Radio Systems Equipment & Maintenance,1002\5109395790,10-Oct-18,"42,311.56",
SURFACE TRANSPORT CORP,TELENT TECHNOLOGY SERVICES LTD,Traffic Signals,1002\5109392576,26-Sep-18,"42,098.17",
TRANSPORT TRADING LTD,DELOITTE,Planning & Development Consultancy,1004\5109391213,17-Sep-18,"42,015.00",
TFL CORPORATE,STEPHEN TROMANS QC,Legal Fees,1001\5109399620,02-Oct-18,"42,000.00",
TFL CORPORATE,O2 UK LTD,Computer Hardware,1001\5109391628,26-Sep-18,"41,798.00",
TFL CORPORATE,KPMG,Management & Support Consultancy,1001\5109392652,24-Sep-18,"41,699.28",
SURFACE TRANSPORT CORP,CSTS LTD,Traffic Signals,1002\5109398637,03-Oct-18,"41,550.48",
LONDON UNDERGROUND LTD,METS LTD,Civil Engineering Construction Works,1005\5109390817,17-Sep-18,"41,516.72",
LUL NOMINEE SSL LIMITED,CLESHAR CONTRACT SERVICES LTD,Track General Maintenance,1031\5109393154,17-Sep-18,"41,451.04",
LUL NOMINEE SSL LIMITED,CPC PROJECT SERVICES LLP,Civil Engineering Construction Works,1031\5109390599,17-Sep-18,"41,431.25",
LONDON UNDERGROUND LTD,PCG ASSOCIATES LIMITED,Signalling Systems,1005\5109396660,24-Sep-18,"41,354.20",
LUL NOMINEE SSL LIMITED,MOQUETA LTD,Maintenance Materials,1031\5109400753,03-Oct-18,"41,259.75",
LUL NOMINEE SSL LIMITED,EMERSON NETWORK POWER LTD,Equipment Repairs & Maintenance,1031\5109391795,26-Sep-18,"41,188.24",
LONDON BUS SERVICES LTD,STEWART SIGNS LTD,Printing,1006\5109403545,08-Oct-18,"41,000.00",
DOCKLANDS LIGHT RAILWAY,CH2M HILL UNITED KINGDOM,Professional Engineering Services,1012\5109388334,03-Oct-18,"40,885.00",
LUL NOMINEE SSL LIMITED,MORSON HUMAN RESOURCES LTD,Track General Maintenance,1031\5109381028,19-Sep-18,"40,849.07",
TRANSPORT TRADING LTD,TNS UK LTD,Customer Research And Counts,1004\5109387458,01-Oct-18,"40,814.25",
DOCKLANDS LIGHT RAILWAY,TNS UK LTD,Transport Planning Consultancy & Services,1012\5109380501,01-Oct-18,"40,814.00",
LUL NOMINEE SSL LIMITED,1STINRAIL LIMITED,Track General Maintenance,1031\5109403631,08-Oct-18,"40,748.09",
SURFACE TRANSPORT CORP,GARDINER & THEOBALD LLP,Planning & Development Consultancy,1002\5109388958,03-Oct-18,"40,720.00",
LONDON UNDERGROUND LTD,NETWORK RAIL,National Rail Fixed Track Access Charges,1005\5109392203,26-Sep-18,"40,625.71",
RAIL FOR LONDON LIMITED,PCG ASSOCIATES LIMITED,Vehicle Repairs & Maintenance,1020\5109403518,05-Oct-18,"40,550.00",
SURFACE TRANSPORT CORP,SYMOLOGY LIMITED,Computer Software,1002\5109400882,03-Oct-18,"40,489.93",
SURFACE TRANSPORT CORP,SRL SOLUTIONS,Contracted Services - Roads,1002\5109404084,08-Oct-18,"40,452.00",
LONDON UNDERGROUND LTD,CORONA ENERGY RETAIL 4 LTD,Gas,1005\1900205361,26-Sep-18,"40,149.00",
LONDON UNDERGROUND LTD,1STINRAIL LIMITED,Track General Maintenance,1005\5109400747,03-Oct-18,"40,082.32",
TRANSPORT TRADING LTD,GVA GRIMLEY LTD,Property Management Fees,1004\5109385259,24-Sep-18,"40,068.77",
TRANSPORT TRADING LTD,NOVACROFT DIRECT LTD,Software Maintenance,1004\5109395015,20-Sep-18,"40,000.00",
LONDON UNDERGROUND LTD,NETWORK RAIL,National Rail Schedule 4 Payments,1005\5109386658,26-Sep-18,"39,859.44",
TRANSPORT TRADING LTD,NJW LIMITED,Software Maintenance,1004\5109394660,19-Sep-18,"39,848.77",
TFL CORPORATE,COMPUTACENTER,Computer Hardware,1001\5109385285,26-Sep-18,"39,750.50",
TFL CORPORATE,GARDINER & THEOBALD LLP,Planning & Development Consultancy,1001\5109387821,03-Oct-18,"39,669.97",
LONDON UNDERGROUND LTD,MCGINLEY SUPPORT SERVICES LTD,Track General Maintenance,1005\5109405399,10-Oct-18,"39,504.04",
TFL CORPORATE,KPMG,Management & Support Consultancy,1001\5109387270,10-Oct-18,"39,500.00",
SURFACE TRANSPORT CORP,ARDENT MANAGEMENT LTD,Planning & Development Consultancy,1002\5109393365,20-Sep-18,"39,499.50",
TRANSPORT TRADING LTD,CBS OUTDOOR LIMITED,Purchase of Associates Loan Notes (Activity),1004\5109391117,01-Oct-18,"39,499.45",
LONDON UNDERGROUND LTD,NETWORK RAIL,Traction Current,1005\5109386571,26-Sep-18,"39,463.08",
LONDON BUS SERVICES LTD,VINCI CONSTRUCTION UK LTD,Building Maintenance & Repairs,1006\5109401348,03-Oct-18,"39,240.13",
RAIL FOR LONDON LIMITED,ASHURST LLP,Legal Fees,1020\5109396434,24-Sep-18,"39,061.50",
SURFACE TRANSPORT CORP,"SYSTEMS ENGINEERING, ASSESSMENT",Road Maintenance,1002\5109392792,26-Sep-18,"39,015.73",
LUL NOMINEE SSL LIMITED,JNG CONSTRUCTION & ENGINEERING,MR Construction Costs,1031\5109398960,26-Sep-18,"38,999.82",
SURFACE TRANSPORT CORP,SKY HIGH PLC,Traffic Signals,1002\5109383710,19-Sep-18,"38,995.00",
TRANSPORT TRADING LTD,SHREKS ADVENTURE,Ticket & Pass Production,1004\1901661011,19-Sep-18,"38,929.17",
TRANSPORT TRADING LTD,MULALLEY & CO LTD,Building Maintenance & Repairs,1004\5109385177,26-Sep-18,"38,906.84",
SURFACE TRANSPORT CORP,BRITISH TELECOMMUNICATIONS PLC,Contracted Services - Roads,1002\5109405258,08-Oct-18,"38,815.00",
SURFACE TRANSPORT CORP,COSTAIN LTD,Contracted Services - Highway Bridges,1002\5109396097,10-Oct-18,"38,748.22",
LUL NOMINEE SSL LIMITED,D & D RAIL LTD,MR Construction Costs,1031\5109392208,19-Sep-18,"38,735.17",
LONDON UNDERGROUND LTD,VIVASOFT LIMITED,Radio Systems Equipment & Maintenance,1005\5109394679,27-Sep-18,"38,652.00",
RAIL FOR LONDON LIMITED,WABTEC RAIL LIMITED,Management & Support Consultancy,1020\5109384460,17-Sep-18,"38,516.00",
RAIL FOR LONDON LIMITED,WABTEC RAIL LIMITED,Management & Support Consultancy,1020\5109388656,26-Sep-18,"38,516.00",
RAIL FOR LONDON LIMITED,WABTEC RAIL LIMITED,Management & Support Consultancy,1020\5109399936,10-Oct-18,"38,516.00",
DOCKLANDS LIGHT RAILWAY,DELATIM LIMITED,Civil Engineering Construction Works,1012\5109392553,19-Sep-18,"38,505.44",
TFL CORPORATE,AXA PPP HEALTHCARE,General Insurance,1001\5109405382,08-Oct-18,"38,476.26",
SURFACE TRANSPORT CORP,TELENT TECHNOLOGY SERVICES LTD,Traffic Signals,1002\5109392795,17-Sep-18,"38,433.97",
LONDON UNDERGROUND LTD,MORSON INTERNATIONAL,Traction Current,1005\5109379947,17-Sep-18,"38,358.12",
LONDON UNDERGROUND LTD,LANES GROUP PLC,Building Maintenance & Repairs,1005\5109390391,08-Oct-18,"38,336.11",
TRANSPORT TRADING LTD,CORONA ENERGY RETAIL 4 LTD,Gas,1004\1901661128,26-Sep-18,"38,121.69",
SURFACE TRANSPORT CORP,ATKINS LIMITED,Contracted Services - Tunnels,1002\5109384336,26-Sep-18,"38,020.33",
TFL CORPORATE,TNS UK LTD,Research For Marketing Campaigns And Activities,1001\5109387668,01-Oct-18,"38,000.00",
LONDON BUS SERVICES LTD,TRUEFORM ENGINEERING LTD,Purchase of Land & Buildings,1006\5109338686,04-Oct-18,"38,000.00",
LUL NOMINEE SSL LIMITED,HYDER CONSULTING (UK) LTD,Professional Engineering Services,1031\5109405386,08-Oct-18,"37,982.14",
LUL NOMINEE BCV LIMITED,RJC (UK) LTD,MR Construction Costs,1033\5109398706,26-Sep-18,"37,936.46",
DIAL A RIDE,WESTWAY COMMUNITY TRANSPORT,Operator Costs,1010\5109405042,10-Oct-18,"37,926.10",
LONDON UNDERGROUND LTD,IPS COMMUNICATIONS LTD,MR Construction Costs,1005\5109404190,12-Oct-18,"37,923.67",
LONDON BUS SERVICES LTD,TRAPEZE GROUP (UK),Maintenance of Plant & Equipment,1006\5109398739,01-Oct-18,"37,878.00",
DOCKLANDS LIGHT RAILWAY,MOTT MACDONALD LIMITED,Professional Engineering Services,1012\5109399598,01-Oct-18,"37,644.43",
SURFACE TRANSPORT CORP,TELENT TECHNOLOGY SERVICES LTD,Traffic Signals,1002\5109392579,26-Sep-18,"37,530.89",
TUBE LINES LTD,LIGHT GREEN POWER,Utility,798497,21-Sep-18,"37,500.00",
LONDON UNDERGROUND LTD,DUCTCLEAN (UK) LTD T/A DCUK FM,Building Maintenance & Repairs,1005\5109393358,19-Sep-18,"37,341.93",
RAIL FOR LONDON LIMITED,STADLER PANKOW GMBH,Stock of Fleet,1020\5109391857,05-Oct-18,"37,155.76",
SURFACE TRANSPORT CORP,MOTT MACDONALD LIMITED,Contracted Services - Highway Bridges,1002\5109395572,03-Oct-18,"37,048.33",
LUL NOMINEE SSL LIMITED,BERENDSEN,Track General Maintenance,1031\5109395026,10-Oct-18,"37,012.48",
TFL CORPORATE,PROBRAND LTD,Software Maintenance,1001\5109387334,01-Oct-18,"36,990.00",
TFL CORPORATE,MARSH SERVICES LTD,General Insurance,1001\5109391098,17-Sep-18,"36,974.00",
SURFACE TRANSPORT CORP,RINGWAY JACOBS LIMITED,Statutory Ads Notices Communications & Consultatio,1002\5109399513,01-Oct-18,"36,800.00",
DOCKLANDS LIGHT RAILWAY,GRANT THORNTON UK LLP,Management & Support Consultancy,1012\5109402708,10-Oct-18,"36,774.07",
LONDON BUS SERVICES LTD,EDF ENERGY,Building Maintenance & Repairs,1006\5109394983,24-Sep-18,"36,770.25",
LONDON UNDERGROUND LTD,BRIDGEWAY CONSTRUCTION LTD,MR Construction Costs,1005\5109399968,08-Oct-18,"36,694.91",
TRANSPORT TRADING LTD,JNG CONSTRUCTION & ENGINEERING,Building Maintenance & Repairs,1004\5109399462,01-Oct-18,"36,676.47",
LONDON BUS SERVICES LTD,PROVENTIA OY,Vehicle Repairs & Maintenance,1006\5109384872,18-Sep-18,"36,551.25",
LONDON UNDERGROUND LTD,HYDER CONSULTING (UK) LTD,MR Construction Costs,1005\5109325156,08-Oct-18,"36,384.00",
LUL NOMINEE SSL LIMITED,MORSON HUMAN RESOURCES LTD,Track General Maintenance,1031\5109390498,17-Sep-18,"36,369.15",
DOCKLANDS LIGHT RAILWAY,KEOLIS AMEY DOCKLANDS LIMITED,Professional Engineering Services,1012\5109371935,01-Oct-18,"36,347.19",
LONDON RIVER SERVICES LTD,CROWN ESTATE,Other Landlord Charges LRS,1007\5109390563,03-Oct-18,"36,252.35",
RAIL FOR LONDON LIMITED,LANES GROUP PLC,Building Maintenance & Repairs,1020\5109387914,26-Sep-18,"36,198.32",
LUL NOMINEE SSL LIMITED,GIFFEN GROUP LTD,Civil Engineering Construction Works,1031\5109396266,24-Sep-18,"36,192.31",
SURFACE TRANSPORT CORP,TELENT TECHNOLOGY SERVICES LTD,Traffic Signals,1002\5109399360,08-Oct-18,"36,153.04",
DOCKLANDS LIGHT RAILWAY,OYSTER SALES SERVICE,Ticket & Pass Production,1012\5109387298,26-Sep-18,"36,095.40",
LUL NOMINEE SSL LIMITED,DELATIM LIMITED,MR Construction Costs,1031\5109407511,10-Oct-18,"36,089.65",
LONDON UNDERGROUND LTD,METS LTD,Civil Engineering Construction Works,1005\5109400762,03-Oct-18,"36,082.72",
SURFACE TRANSPORT CORP,SIEMENS MOBILITY LIMITED,Road Maintenance,1002\5109391310,26-Sep-18,"35,919.60",
LUL NOMINEE SSL LIMITED,K&M MCLOUGHLIN DECORATING LTD,MR Construction Costs,1031\5109404246,08-Oct-18,"35,847.81",
TFL CORPORATE,MARSH SERVICES LTD,General Insurance,1001\5109391104,26-Sep-18,"35,840.00",
TFL CORPORATE,GROUNDWORK LONDON,External Events Roads Shows And Face To Face,1001\5109395364,24-Sep-18,"35,733.94",
SURFACE TRANSPORT CORP,LONDON BOROUGH OF HAVERING,Borough Services - Claim Against Pr Yr Accrual,1002\1900055979,24-Sep-18,"35,722.29",
LONDON UNDERGROUND LTD,ALSTOM NL SERVICE PROVISION LTD,Fleet Tsssa Contract,1005\5109388510,26-Sep-18,"35,572.60",
TFL CORPORATE,INSIGHT DIRECT UK LIMITED,Software Maintenance,1001\5109396125,10-Oct-18,"35,443.00",
LUL NOMINEE SSL LIMITED,EASTERN COMPRESSORS LTD,Equipment Repairs & Maintenance,1031\5109387776,25-Sep-18,"35,300.00",
LUL NOMINEE SSL LIMITED,EASTERN COMPRESSORS LTD,Equipment Repairs & Maintenance,1031\5109403100,03-Oct-18,"35,300.00",
RAIL FOR LONDON LIMITED,BT SERVICE AGILITY,Telephony Fixed,1020\1900004275,08-Oct-18,"35,089.59",
TFL CORPORATE,GLOBAL SWITCH LIMITED,Manage IT Services,1001\5109392014,17-Sep-18,"34,977.72",
TFL CORPORATE,GLOBAL SWITCH LIMITED,Manage IT Services,1001\5109392021,17-Sep-18,"34,977.72",
DOCKLANDS LIGHT RAILWAY,KEOLIS AMEY DOCKLANDS LIMITED,Professional Engineering Services,1012\5109393401,10-Oct-18,"34,920.51",
TRANSPORT TRADING LTD,ROYAL BOROUGH KENSINGTON & CHELSEA,Rates,1004\1901661491,27-Sep-18,"34,884.00",
RAIL FOR LONDON LIMITED,PCG ASSOCIATES LIMITED,Vehicle Repairs & Maintenance,1020\5109403500,05-Oct-18,"34,750.00",
TRANSPORT TRADING LTD,NJW LIMITED,Planning & Development Consultancy,1004\5109405072,09-Oct-18,"34,525.77",
SURFACE TRANSPORT CORP,TELENT TECHNOLOGY SERVICES LTD,Road Maintenance,1002\5109392145,24-Sep-18,"34,325.05",
TRANSPORT TRADING LTD,INSTANT OFFICES MANAGED LLP,Commercial Property Rent,1004\1901660634,17-Sep-18,"34,158.00",
TRANSPORT TRADING LTD,THE LONDON EYE COMPANY LTD,Ticket & Pass Production,1004\1901661004,26-Sep-18,"34,138.33",
TRANSPORT TRADING LTD,PROPERTY MARKET ANALYSIS LLP,Publications & Periodicals,1004\5109398357,26-Sep-18,"33,971.00",
DIAL A RIDE,WANDSWORTH COMMUNITY TRANSPORT,Operator Costs,1010\5109400224,09-Oct-18,"33,906.00",
LONDON UNDERGROUND LTD,MILLCROFT SERVICES PLC,Building Maintenance & Repairs,1005\5109402734,05-Oct-18,"33,822.75",
LONDON UNDERGROUND LTD,NETWORK RAIL,National Rail Signal Control Charges,1005\5109386891,26-Sep-18,"33,751.67",
LUL NOMINEE BCV LIMITED,BARWIT CONTROL SYSTEMS LTD,Lift Maintenance,1033\5109396119,26-Sep-18,"33,746.48",
LONDON UNDERGROUND LTD,MCGINLEY SUPPORT SERVICES LTD,Track General Maintenance,1005\5109398559,26-Sep-18,"33,726.79",
LONDON BUS SERVICES LTD,PROVENTIA OY,Vehicle Repairs & Maintenance,1006\5109399276,09-Oct-18,"33,671.25",
SURFACE TRANSPORT CORP,WDM LTD,Road Maintenance,1002\5109397015,25-Sep-18,"33,598.97",
TRANSPORT TRADING LTD,EMBER REAL RESULTS,Staff Training,1004\5109398563,27-Sep-18,"33,450.00",
SURFACE TRANSPORT CORP,SIEMENS MOBILITY LIMITED,Road Maintenance,1002\5109391313,24-Sep-18,"33,387.62",
LUL NOMINEE SSL LIMITED,POS RAIL SERVICES LTD,MR Construction Costs,1031\5109390814,17-Sep-18,"33,375.45",
TRANSPORT TRADING LTD,NOVACROFT DIRECT LTD,Ticket & Pass Production,1004\5109398231,01-Oct-18,"33,334.85",
LONDON UNDERGROUND LTD,NCP SERVICES LTD,Property Development-Planning & Development Consul,1005\5109387584,19-Sep-18,"33,287.25",
LUL NOMINEE SSL LIMITED,1STINRAIL LIMITED,Track General Maintenance,1031\5109399973,28-Sep-18,"33,157.20",
SURFACE TRANSPORT CORP,NETWORK RAIL,Contracted Services - Highway Bridges,1002\5109393527,10-Oct-18,"33,123.79",
LUL NOMINEE SSL LIMITED,CLANCY DOCWRA LTD,Building Maintenance & Repairs,1031\5109398797,26-Sep-18,"33,091.49",
LONDON BUS SERVICES LTD,FREIGHT TRANSPORT ASSOCIATION,Management & Support Consultancy,1006\5109383672,19-Sep-18,"33,061.40",
LUL NOMINEE BCV LIMITED,CEMEX UK OPERATIONS LTD,Track General Maintenance,1033\5109394780,10-Oct-18,"33,000.00",
RAIL FOR LONDON LIMITED,LEND LEASE CONSULTING (EMEA) LTD,Professional Engineering Services,1020\5109399475,27-Sep-18,"32,971.54",
TFL CORPORATE,PUNTER SOUTHALL,Management & Support Consultancy,1001\5109394867,08-Oct-18,"32,940.00",
SURFACE TRANSPORT CORP,ATKINS LIMITED,Contracted Services - Highway Bridges,1002\5109325542,03-Oct-18,"32,844.97",
LUL NOMINEE BCV LIMITED,MORGANITE ELECTRICAL CARBON LTD,Fleet,1033\5109388317,01-Oct-18,"32,840.00",
LONDON UNDERGROUND LTD,DPSS CABLING SERVICES LIMITED,MR Construction Costs,1005\5109404187,08-Oct-18,"32,813.99",
LONDON UNDERGROUND LTD,EC HARRIS UK LTD,MR Construction Costs,1005\5109381046,19-Sep-18,"32,805.00",
LUL NOMINEE SSL LIMITED,CPC PROJECT SERVICES LLP,Civil Engineering Construction Works,1031\5109390620,17-Sep-18,"32,790.50",
LONDON UNDERGROUND LTD,NETWORK RAIL,National Rail Fixed Track Access Charges,1005\5109386588,26-Sep-18,"32,780.37",
LONDON UNDERGROUND LTD,TRANSPORT INVESTIGATION LTD,Agency Staff,1005\5109394882,21-Sep-18,"32,760.27",
LONDON UNDERGROUND LTD,SOLUTION RAIL LIMITED,MR Construction Costs,1005\5109404318,08-Oct-18,"32,737.08",
LUL NOMINEE SSL LIMITED,GIFFEN GROUP LTD,Civil Engineering Construction Works,1031\5109396931,28-Sep-18,"32,721.40",
TRANSPORT TRADING LTD,NOVACROFT DIRECT LTD,Ticket & Pass Production,1004\5109392890,17-Sep-18,"32,657.11",
LUL NOMINEE SSL LIMITED,PELL FRISCHMANN CONSULTANTS LTD,Civil Engineering Construction Works,1031\5109405789,10-Oct-18,"32,583.00",
LONDON UNDERGROUND LTD,AURORA LIFTS LTD,Escalators,1005\5109393349,08-Oct-18,"32,581.03",
LONDON BUS SERVICES LTD,UNIVERSITYBUS LTD,Bus Contract Payments,1006\1900041311,28-Sep-18,"32,528.83",
LUL NOMINEE SSL LIMITED,ABB LTD,Electrical Equipment Maintenance,1031\5109392692,10-Oct-18,"32,518.18",
LONDON UNDERGROUND LTD,ONE TRANSPORT LIMITED,Travel to/from work (Unsocial Hours),1005\5109395448,25-Sep-18,"32,449.94",
LUL NOMINEE BCV LIMITED,M J QUINN INTEGRATED SERVICES,MR Construction Costs,1033\5109396104,03-Oct-18,"32,376.96",
LUL NOMINEE SSL LIMITED,GPX ENGINEERING LTD,Civil Engineering Construction Works,1031\5109403144,09-Oct-18,"32,363.40",
TRANSPORT TRADING LTD,VOGUE CONTRACTORS LTD,Building Maintenance & Repairs,1004\5109388413,17-Sep-18,"32,335.00",
SURFACE TRANSPORT CORP,LONDON BOROUGH OF HAVERING,Borough Services - Claim Against Pr Yr Accrual,1002\1900056309,24-Sep-18,"32,288.30",
LONDON TRANSPORT MUSEUM,INTERSERVE,Security Services (Guards),1011\5109389131,03-Oct-18,"32,242.93",
LONDON UNDERGROUND LTD,MORSON HUMAN RESOURCES LTD,Agency Staff,1005\5109386167,01-Oct-18,"32,116.01",
LUL NOMINEE SSL LIMITED,1STINRAIL LIMITED,Track General Maintenance,1031\5109403637,04-Oct-18,"32,079.94",
TUBE LINES LTD,L.B. FOSTER RAIL TECH LTD,Materials,799735,12-Oct-18,"32,000.00",
TFL CORPORATE,GRANT THORNTON UK LLP,Management & Support Consultancy,1001\5109400836,03-Oct-18,"31,998.06",
LONDON UNDERGROUND LTD,MORSON INTERNATIONAL,Traction Current,1005\5109400905,01-Oct-18,"31,895.88",
TRANSPORT TRADING LTD,CAPITAL & COUNTIES CG LIMITED,Commercial Property Rent,1004\1901661219,26-Sep-18,"31,834.38",
LONDON UNDERGROUND LTD,STEPHENSON HARWOOD,Legal Fees,1005\5109398969,26-Sep-18,"31,678.00",
LONDON UNDERGROUND LTD,DUCTCLEAN (UK) LTD T/A DCUK FM,Building Maintenance & Repairs,1005\5109400630,01-Oct-18,"31,610.11",
LONDON UNDERGROUND LTD,ALSTOM NL SERVICE PROVISION LTD,Fleet Tsssa Contract,1005\5109388509,26-Sep-18,"31,587.95",
TRANSPORT TRADING LTD,HAYS ACCOUNTANCY PERSONNEL,Agency Staff,1004\5109389630,08-Oct-18,"31,523.46",
SURFACE TRANSPORT CORP,LONDON BOROUGH OF HAVERING,Borough Services - Claim Against Pr Yr Accrual,1002\1900056209,24-Sep-18,"31,419.25",
TFL CORPORATE,MEDIAEDGE,Radio TV Press Poster Cinema Airtime And Space,1001\5109395500,01-Oct-18,"31,417.35",
TFL CORPORATE,BT SERVICE AGILITY,Telephony Fixed,1001\1900062030,10-Oct-18,"31,310.00",
LONDON UNDERGROUND LTD,E.ON CONTROL SOLUTIONS LTD,MR Construction Costs,1005\5109407237,10-Oct-18,"31,275.05",
TRANSPORT TRADING LTD,CBS OUTDOOR LIMITED,Purchase of Associates Loan Notes (Activity),1004\5109391060,01-Oct-18,"31,258.53",
LONDON UNDERGROUND LTD,DELATIM LIMITED,MR Construction Costs,1005\5109390521,17-Sep-18,"31,214.66",
SURFACE TRANSPORT CORP,TELENT TECHNOLOGY SERVICES LTD,Traffic Signals,1002\5109391411,26-Sep-18,"31,209.93",
LONDON UNDERGROUND LTD,MORSON INTERNATIONAL,Traction Current,1005\5109379967,17-Sep-18,"31,165.56",
LONDON BUS SERVICES LTD,ARRIVA LONDON NORTH LTD,Vehicle Repairs & Maintenance,1006\5109390505,24-Sep-18,"31,150.00",
TFL CORPORATE,CONFEDERATION OF BRITISH INDUSTRY,Publications & Periodicals,1001\5109402704,10-Oct-18,"31,000.00",
LONDON UNDERGROUND LTD,NCP SERVICES LTD,Property Development-Planning & Development Consul,1005\5109392714,10-Oct-18,"30,977.58",
TRANSPORT TRADING LTD,CITY OF WESTMINSTER,Rates,1004\1901661472,27-Sep-18,"30,890.00",
TFL CORPORATE,CVENT EUROPE LTD,Data Hosting Email Design And Transmission Inc SMS,1001\5109355550,17-Sep-18,"30,825.00",
TFL CORPORATE,SAP UK LTD,Software Maintenance,1001\5109397043,26-Sep-18,"30,660.00",
DOCKLANDS LIGHT RAILWAY,STANNAH LIFT SERVICES LTD,Civil Engineering Construction Works,1012\5109384495,08-Oct-18,"30,648.60",
DOCKLANDS LIGHT RAILWAY,SMB ELECTRICAL CONTRACTORS LTD,Civil Engineering Construction Works,1012\5109391735,17-Sep-18,"30,555.00",
SURFACE TRANSPORT CORP,EDF ENERGY,Electricity,1002\5109395449,26-Sep-18,"30,536.59",
TFL CORPORATE,CAPITA BUSINESS SERVICES LTD,Recruitment Expenses,1001\5109385399,01-Oct-18,"30,517.10",
TUBE LINES LTD,HEGENSCHEIDT-MFD GMBH,Maintenance,799016,11-Oct-18,"30,500.00",
SURFACE TRANSPORT CORP,TELENT TECHNOLOGY SERVICES LTD,Traffic Signals,1002\5109399387,08-Oct-18,"30,489.21",
LUL NOMINEE SSL LIMITED,BCM  CONSTRUCTION LIMITED,Civil Engineering Construction Works,1031\5109395004,03-Oct-18,"30,459.07",
LONDON UNDERGROUND LTD,BROOKVEX IMS LTD,MR Construction Costs,1005\5109398135,10-Oct-18,"30,126.97",
LONDON UNDERGROUND LTD,MORSON INTERNATIONAL,Traction Current,1005\5109400872,01-Oct-18,"30,089.36",
LONDON UNDERGROUND LTD,QUILL CONSTRUCTION LIMITED,Building Maintenance & Repairs,1005\5109398494,28-Sep-18,"30,000.00",
TFL CORPORATE,PARSEQ LIMITED,Management & Support Consultancy,1001\5109369204,01-Oct-18,"30,000.00",
TRANSPORT TRADING LTD,LINDNER GROUP,Engineering Feasibility Studies,1004\5109380476,20-Sep-18,"30,000.00",
TFL CORPORATE,C.A.T.E.R EU,Contractors,1001\5109390774,17-Sep-18,"29,984.50",
TUBE LINES LTD,GNB INDUSTRIAL POWER (UK) LTD,Materials,799093,28-Sep-18,"29,870.60",
LONDON BUS SERVICES LTD,PROVENTIA OY,Vehicle Repairs & Maintenance,1006\5109392592,27-Sep-18,"29,784.00",
TFL CORPORATE,TRUSTE,Computer Hardware,1001\5109399588,05-Oct-18,"29,750.00",
LUL NOMINEE SSL LIMITED,BROOKVEX IMS LTD,Civil Engineering Construction Works,1031\5109399961,01-Oct-18,"29,708.29",
LONDON UNDERGROUND LTD,MORSON INTERNATIONAL,Traction Current,1005\5109400908,01-Oct-18,"29,568.28",
TFL CORPORATE,QUOD (2010) LIMITED,Planning & Development Consultancy,1001\5109403516,10-Oct-18,"29,511.00",
LONDON UNDERGROUND LTD,MET SYSTEMS LTD,MR Construction Costs,1005\5109405794,10-Oct-18,"29,506.26",
TFL CORPORATE,C.A.T.E.R EU,Contractors,1001\5109407124,10-Oct-18,"29,505.00",
LONDON BUS SERVICES LTD,AIR PRODUCTS PLC,Vehicle Running Costs,1006\5109384313,26-Sep-18,"29,450.83",
LONDON TRANSPORT MUSEUM,PARAGON CREATIVE LTD,Maintenance of Plant & Equipment,1011\5109408148,11-Oct-18,"29,411.62",
TRANSPORT TRADING LTD,ENGIE SERVICES LTD,Equipment Repairs & Maintenance,1004\5109387952,03-Oct-18,"29,296.13",
LONDON UNDERGROUND LTD,ALSTOM TRANSPORT LTD,Maintenance Materials,1005\5109387982,10-Oct-18,"29,231.40",
SURFACE TRANSPORT CORP,TELENT TECHNOLOGY SERVICES LTD,Traffic Signals,1002\5109392778,17-Sep-18,"29,192.21",
LONDON BUS SERVICES LTD,AIR PRODUCTS PLC,Vehicle Running Costs,1006\5109384320,26-Sep-18,"29,190.00",
DOCKLANDS LIGHT RAILWAY,EXCEL EXHIBITION CENTRE,Civil Engineering Construction Works,1012\5109383984,09-Oct-18,"29,166.67",
DOCKLANDS LIGHT RAILWAY,EXCEL EXHIBITION CENTRE,Civil Engineering Construction Works,1012\5109403441,09-Oct-18,"29,166.67",
DIAL A RIDE,BRENT COMMUNITY TRANSPORT,Operator Costs,1010\5109407935,12-Oct-18,"29,065.15",
TFL CORPORATE,DENTONS UKMEA LLP,Legal Fees,1001\5109398964,26-Sep-18,"29,000.00",
LONDON UNDERGROUND LTD,WSO2 UK LIMITED,Software Maintenance,1005\5109392706,10-Oct-18,"28,987.50",
TRANSPORT TRADING LTD,CASTLE WATER LIMITED,Water,1004\1901661296,24-Sep-18,"28,815.83",
SURFACE TRANSPORT CORP,MOTT MACDONALD LIMITED,Professional Engineering Services,1002\5109395961,10-Oct-18,"28,775.88",
LONDON UNDERGROUND LTD,NCP SERVICES LTD,Property Development-Planning & Development Consul,1005\5109387562,26-Sep-18,"28,696.31",
SURFACE TRANSPORT CORP,TELENT TECHNOLOGY SERVICES LTD,Road Maintenance,1002\5109399388,10-Oct-18,"28,664.84",
TRANSPORT TRADING LTD,CITY OF WESTMINSTER,Rates,1004\1901661476,27-Sep-18,"28,648.00",
RAIL FOR LONDON LIMITED,WABTEC RAIL LIMITED,Management & Support Consultancy,1020\5109384464,19-Sep-18,"28,636.00",
TRANSPORT TRADING LTD,NOVACROFT DIRECT LTD,Ticket & Pass Production,1004\5109398519,01-Oct-18,"28,572.38",
SURFACE TRANSPORT CORP,EDF ENERGY,Electricity,1002\5109390670,17-Sep-18,"28,462.79",
SURFACE TRANSPORT CORP,TOMTOM GLOBAL CONTENT B.V.,Computer Software,1002\5109405676,09-Oct-18,"28,440.00",
LONDON UNDERGROUND LTD,MORSON INTERNATIONAL,Traction Current,1005\5109400895,01-Oct-18,"28,400.00",
LONDON UNDERGROUND LTD,AURORA LIFTS LTD,Escalators,1005\5109393363,08-Oct-18,"28,370.10",
LONDON BUS SERVICES LTD,AIR PRODUCTS PLC,Vehicle Running Costs,1006\5109384317,26-Sep-18,"28,223.32",
VICTORIA COACH STATN LTD,STAGECOACH,VCS Repayments & Commission,1008\1900004251,26-Sep-18,"28,115.93",
LONDON UNDERGROUND LTD,ALSTOM NL SERVICE PROVISION LTD,Professional Engineering Services,1005\5109382977,26-Sep-18,"28,102.78",
TUBE LINES LTD,TELENT COMMUNICATIONS LIMITED,Sub-Contractor,798245,19-Sep-18,"28,096.25",
LUL NOMINEE SSL LIMITED,TRATOS LTD,Electrical & Electronic Engineering,1031\5109384015,17-Sep-18,"28,080.00",
LONDON UNDERGROUND LTD,NETWORK RAIL,Traction Current,1005\5109386883,26-Sep-18,"28,044.42",
SURFACE TRANSPORT CORP,LONDON COUNCILS LTD,Borough Services,1002\1900056368,17-Sep-18,"28,013.75",
TFL CORPORATE,HERBERT SMITH LLP,Legal Fees,1001\1900061911,08-Oct-18,"28,000.00",
LUL NOMINEE BCV LIMITED,BERENDSEN,Track General Maintenance,1033\5109395029,10-Oct-18,"27,925.20",
LONDON UNDERGROUND LTD,LANES GROUP PLC,Building Maintenance & Repairs,1005\5109391743,10-Oct-18,"27,908.55",
RAIL FOR LONDON LIMITED,MOTT MACDONALD LIMITED,Management & Support Consultancy,1020\5109383367,19-Sep-18,"27,765.38",
SURFACE TRANSPORT CORP,TIMOTHY STRAKER QC,Legal Fees,1002\5109403692,04-Oct-18,"27,710.00",
TRANSPORT TRADING LTD,CITY OF WESTMINSTER,Rates,1004\1901661480,27-Sep-18,"27,702.00",
PUBLIC CARRIAGE OFFICE,NSL LIMITED,PCO Outsourced Services,1003\5109385434,19-Sep-18,"27,639.23",
LUL NOMINEE SSL LIMITED,WHITTLE FLOORING COMPANY LIMITED,Protective Clothing,1031\5109394884,19-Sep-18,"27,632.00",
LONDON UNDERGROUND LTD,SCHINDLER LTD,Escalators,1005\5109404568,08-Oct-18,"27,611.85",
TFL CORPORATE,HALCROW GROUP LTD,Planning & Development Consultancy,1001\5109387055,17-Sep-18,"27,561.53",
LUL NOMINEE SSL LIMITED,T.R.I. CONTRACTING SERVICES LTD,MR Construction Costs,1031\5109404311,08-Oct-18,"27,487.86",
LONDON UNDERGROUND LTD,EDF ENERGY,Electricity,1005\1900205320,03-Oct-18,"27,487.65",
TFL CORPORATE,CODEC,Planning & Development Consultancy,1001\5109401509,10-Oct-18,"27,480.00",
LONDON UNDERGROUND LTD,MORSON INTERNATIONAL,Traction Current,1005\5109400911,01-Oct-18,"27,440.64",
DOCKLANDS LIGHT RAILWAY,AECOM LTD,Professional Engineering Services,1012\5109385163,26-Sep-18,"27,370.45",
LONDON BUS SERVICES LTD,MITIE CLEANING & ENVIRONMENTAL,Building Maintenance & Repairs,1006\5109392517,08-Oct-18,"27,263.60",
TRANSPORT TRADING LTD,THE LONDON EYE COMPANY LTD,Ticket & Pass Production,1004\1901661010,19-Sep-18,"27,185.00",
SURFACE TRANSPORT CORP,SIEMENS MOBILITY LIMITED,Road Maintenance,1002\5109391731,01-Oct-18,"27,117.29",
RAIL FOR LONDON LIMITED,LANES GROUP PLC,Management & Support Consultancy,1020\5109380150,17-Sep-18,"27,093.37",
RAIL FOR LONDON LIMITED,LANES GROUP PLC,Management & Support Consultancy,1020\5109394985,10-Oct-18,"27,093.37",
LONDON BUS SERVICES LTD,AIR PRODUCTS PLC,Vehicle Running Costs,1006\5109384315,26-Sep-18,"27,061.17",
LUL NOMINEE SSL LIMITED,1STINRAIL LIMITED,Track General Maintenance,1031\5109400608,01-Oct-18,"26,999.92",
LONDON UNDERGROUND LTD,NCP SERVICES LTD,Planning & Development Consultancy,1005\5109387575,19-Sep-18,"26,993.23",
LONDON UNDERGROUND LTD,NCP SERVICES LTD,Planning & Development Consultancy,1005\5109387617,19-Sep-18,"26,993.23",
LONDON UNDERGROUND LTD,NCP SERVICES LTD,Planning & Development Consultancy,1005\5109392868,10-Oct-18,"26,986.00",
LUL NOMINEE SSL LIMITED,XYLEM FLOW CONTROL LTD,Fleet,1031\5109380688,19-Sep-18,"26,975.00",
LONDON UNDERGROUND LTD,NCP SERVICES LTD,Planning & Development Consultancy,1005\5109387564,26-Sep-18,"26,972.57",
TRANSPORT TRADING LTD,TELENT TECHNOLOGY SERVICES LTD,Equipment Repairs & Maintenance,1004\5109389134,03-Oct-18,"26,933.97",
TUBE LINES LTD,S GRUNDON (WASTE) LTD,Waste Removal,799719,28-Sep-18,"26,877.38",
TFL CORPORATE,RAMBOLL UK LTD,Planning & Development Consultancy,1001\5109391746,19-Sep-18,"26,843.00",
LONDON UNDERGROUND LTD,LENDLEASE JACOBS JOINT VENTURE,Contractors,1005\5109392681,10-Oct-18,"26,803.25",
TRANSPORT TRADING LTD,THE LONDON EYE COMPANY LTD,Ticket & Pass Production,1004\1901661008,19-Sep-18,"26,794.58",
LONDON UNDERGROUND LTD,K & L GATES,Legal Fees,1005\5109407720,11-Oct-18,"26,712.10",
LONDON UNDERGROUND LTD,BOMBARDIER TRANSPORT UK,Management & Support Consultancy,1005\5109383728,19-Sep-18,"26,695.00",
LONDON UNDERGROUND LTD,JK RAIL LIMITED,Track General Maintenance,1005\5109398398,03-Oct-18,"26,692.00",
LONDON UNDERGROUND LTD,THALES GROUND TRANSPORTATION SYSTEM,Civil Engineering Construction Works,1005\5109400900,12-Oct-18,"26,658.47",
LUL NOMINEE BCV LIMITED,JOHN BRADLEY & SON (SPRINGS) LTD,Track General Maintenance,1033\5109380270,17-Sep-18,"26,500.00",
LONDON BUS SERVICES LTD,ARRIVA LONDON NORTH LTD,Rail Replacement Service Costs,1006\1900041366,08-Oct-18,"26,438.18",
LONDON UNDERGROUND LTD,PELL FRISCHMANN CONSULTANTS LTD,Civil Engineering Construction Works,1005\5109403431,10-Oct-18,"26,392.50",
LONDON UNDERGROUND LTD,FUSION PEOPLE LIMITED,Agency Staff,1005\5109394476,19-Sep-18,"26,366.61",
TFL CORPORATE,SALESFORCE,Management & Support Consultancy,1001\5109395895,21-Sep-18,"26,341.25",
LONDON UNDERGROUND LTD,TRACKWORK LTD,Track General Maintenance,1005\5109392131,17-Sep-18,"26,340.00",
LONDON UNDERGROUND LTD,PROJECT 7 CONSULTANCY LTD,Professional Engineering Services,1005\5109387474,26-Sep-18,"26,310.03",
TFL CORPORATE,D & D RAIL LTD,Building Maintenance & Repairs,1001\5109404901,05-Oct-18,"26,301.08",
LONDON UNDERGROUND LTD,MET SYSTEMS LTD,MR Construction Costs,1005\5109395036,19-Sep-18,"26,145.31",
SURFACE TRANSPORT CORP,LONDON BOROUGH OF LAMBETH,Borough Services - Claim Against Pr Yr Accrual,1002\1900056308,24-Sep-18,"26,000.00",
LUL NOMINEE SSL LIMITED,DAVID BROWN GEAR SYSTEMS LTD,Fleet,1031\5109385428,26-Sep-18,"26,000.00",
LONDON UNDERGROUND LTD,MORSON HUMAN RESOURCES LTD,Agency Staff,1005\5109382443,24-Sep-18,"25,942.40",
LONDON RIVER SERVICES LTD,PORT OF LONDON AUTHORITY,Pier Charges,1007\5109383077,26-Sep-18,"25,780.31",
LUL NOMINEE SSL LIMITED,AGGREGATE INDUSTRIES UK LTD,Professional Engineering Services,1031\5109392566,19-Sep-18,"25,738.67",
TUBE LINES LTD,ALL STAR,Fuel,799697,26-Sep-18,"25,677.08",
LONDON UNDERGROUND LTD,NETWORK RAIL,National Rail Fixed Track Access Charges,1005\5109386561,26-Sep-18,"25,653.36",
LONDON UNDERGROUND LTD,KONE PLC,Escalators,1005\5109386884,19-Sep-18,"25,500.19",
LONDON UNDERGROUND LTD,AURORA LIFTS LTD,MR Construction Costs,1005\5109371952,08-Oct-18,"25,469.62",
PUBLIC CARRIAGE OFFICE,INSTANT OFFICES LTD,Building Maintenance & Repairs,1003\5109376265,10-Oct-18,"25,421.91",
LONDON BUS SERVICES LTD,ARRIVA LONDON NORTH LTD,Rail Replacement Service Costs,1006\1900041353,28-Sep-18,"25,355.00",
SURFACE TRANSPORT CORP,CSTS LTD,Traffic Signals,1002\5109398667,03-Oct-18,"25,308.74",
LUL NOMINEE SSL LIMITED,RJC (UK) LTD,Lift Maintenance,1031\5109400628,01-Oct-18,"25,278.00",
SURFACE TRANSPORT CORP,RAMBOLL UK LTD,Contracted Services - Roads,1002\5109395775,24-Sep-18,"25,210.46",
SURFACE TRANSPORT CORP,REDSPEED INTERNATIONAL  LTD,Maintenance of Plant & Equipment,1002\5109391932,25-Sep-18,"25,199.25",
LUL NOMINEE SSL LIMITED,CLANCY DOCWRA LTD,Civil Engineering Construction Works,1031\5109379496,17-Sep-18,"25,174.37",
TFL CORPORATE,TURNER & TOWNSEND LLP,Planning & Development Consultancy,1001\5109387451,01-Oct-18,"25,098.00",
DIAL A RIDE,HACKNEY COMMUNITY TRANSPORT,Operator Costs,1010\5109384435,19-Sep-18,"25,097.39",
TUBE LINES LTD,SNC-LAVALIN RAIL & TRANSIT LTD,Maintenance,798407,21-Sep-18,"25,061.46",
TFL CORPORATE,COMPUTACENTER,Manage IT Services,1001\5109297375,19-Sep-18,"25,000.00",
LONDON BUS SERVICES LTD,GREATER LONDON AUTHORITY,Management & Support Consultancy,1006\5109397006,10-Oct-18,"25,000.00",
LONDON UNDERGROUND LTD,ALLFORD HALL MONAGHAN MORRIS LTD,Planning & Development Consultancy,1005\5109391181,26-Sep-18,"25,000.00",
LONDON UNDERGROUND LTD,ALLFORD HALL MONAGHAN MORRIS LTD,Planning & Development Consultancy,1005\5109392150,26-Sep-18,"25,000.00",
LONDON TRANSPORT MUSEUM,QWERK LIMITED,Maintenance of Plant & Equipment,1011\5109398292,01-Oct-18,"25,000.00",
LUL NOMINEE SSL LIMITED,EMICO LTD,Civil Engineering Construction Works,1031\5109392204,17-Sep-18,"24,967.39",
SURFACE TRANSPORT CORP,TELENT TECHNOLOGY SERVICES LTD,Traffic Signals,1002\5109391306,17-Sep-18,"24,954.87",
LONDON UNDERGROUND LTD,MORSON HUMAN RESOURCES LTD,Agency Staff,1005\5109382428,24-Sep-18,"24,923.23",
LUL NOMINEE SSL LIMITED,MORSON HUMAN RESOURCES LTD,Track General Maintenance,1031\5109396913,26-Sep-18,"24,814.80",
TRANSPORT TRADING LTD,LONDON BOROUGH OF SOUTHWARK,Rates,1004\1901661423,27-Sep-18,"24,752.00",
TFL CORPORATE,TNS UK LTD,Research For Marketing Campaigns And Activities,1001\5109377757,01-Oct-18,"24,750.00",
TFL CORPORATE,EVERSHEDS,Legal Fees,1001\5109390842,19-Sep-18,"24,706.30",
TFL CORPORATE,PINDAR CREATIVE,Production Artwork And Design For Marketing,1001\5109395433,24-Sep-18,"24,673.18",
LONDON TRANSPORT MUSEUM,GBM SERVICES LTD,Office Cleaning,1011\5109405664,10-Oct-18,"24,658.95",
TFL CORPORATE,AB PUBLISHING LIMITED,Storage And Distribution Of Publicity Materials,1001\5109392536,18-Sep-18,"24,639.19",
TUBE LINES LTD,ALL STAR,Fuel,800432,10-Oct-18,"24,630.17",
TUBE LINES LTD,SCHINDLER LTD,Maintenance,798598,19-Sep-18,"24,592.17",
TUBE LINES LTD,ALL STAR,Fuel,800835,12-Oct-18,"24,540.41",
TRANSPORT TRADING LTD,TROMSOSTAN LTD,Commercial Property Rent,1004\1901661207,21-Sep-18,"24,500.00",
LONDON UNDERGROUND LTD,AURORA LIFTS LTD,Escalators,1005\5109371951,08-Oct-18,"24,483.02",
LUL NOMINEE BCV LIMITED,PROGRESS RAIL SERVICES UK LTD,Track General Maintenance,1033\5109383524,19-Sep-18,"24,411.00",
LUL NOMINEE BCV LIMITED,TELENT TECHNOLOGY SERVICES LTD,Building Maintenance & Repairs,1033\5109342875,03-Oct-18,"24,364.00",
TFL CORPORATE,MOTT MACDONALD LIMITED,Planning & Development Consultancy,1001\5109387330,01-Oct-18,"24,272.82",
TFL CORPORATE,MARSH SERVICES LTD,General Insurance,1001\5109391116,26-Sep-18,"24,113.66",
LONDON UNDERGROUND LTD,SOLUTION RAIL LIMITED,MR Construction Costs,1005\5109407062,10-Oct-18,"24,072.97",
RAIL FOR LONDON LIMITED,OTB ENGINEERING LTD,Professional Engineering Services,1020\5109392571,19-Sep-18,"24,057.80",
SURFACE TRANSPORT CORP,TELENT TECHNOLOGY SERVICES LTD,Traffic Signals,1002\5109401296,10-Oct-18,"24,056.04",
TRANSPORT TRADING LTD,CH2M HILL UNITED KINGDOM,Management & Support Consultancy,1004\5109386478,17-Sep-18,"23,931.77",
TUBE LINES LTD,ALL STAR,Fuel,800081,03-Oct-18,"23,904.12",
TUBE LINES LTD,BRYEN & LANGLEY LTD,Maintenance,799623,26-Sep-18,"23,887.74",
TFL CORPORATE,MEDIAEDGE,Social Media And Digital Advertising Space,1001\5109391823,26-Sep-18,"23,854.38",
LUL NOMINEE SSL LIMITED,DK REWIND LTD,Fleet,1031\5109404521,08-Oct-18,"23,840.00",
DIAL A RIDE,HACKNEY COMMUNITY TRANSPORT,Operator Costs,1010\5109400094,10-Oct-18,"23,776.10",
LONDON UNDERGROUND LTD,MORSON INTERNATIONAL,Traction Current,1005\5109400898,01-Oct-18,"23,747.20",
LONDON UNDERGROUND LTD,ATKINS LIMITED,Professional Engineering Services,1005\5109388559,03-Oct-18,"23,712.50",
SURFACE TRANSPORT CORP,RINGWAY JACOBS LIMITED,Contracted Services - Tunnels,1002\5109399488,03-Oct-18,"23,690.11",
LONDON UNDERGROUND LTD,MORSON HUMAN RESOURCES LTD,Agency Staff,1005\5109382446,24-Sep-18,"23,672.44",
LUL NOMINEE SSL LIMITED,GPX ENGINEERING LTD,Track General Maintenance,1031\5109408046,11-Oct-18,"23,655.57",
LONDON UNDERGROUND LTD,ONE TRANSPORT LIMITED,Travel to/from work (Unsocial Hours),1005\5109395429,20-Sep-18,"23,613.62",
TFL CORPORATE,MEDIAEDGE,Radio TV Press Poster Cinema Airtime And Space,1001\5109395856,01-Oct-18,"23,611.09",
LUL NOMINEE BCV LIMITED,SYSTEM HYGIENICS LTD,Maintenance Materials,1033\5109406951,12-Oct-18,"23,523.00",
LUL NOMINEE SSL LIMITED,TELENT TECHNOLOGY SERVICES LTD,Building Maintenance & Repairs,1031\5109394761,10-Oct-18,"23,521.09",
TFL CORPORATE,INSIGHT DIRECT UK LIMITED,Software Maintenance,1001\5109386845,26-Sep-18,"23,400.00",
LONDON UNDERGROUND LTD,MORSON INTERNATIONAL,Traction Current,1005\5109400892,01-Oct-18,"23,325.16",
LONDON UNDERGROUND LTD,FUSION PEOPLE LIMITED,Agency Staff,1005\5109394479,19-Sep-18,"23,299.65",
TFL CORPORATE,MEDIAEDGE,Radio TV Press Poster Cinema Airtime And Space,1001\5109399133,01-Oct-18,"23,275.79",
TFL CORPORATE,EQUINIX (UK) LTD,Manage IT Services,1001\5109356381,01-Oct-18,"23,241.57",
DOCKLANDS LIGHT RAILWAY,THALES RAIL SIGNALLING SOLUTIONS,Civil Engineering Construction Works,1012\5109384192,27-Sep-18,"23,190.00",
DOCKLANDS LIGHT RAILWAY,THALES RAIL SIGNALLING SOLUTIONS,Civil Engineering Construction Works,1012\5109384194,27-Sep-18,"23,190.00",
DOCKLANDS LIGHT RAILWAY,THALES RAIL SIGNALLING SOLUTIONS,Civil Engineering Construction Works,1012\5109384196,27-Sep-18,"23,190.00",
TRANSPORT TRADING LTD,METS LTD,Building Maintenance & Repairs,1004\5109404134,05-Oct-18,"23,064.01",
RAIL FOR LONDON LIMITED,WABTEC RAIL LIMITED,Management & Support Consultancy,1020\5109384456,19-Sep-18,"23,058.20",
LUL NOMINEE SSL LIMITED,AMARO SIGNALLING LIMITED,Civil Engineering Construction Works,1031\5109391245,17-Sep-18,"23,030.75",
LONDON UNDERGROUND LTD,MORSON HUMAN RESOURCES LTD,Agency Staff,1005\5109382441,24-Sep-18,"23,005.35",
LUL NOMINEE SSL LIMITED,TRACKWORK LTD,Track General Maintenance,1031\5109405777,10-Oct-18,"22,940.00",
LONDON UNDERGROUND LTD,ALSTOM NL SERVICE PROVISION LTD,Fleet Tsssa Contract,1005\5109388500,26-Sep-18,"22,895.00",
SURFACE TRANSPORT CORP,TELENT TECHNOLOGY SERVICES LTD,Road Maintenance,1002\5109395929,03-Oct-18,"22,818.03",
PUBLIC CARRIAGE OFFICE,NSL LIMITED,PCO Outsourced Services,1003\5109385435,19-Sep-18,"22,786.73",
TRANSPORT TRADING LTD,TRUEFORM ENGINEERING LTD,Management & Support Consultancy,1004\5109379441,10-Oct-18,"22,782.14",
LONDON UNDERGROUND LTD,AVS ENGINEERING & MAINTENANCE LTD,MR Construction Costs,1005\5109392180,19-Sep-18,"22,700.00",
TFL CORPORATE,EQUINIX (UK) LTD,Manage IT Services,1001\5109374628,01-Oct-18,"22,691.57",
TFL CORPORATE,EQUINIX (UK) LTD,Manage IT Services,1001\5109391270,01-Oct-18,"22,691.57",
SURFACE TRANSPORT CORP,RINGWAY JACOBS LIMITED,Road Maintenance,1002\5109399496,03-Oct-18,"22,689.33",
LUL NOMINEE BCV LIMITED,TELENT TECHNOLOGY SERVICES LTD,Building Maintenance & Repairs,1033\5109333849,19-Sep-18,"22,685.67",
TRANSPORT TRADING LTD,O2 UK LTD,Telephony Fixed,1004\5109380767,17-Sep-18,"22,660.00",
LUL NOMINEE SSL LIMITED,VVB ENGINEERING LTD,Civil Engineering Construction Works,1031\5109403443,10-Oct-18,"22,652.30",
LUL NOMINEE SSL LIMITED,AMARO SIGNALLING LIMITED,Civil Engineering Construction Works,1031\5109404292,08-Oct-18,"22,650.50",
LONDON UNDERGROUND LTD,MORSON HUMAN RESOURCES LTD,Agency Staff,1005\5109382476,24-Sep-18,"22,643.98",
TFL CORPORATE,HAYS ACCOUNTANCY PERSONNEL,Agency Staff,1001\5109378216,17-Sep-18,"22,538.25",
LONDON UNDERGROUND LTD,FIRSTCO LIMITED,Civil Engineering Construction Works,1005\5109387054,05-Oct-18,"22,456.25",
TFL CORPORATE,AECOM LTD,Planning & Development Consultancy,1001\5109393549,03-Oct-18,"22,400.00",
LONDON UNDERGROUND LTD,ALSTOM NL SERVICE PROVISION LTD,Fleet Tsssa Contract,1005\5109388499,26-Sep-18,"22,398.30",
DOCKLANDS LIGHT RAILWAY,OTB ENGINEERING LTD,Professional Engineering Services,1012\5109392537,17-Sep-18,"22,365.60",
RAIL FOR LONDON LIMITED,INFOSYS LIMITED,Management & Support Consultancy,1020\5109390822,17-Sep-18,"22,365.00",
TRANSPORT TRADING LTD,JNG CONSTRUCTION & ENGINEERING,Building Maintenance & Repairs,1004\5109407364,10-Oct-18,"22,356.61",
TRANSPORT TRADING LTD,HAYS ACCOUNTANCY PERSONNEL,Agency Staff,1004\5109378218,17-Sep-18,"22,338.21",
DOCKLANDS LIGHT RAILWAY,VANDA ENGINEERING LIMITED,Professional Engineering Services,1012\5109407547,11-Oct-18,"22,225.00",
LONDON UNDERGROUND LTD,MORSON INTERNATIONAL,Traction Current,1005\5109400902,01-Oct-18,"22,224.84",
TFL CORPORATE,COMPUTACENTER,Computer Hardware,1001\5109380649,19-Sep-18,"22,219.00",
LONDON UNDERGROUND LTD,MORSON HUMAN RESOURCES LTD,Agency Staff,1005\5109382465,24-Sep-18,"22,051.04",
LUL NOMINEE BCV LIMITED,1STINRAIL LIMITED,Track General Maintenance,1033\5109395427,24-Sep-18,"22,038.00",
LUL NOMINEE BCV LIMITED,CEMEX UK OPERATIONS LTD,Track General Maintenance,1033\5109382926,17-Sep-18,"22,000.00",
TRANSPORT TRADING LTD,NOVACROFT DIRECT LTD,Ticket & Pass Production,1004\5109398234,01-Oct-18,"21,977.56",
LONDON UNDERGROUND LTD,ENTERPRISE AMS GROUP LTD,IT Consultancy,1005\5109387783,26-Sep-18,"21,918.75",
LUL NOMINEE SSL LIMITED,ONGRADE LTD,Civil Engineering Construction Works,1031\5109391665,03-Oct-18,"21,906.00",
TRANSPORT TRADING LTD,NOVACROFT DIRECT LTD,Ticket & Pass Production,1004\5109393218,18-Sep-18,"21,850.00",
TFL CORPORATE,DB CARGO (UK) LTD,Purchase of Land & Buildings,1001\1900061783,17-Sep-18,"21,808.76",
TFL CORPORATE,EVERSHEDS,Legal Fees,1001\5109395053,19-Sep-18,"21,799.40",
LONDON RIVER SERVICES LTD,THAMES CLIPPERS,Operator Costs,1007\5109403600,04-Oct-18,"21,793.20",
SURFACE TRANSPORT CORP,NETWORK RAIL,Road Maintenance,1002\5109379206,17-Sep-18,"21,790.51",
TFL CORPORATE,LINKS SIGNS LTD,MR Construction Costs,1001\5109398152,25-Sep-18,"21,765.42",
TFL CORPORATE,CSC COMPUTER SCIENCE,Software Maintenance,1001\5109386560,26-Sep-18,"21,666.67",
LONDON UNDERGROUND LTD,RULLION ENGINEERING LTD,Agency Staff,1005\5109382832,24-Sep-18,"21,656.41",
TFL CORPORATE,PROBRAND LTD,Software Maintenance,1001\5109307609,08-Oct-18,"21,645.00",
SURFACE TRANSPORT CORP,INDRA SISTEMAS S.A.-BRANCH IN UK,Software Maintenance,1002\5109390796,03-Oct-18,"21,565.28",
LUL NOMINEE BCV LIMITED,POS RAIL SERVICES LTD,Track General Maintenance,1033\5109394687,19-Sep-18,"21,545.00",
TRANSPORT TRADING LTD,NOVACROFT DIRECT LTD,Ticket & Pass Production,1004\5109392888,25-Sep-18,"21,421.03",
TRANSPORT TRADING LTD,CATERCOVER SERVICE LTD,Electrical Equipment Maintenance,1004\5109404626,10-Oct-18,"21,416.03",
LONDON BUS SERVICES LTD,TRUEFORM ENGINEERING LTD,Building Maintenance & Repairs,1006\5109400703,01-Oct-18,"21,416.00",
LONDON UNDERGROUND LTD,GVA GRIMLEY LTD,Planning & Development Consultancy,1005\5109384372,17-Sep-18,"21,408.00",
LONDON BUS SERVICES LTD,ESOTEC LIMITED,Street Furniture,1006\5109387038,26-Sep-18,"21,379.30",
LUL NOMINEE SSL LIMITED,TRACKWORK LTD,Track General Maintenance,1031\5109405770,10-Oct-18,"21,315.00",
TFL CORPORATE,MEDIAEDGE,Radio TV Press Poster Cinema Airtime And Space,1001\5109395530,01-Oct-18,"21,301.86",
TUBE LINES LTD,ALL STAR,Fuel,799430,21-Sep-18,"21,271.03",
TRANSPORT TRADING LTD,CHANCEL STREET LTD,Commercial Property Rent,1004\1901661210,26-Sep-18,"21,250.00",
TRANSPORT TRADING LTD,KNIGHT FRANK LLP,Commercial Property Rent,1004\1901661223,26-Sep-18,"21,250.00",
DOCKLANDS LIGHT RAILWAY,DIRECT TRACK SOLUTIONS LTD,Civil Engineering Construction Works,1012\5109400819,03-Oct-18,"21,140.00",
TRANSPORT TRADING LTD,THE LONDON EYE COMPANY LTD,Ticket & Pass Production,1004\1901661009,19-Sep-18,"21,125.83",
LONDON UNDERGROUND LTD,PRIMETECH (UK) LTD,Computer Hardware,1005\5109407082,10-Oct-18,"21,000.00",
LONDON RIVER SERVICES LTD,PORT OF LONDON AUTHORITY,Pier Charges,1007\5109383086,26-Sep-18,"20,991.60",
RAIL FOR LONDON LIMITED,UNIVERSITY OF HUDDERSFIELD,Management & Support Consultancy,1020\5109359832,26-Sep-18,"20,975.00",
DOCKLANDS LIGHT RAILWAY,AECOM LTD,Professional Engineering Services,1012\5109385164,26-Sep-18,"20,944.68",
TRANSPORT TRADING LTD,WJB SERVICES LIMITED,Office Accommodation Moves,1004\5109394525,18-Sep-18,"20,944.00",
LONDON BUS SERVICES LTD,LOUGHBOROUGH UNI ENTERPRISES LTD,Management & Support Consultancy,1006\5109396640,01-Oct-18,"20,911.80",
LUL NOMINEE SSL LIMITED,MORSON HUMAN RESOURCES LTD,Track General Maintenance,1031\5109390499,17-Sep-18,"20,862.00",
LUL NOMINEE SSL LIMITED,AEI CABLES LTD,Fleet,1031\5109392011,08-Oct-18,"20,822.38",
LUL NOMINEE SSL LIMITED,LANES GROUP PLC,Building Maintenance & Repairs,1031\5109391738,10-Oct-18,"20,820.93",
LONDON BUS SERVICES LTD,METROLINE TRAVEL LIMITED,Bus Contract Payments,1006\1900041291,28-Sep-18,"20,655.00",
SURFACE TRANSPORT CORP,TELENT TECHNOLOGY SERVICES LTD,Traffic Signals,1002\5109392797,17-Sep-18,"20,650.01",
TFL CORPORATE,CROSSRAIL COMPLAINTS COMMISSIONER,Management & Support Consultancy,1001\5109389148,04-Oct-18,"20,630.00",
LONDON UNDERGROUND LTD,MORSON HUMAN RESOURCES LTD,Agency Staff,1005\5109382453,24-Sep-18,"20,542.40",
LONDON UNDERGROUND LTD,O2 UK LTD,Computer Hardware,1005\5109387605,26-Sep-18,"20,519.64",
LUL NOMINEE SSL LIMITED,TRACKWORK LTD,Track General Maintenance,1031\5109392174,17-Sep-18,"20,502.00",
LONDON UNDERGROUND LTD,EMICO LTD,MR Construction Costs,1005\5109401510,02-Oct-18,"20,497.79",
LONDON UNDERGROUND LTD,JK RAIL LIMITED,Stock of Other Spares,1005\5109398154,25-Sep-18,"20,473.50",
SURFACE TRANSPORT CORP,TELENT TECHNOLOGY SERVICES LTD,Maintenance of Plant & Equipment,1002\5109384501,26-Sep-18,"20,441.86",
SURFACE TRANSPORT CORP,STEER,Management & Support Consultancy,1002\5109380569,19-Sep-18,"20,400.00",
LONDON UNDERGROUND LTD,JACOBS U.K LIMITED,Planning & Development Consultancy,1005\5109391995,17-Sep-18,"20,372.01",
LUL NOMINEE BCV LIMITED,CLANCY DOCWRA LTD,Building Maintenance & Repairs,1033\5109379870,26-Sep-18,"20,352.65",
TFL CORPORATE,ENSONO LIMITED,Computer Software,1001\5109393152,26-Sep-18,"20,350.00",
SURFACE TRANSPORT CORP,LONDON BOROUGH OF ISLINGTON,Contracted Services - Roads,1002\5109380740,17-Sep-18,"20,348.56",
SURFACE TRANSPORT CORP,CSTS LTD,Traffic Signals,1002\5109398670,03-Oct-18,"20,228.53",
LUL NOMINEE SSL LIMITED,4 RAIL SERVICES LTD,Building Maintenance & Repairs,1031\5109387552,18-Sep-18,"20,220.00",
LONDON UNDERGROUND LTD,AURORA LIFTS LTD,MR Construction Costs,1005\5109393354,08-Oct-18,"20,203.51",
SURFACE TRANSPORT CORP,SIEMENS MOBILITY LIMITED,Road Maintenance,1002\5109403099,10-Oct-18,"20,163.68",
LONDON UNDERGROUND LTD,CLESHAR CONTRACT SERVICES LTD,Civil Engineering Construction Works,1005\5109403831,10-Oct-18,"20,161.58",
LONDON UNDERGROUND LTD,MORSON HUMAN RESOURCES LTD,Agency Staff,1005\5109386045,01-Oct-18,"20,159.30",
LONDON UNDERGROUND LTD,MCGINLEY SUPPORT SERVICES LTD,Track General Maintenance,1005\5109405401,10-Oct-18,"20,131.68",
LUL NOMINEE SSL LIMITED,HOWELLS RAILWAY PRODUCTS LTD,Signalling Systems,1031\5109400750,08-Oct-18,"20,125.00",
SURFACE TRANSPORT CORP,CVU JOINT VENTURE,Contracted Services - Tunnels,1002\5109400725,03-Oct-18,"20,084.04",
LUL NOMINEE SSL LIMITED,GIFFEN GROUP LTD,Civil Engineering Construction Works,1031\5109394663,19-Sep-18,"20,050.70",
LONDON UNDERGROUND LTD,JACOBS U.K LIMITED,Planning & Development Consultancy,1005\5109393173,10-Oct-18,"20,032.02",
TUBE LINES LTD,NETWORK RAIL,Maintenance,799588,12-Oct-18,"20,012.40",
LONDON UNDERGROUND LTD,MOTT MACDONALD LIMITED,Property Management Fees,1005\5109396591,26-Sep-18,"20,000.00",
LONDON UNDERGROUND LTD,MOTT MACDONALD LIMITED,Property Management Fees,1005\5109396592,26-Sep-18,"20,000.00",
LONDON UNDERGROUND LTD,ALLFORD HALL MONAGHAN MORRIS LTD,Planning & Development Consultancy,1005\5109392168,26-Sep-18,"20,000.00",
LONDON BUS SERVICES LTD,CUSHMAN & WAKEFIELD LLP,Planning & Development Consultancy,1006\5109387515,24-Sep-18,"20,000.00",
DOCKLANDS LIGHT RAILWAY,ESG RAIL,Professional Engineering Services,1012\5109405245,10-Oct-18,"20,000.00",
DOCKLANDS LIGHT RAILWAY,OTB ENGINEERING LTD,Professional Engineering Services,1012\5109392594,19-Sep-18,"19,912.00",
LONDON UNDERGROUND LTD,MORSON HUMAN RESOURCES LTD,Agency Staff,1005\5109382467,24-Sep-18,"19,892.26",
LUL NOMINEE BCV LIMITED,BARWIT CONTROL SYSTEMS LTD,Lift Maintenance,1033\5109384374,12-Oct-18,"19,859.74",
LONDON UNDERGROUND LTD,MACE LTD,Civil Engineering Construction Works,1005\5109366050,19-Sep-18,"19,855.00",
LONDON UNDERGROUND LTD,ONE TRANSPORT LIMITED,Travel to/from work (Unsocial Hours),1005\5109395434,25-Sep-18,"19,848.62",
LONDON UNDERGROUND LTD,JAMES FISHER TESTING SERVICES LTD,Civil Engineering Construction Works,1005\5109366511,01-Oct-18,"19,800.00",
SURFACE TRANSPORT CORP,SIEMENS,Maintenance of Plant & Equipment,1002\5109398987,26-Sep-18,"19,794.56",
TRANSPORT TRADING LTD,LONDON BOROUGH OF TOWER HAMLETS,Rates,1004\1901661434,27-Sep-18,"19,763.00",
TRANSPORT TRADING LTD,LONDON BOROUGH OF TOWER HAMLETS,Rates,1004\1901661435,27-Sep-18,"19,763.00",
TUBE LINES LTD,MODULAR DISTRIBUTION SYSTEMS,Materials,800279,03-Oct-18,"19,724.28",
TFL CORPORATE,THE NICHOLS GROUP LTD,Planning & Development Consultancy,1001\5109403241,04-Oct-18,"19,713.38",
TFL CORPORATE,DEEPSTORE LIMITED,Document Archive & Storage,1001\5109403504,08-Oct-18,"19,605.27",
SURFACE TRANSPORT CORP,"SYSTEMS ENGINEERING, ASSESSMENT",Traffic Signals,1002\5109396110,03-Oct-18,"19,577.60",
LONDON UNDERGROUND LTD,O2 UK LTD,Telephony Mobile,1005\5109387246,17-Sep-18,"19,523.50",
LONDON UNDERGROUND LTD,O2 UK LTD,Telephony Mobile,1005\5109391627,26-Sep-18,"19,523.50",
LONDON UNDERGROUND LTD,O2 UK LTD,Telephony Mobile,1005\5109391630,03-Oct-18,"19,523.50",
TRANSPORT TRADING LTD,SHREKS ADVENTURE,Ticket & Pass Production,1004\1901661105,17-Sep-18,"19,520.83",
RAIL FOR LONDON LIMITED,TRAM OPERATIONS LIMITED,Franchise/Concession Variable Fee,1020\5109384306,19-Sep-18,"19,513.59",
LONDON UNDERGROUND LTD,THALES RAIL SIGNALLING SOLUTIONS,Signalling Systems,1005\5109395585,01-Oct-18,"19,469.23",
LONDON UNDERGROUND LTD,MORSON HUMAN RESOURCES LTD,Agency Staff,1005\5109382435,24-Sep-18,"19,462.00",
LONDON BUS SERVICES LTD,MITIE CLEANING & ENVIRONMENTAL,"Maps, Timetables & Fare Information",1006\5109392213,08-Oct-18,"19,427.58",
TRANSPORT TRADING LTD,DELOITTE,Planning & Development Consultancy,1004\5109392522,17-Sep-18,"19,379.43",
TRANSPORT TRADING LTD,CBRE,Commercial Property Rent,1004\1901661369,26-Sep-18,"19,375.00",
LUL NOMINEE SSL LIMITED,DMC RAIL LTD,MR Construction Costs,1031\5109405325,10-Oct-18,"19,353.83",
TFL CORPORATE,AECOM LTD,Planning & Development Consultancy,1001\5109380293,19-Sep-18,"19,345.49",
LONDON RIVER SERVICES LTD,PORT OF LONDON AUTHORITY,Pier Charges,1007\5109383087,26-Sep-18,"19,305.72",
DOCKLANDS LIGHT RAILWAY,KEOLIS AMEY DOCKLANDS LIMITED,Professional Engineering Services,1012\5109393416,10-Oct-18,"19,215.35",
LONDON UNDERGROUND LTD,PROJECT 7 CONSULTANCY LTD,MR Construction Costs,1005\5109387494,26-Sep-18,"19,139.60",
LONDON UNDERGROUND LTD,MORSON HUMAN RESOURCES LTD,Agency Staff,1005\5109382482,24-Sep-18,"19,123.25",
TFL CORPORATE,COMPUTACENTER,Computer Hardware,1001\5109384846,26-Sep-18,"19,103.91",
TFL CORPORATE,COMPUTACENTER,Computer Hardware,1001\5109385283,26-Sep-18,"19,103.91",
LONDON UNDERGROUND LTD,DMC RAIL LTD,MR Construction Costs,1005\5109399317,28-Sep-18,"19,074.19",
TRANSPORT TRADING LTD,HA MARKS LTD,Building Maintenance & Repairs,1004\5109379805,24-Sep-18,"19,014.45",
TRANSPORT TRADING LTD,HAYS ACCOUNTANCY PERSONNEL,Agency Staff,1004\5109382201,24-Sep-18,"19,013.25",
TRANSPORT TRADING LTD,NETWORK RAIL,Commercial Property Rent,1004\1901661202,26-Sep-18,"19,000.00",
LUL NOMINEE SSL LIMITED,DUCTCLEAN (UK) LTD T/A DCUK FM,Track General Maintenance,1031\5109394959,25-Sep-18,"18,981.26",
TFL CORPORATE,TWI LTD,Publications & Periodicals,1001\5109400805,01-Oct-18,"18,973.00",
PUBLIC CARRIAGE OFFICE,PROBRAND LTD,IT Consultancy,1003\5109407000,10-Oct-18,"18,908.00",
LUL NOMINEE BCV LIMITED,K&M MCLOUGHLIN DECORATING LTD,MR Construction Costs,1033\5109402710,03-Oct-18,"18,861.54",
LONDON UNDERGROUND LTD,EVERSHEDS,Legal Fees,1005\5109403267,03-Oct-18,"18,848.00",
RAIL FOR LONDON LIMITED,PROSPECTS TRAINING SOLUTIONS LTD,Staff Training,1020\5109393220,24-Sep-18,"18,755.00",
LONDON UNDERGROUND LTD,RULLION ENGINEERING LTD,Agency Staff,1005\5109382876,24-Sep-18,"18,631.63",
DOCKLANDS LIGHT RAILWAY,MACE MACRO LTD,Franchise/Concession Fixed Fee,1012\5109395000,03-Oct-18,"18,577.55",
TFL CORPORATE,MEDIAEDGE,Social Media And Digital Advertising Space,1001\5109364323,03-Oct-18,"18,568.13",
LONDON BUS SERVICES LTD,AA DRIVETECH,Management & Support Consultancy,1006\5109393565,10-Oct-18,"18,565.80",
TFL CORPORATE,BYTES SOFTWARE SERVICES,Computer Software,1001\5109391967,08-Oct-18,"18,528.00",
LONDON UNDERGROUND LTD,O2 UK LTD,Telephony Mobile,1005\5109391633,08-Oct-18,"18,523.50",
LONDON UNDERGROUND LTD,MORSON HUMAN RESOURCES LTD,Agency Staff,1005\5109382486,24-Sep-18,"18,516.48",
LONDON UNDERGROUND LTD,CLESHAR CONTRACT SERVICES LTD,Track General Maintenance,1005\5109391722,03-Oct-18,"18,479.84",
SURFACE TRANSPORT CORP,CSTS LTD,Traffic Signals,1002\5109391292,24-Sep-18,"18,419.02",
SURFACE TRANSPORT CORP,NETWORK RAIL,Road Maintenance,1002\5109391405,03-Oct-18,"18,350.00",
TRANSPORT TRADING LTD,HISTORIC,Ticket & Pass Production,1004\1901661072,26-Sep-18,"18,349.08",
DIAL A RIDE,MERTON COMMUNITY TRANSPORT,Operator Costs,1010\5109390374,17-Sep-18,"18,338.00",
LONDON UNDERGROUND LTD,SOLUTION RAIL LIMITED,Contracted Services Buildings,1005\5109395013,19-Sep-18,"18,303.50",
LUL NOMINEE BCV LIMITED,BRITISH STEEL LIMITED,Track General Maintenance,1033\5109407430,10-Oct-18,"18,302.50",
TRANSPORT TRADING LTD,HAYS ACCOUNTANCY PERSONNEL,Agency Staff,1004\5109385818,01-Oct-18,"18,299.11",
LUL NOMINEE SSL LIMITED,DMC RAIL LTD,MR Construction Costs,1031\5109405330,10-Oct-18,"18,299.03",
TFL CORPORATE,HERBERT SMITH LLP,Legal Fees,1001\5109398955,26-Sep-18,"18,293.47",
RAIL FOR LONDON LIMITED,NETWORK RAIL,National Rail Contribution,1020\5109387608,26-Sep-18,"18,261.50",
LONDON UNDERGROUND LTD,COGNIZANT TECHNOLOGY SOLUTIONS,Software Maintenance,1005\5109398817,26-Sep-18,"18,224.00",
LONDON UNDERGROUND LTD,COGNIZANT TECHNOLOGY SOLUTIONS,Software Maintenance,1005\5109398822,26-Sep-18,"18,224.00",
LONDON UNDERGROUND LTD,COGNIZANT TECHNOLOGY SOLUTIONS,Software Maintenance,1005\5109398829,26-Sep-18,"18,224.00",
LONDON UNDERGROUND LTD,COGNIZANT TECHNOLOGY SOLUTIONS,Software Maintenance,1005\5109399584,01-Oct-18,"18,224.00",
LUL NOMINEE SSL LIMITED,WINGATE ELECTRICAL PLC,MR Construction Costs,1031\5109395406,26-Sep-18,"18,221.07",
LONDON UNDERGROUND LTD,ARDENT MANAGEMENT LTD,Management & Support Consultancy,1005\5109338695,24-Sep-18,"18,210.51",
SURFACE TRANSPORT CORP,CSTS LTD,Road Maintenance,1002\5109391247,24-Sep-18,"18,203.40",
LONDON UNDERGROUND LTD,CITYLINK TELECOMMUNICATIONS LTD,Connect PFI Service Costs,1005\5109391236,17-Sep-18,"18,191.00",
LONDON UNDERGROUND LTD,MORSON HUMAN RESOURCES LTD,Agency Staff,1005\5109382450,24-Sep-18,"18,122.62",
LONDON UNDERGROUND LTD,RULLION ENGINEERING LTD,Agency Staff,1005\5109382868,24-Sep-18,"18,098.03",
LONDON UNDERGROUND LTD,CLANCY DOCWRA LTD,Civil Engineering Construction Works,1005\5109386856,19-Sep-18,"18,081.15",
LUL NOMINEE BCV LIMITED,TRACKWORK LTD,Track General Maintenance,1033\5109392161,17-Sep-18,"18,064.20",
TFL CORPORATE,PROJECT 7 CONSULTANCY LTD,Management & Support Consultancy,1001\5109399972,01-Oct-18,"18,049.77",
SURFACE TRANSPORT CORP,ITAL,PCN and Penalty Fare Processing,1002\5109380020,17-Sep-18,"18,030.00",
LONDON UNDERGROUND LTD,MORSON HUMAN RESOURCES LTD,Agency Staff,1005\5109382487,24-Sep-18,"17,982.00",
LUL NOMINEE BCV LIMITED,WECS PRECISION LTD,Maintenance Materials,1033\5109408142,11-Oct-18,"17,977.80",
TFL CORPORATE,MEDIAEDGE,Radio TV Press Poster Cinema Airtime And Space,1001\5109391853,26-Sep-18,"17,974.77",
LONDON UNDERGROUND LTD,RULLION ENGINEERING LTD,Agency Staff,1005\5109382867,24-Sep-18,"17,955.37",
LUL NOMINEE BCV LIMITED,BRITISH STEEL LIMITED,Track General Maintenance,1033\5109387000,26-Sep-18,"17,936.50",
LUL NOMINEE BCV LIMITED,BRITISH STEEL LIMITED,Track General Maintenance,1033\5109398551,10-Oct-18,"17,936.50",
RAIL FOR LONDON LIMITED,MOTT MACDONALD LIMITED,Planning & Development Consultancy,1020\5109387231,26-Sep-18,"17,902.50",
LONDON BUS SERVICES LTD,EDF ENERGY,Building Maintenance & Repairs,1006\5109391009,17-Sep-18,"17,861.33",
LONDON BUS SERVICES LTD,LINKS SIGNS LTD,Maintenance Materials,1006\5109407114,12-Oct-18,"17,850.00",
PUBLIC CARRIAGE OFFICE,DEEPSTORE LIMITED,Document Archive & Storage,1003\5109392561,24-Sep-18,"17,779.48",
LONDON UNDERGROUND LTD,RULLION ENGINEERING LTD,Agency Staff,1005\5109382866,24-Sep-18,"17,777.04",
LONDON UNDERGROUND LTD,MORSON HUMAN RESOURCES LTD,Agency Staff,1005\5109386169,01-Oct-18,"17,760.00",
LONDON UNDERGROUND LTD,BARWIT CONTROL SYSTEMS LTD,Maintenance Materials,1005\5109387828,26-Sep-18,"17,706.70",
LUL NOMINEE SSL LIMITED,PROGRESS RAIL SERVICES UK LTD,Track General Maintenance,1031\5109394873,10-Oct-18,"17,701.48",
LONDON UNDERGROUND LTD,SIEMENS MOBILITY LIMITED,Signalling Systems,1005\5109382907,19-Sep-18,"17,643.35",
TFL CORPORATE,BT SERVICE AGILITY,Telephony Fixed,1001\1900061857,26-Sep-18,"17,628.78",
TFL CORPORATE,TURNER & TOWNSEND LLP,Planning & Development Consultancy,1001\5109392116,01-Oct-18,"17,567.18",
TRANSPORT TRADING LTD,HAYS ACCOUNTANCY PERSONNEL,Agency Staff,1004\5109382202,24-Sep-18,"17,548.64",
TUBE LINES LTD,POWERDAY PLC,Waste Containers,799630,26-Sep-18,"17,542.43",
TRANSPORT TRADING LTD,KANNATHASAN NADARAJAH,Transys Control - TTL,1004\1901661549,03-Oct-18,"17,500.00",
TFL CORPORATE,GRASS ROOTS UK LTD,Staff Awards & Commendations,1001\5109398512,26-Sep-18,"17,496.38",
LONDON UNDERGROUND LTD,CLANCY DOCWRA LTD,Civil Engineering Construction Works,1005\5109386872,19-Sep-18,"17,495.89",
LUL NOMINEE SSL LIMITED,BOMBARDIER TRANSPORT UK,Fleet,1031\5109393241,10-Oct-18,"17,491.75",
RAIL FOR LONDON LIMITED,THE TREVOR PATRICK PARTNERSHIP,Contractors,1020\5109401402,03-Oct-18,"17,465.00",
LONDON BUS SERVICES LTD,TRUEFORM ENGINEERING LTD,Building Maintenance & Repairs,1006\5109405649,10-Oct-18,"17,445.13",
SURFACE TRANSPORT CORP,CSTS LTD,Traffic Signals,1002\5109386687,26-Sep-18,"17,444.27",
TFL CORPORATE,MARSH SERVICES LTD,General Insurance,1001\5109391113,17-Sep-18,"17,417.09",
LONDON UNDERGROUND LTD,MORSON HUMAN RESOURCES LTD,Agency Staff,1005\5109382439,24-Sep-18,"17,386.94",
RAIL FOR LONDON LIMITED,UK POWER NETWORKS LTD,Management & Support Consultancy,1020\5109380066,03-Oct-18,"17,328.63",
LUL NOMINEE SSL LIMITED,VVB ENGINEERING LTD,Civil Engineering Construction Works,1031\5109392799,17-Sep-18,"17,299.31",
LUL NOMINEE SSL LIMITED,SIGNALLING INSTALLATION & MAINT,Civil Engineering Construction Works,1031\5109391751,24-Sep-18,"17,275.75",
RAIL FOR LONDON LIMITED,LANDOLT AND BROWN LIMITED,Property Consultancy,1020\5109403521,08-Oct-18,"17,260.00",
SURFACE TRANSPORT CORP,CORPORATE DOCUMENT SERVICES LTD,Printing,1002\5109395331,26-Sep-18,"17,231.96",
LONDON UNDERGROUND LTD,WSP UK LTD,Professional Engineering Services,1005\5109383350,19-Sep-18,"17,180.43",
TRANSPORT TRADING LTD,GLENNY,Commercial Property Rent,1004\1901661169,26-Sep-18,"17,167.50",
LONDON BUS SERVICES LTD,PROVENTIA OY,Purchases from TTL Properties Limited,1006\5109384713,28-Sep-18,"17,150.00",
TFL CORPORATE,MEDIAEDGE,Radio TV Press Poster Cinema Airtime And Space,1001\5109386805,17-Sep-18,"17,139.40",
TFL CORPORATE,NETWORK FOR SKILLS LTD,Professional Engineering Services,1001\5109402575,03-Oct-18,"17,100.00",
TFL CORPORATE,RAMBOLL UK LTD,Research For Marketing Campaigns And Activities,1001\5109391747,19-Sep-18,"17,088.00",
LONDON UNDERGROUND LTD,MORSON HUMAN RESOURCES LTD,Agency Staff,1005\5109382460,24-Sep-18,"17,071.80",
LUL NOMINEE BCV LIMITED,TYLER BROTHERS (S-IN-A) LTD,Escalators,1033\5109396006,25-Sep-18,"17,050.00",
TRANSPORT TRADING LTD,CITY OF WESTMINSTER,Rates,1004\1901661478,27-Sep-18,"17,030.00",
LONDON BUS SERVICES LTD,TRUEFORM ENGINEERING LTD,Building Maintenance & Repairs,1006\5109395194,19-Sep-18,"17,009.87",
TFL CORPORATE,INSIGHT DIRECT UK LIMITED,Software Maintenance,1001\5109392005,08-Oct-18,"17,000.00",
TFL CORPORATE,FLEET SOURCE LIMITED,Planning & Development Consultancy,1001\5109391958,19-Sep-18,"17,000.00",
TFL CORPORATE,FIGARO CATERING,Purchase of Land & Buildings,1001\1900061782,19-Sep-18,"17,000.00",
LUL NOMINEE SSL LIMITED,QUARTZELEC LTD,Equipment Repairs & Maintenance,1031\5109391808,17-Sep-18,"16,970.00",
TRANSPORT TRADING LTD,HAYS ACCOUNTANCY PERSONNEL,Agency Staff,1004\5109389631,08-Oct-18,"16,965.00",
TUBE LINES LTD,KNORR-BREMSE RAIL SERVICES,Materials,798582,28-Sep-18,"16,920.00",
LONDON UNDERGROUND LTD,RJC (UK) LTD,MR Construction Costs,1005\5109392143,26-Sep-18,"16,894.00",
LONDON UNDERGROUND LTD,CLESHAR CONTRACT SERVICES LTD,MR Construction Costs,1005\5109391972,01-Oct-18,"16,893.77",
LONDON UNDERGROUND LTD,AURORA LIFTS LTD,MR Construction Costs,1005\5109393407,08-Oct-18,"16,872.65",
DIAL A RIDE,ALLSTAR BUSINESS SOLUTIONS,Vehicle Running Costs,1010\5109393558,19-Sep-18,"16,830.70",
LONDON UNDERGROUND LTD,POS RAIL SERVICES LTD,Track General Maintenance,1005\5109398496,26-Sep-18,"16,750.00",
LONDON UNDERGROUND LTD,ALSTOM TRANSPORT LTD,Professional Engineering Services,1005\5109399009,10-Oct-18,"16,744.00",
TRANSPORT TRADING LTD,TURNER & TOWNSEND LLP,Planning & Development Consultancy,1004\5109400141,08-Oct-18,"16,721.00",
LONDON UNDERGROUND LTD,EC HARRIS UK LTD,MR Construction Costs,1005\5109387067,26-Sep-18,"16,672.50",
TUBE LINES LTD,EBM-PAPST UK LTD,Materials,791344,25-Sep-18,"16,650.81",
TFL CORPORATE,BT SERVICE AGILITY,Telephony Fixed,1001\1900061913,26-Sep-18,"16,648.65",
SURFACE TRANSPORT CORP,SIEMENS,Maintenance of Plant & Equipment,1002\5109388625,26-Sep-18,"16,644.40",
LONDON UNDERGROUND LTD,MCGINLEY SUPPORT SERVICES LTD,Track General Maintenance,1005\5109389077,17-Sep-18,"16,643.93",
TRANSPORT TRADING LTD,HAYS ACCOUNTANCY PERSONNEL,Agency Staff,1004\5109378219,17-Sep-18,"16,631.30",
TFL CORPORATE,INSIGHT DIRECT UK LIMITED,Software Maintenance,1001\5109386848,26-Sep-18,"16,610.00",
TUBE LINES LTD,PERMAQUIP LTD,Consumables,799516,05-Oct-18,"16,580.67",
TFL CORPORATE,AECOM LTD,Planning & Development Consultancy,1001\5109398900,10-Oct-18,"16,578.72",
LONDON UNDERGROUND LTD,AURORA LIFTS LTD,MR Construction Costs,1005\5109371946,08-Oct-18,"16,541.60",
LUL NOMINEE BCV LIMITED,1STINRAIL LIMITED,Track General Maintenance,1033\5109400857,03-Oct-18,"16,528.50",
DIAL A RIDE,ALLSTAR BUSINESS SOLUTIONS,Vehicle Running Costs,1010\5109399886,03-Oct-18,"16,526.50",
LUL NOMINEE BCV LIMITED,TMD FRICTION UK LTD,Fleet,1033\5109379969,17-Sep-18,"16,520.00",
LUL NOMINEE SSL LIMITED,AUGUSTUS MARTIN LTD,Civil Engineering Construction Works,1031\5109388403,25-Sep-18,"16,480.00",
LONDON UNDERGROUND LTD,MORSON HUMAN RESOURCES LTD,Agency Staff,1005\5109382463,24-Sep-18,"16,479.80",
LONDON UNDERGROUND LTD,RULLION ENGINEERING LTD,Agency Staff,1005\5109382855,24-Sep-18,"16,474.44",
RAIL FOR LONDON LIMITED,BRIDGEWAY CONSULTING LTD,Staff Training,1020\5109384736,26-Sep-18,"16,471.65",
LONDON UNDERGROUND LTD,MORSON HUMAN RESOURCES LTD,Agency Staff,1005\5109382471,24-Sep-18,"16,428.00",
LONDON UNDERGROUND LTD,MORSON HUMAN RESOURCES LTD,Agency Staff,1005\5109382479,24-Sep-18,"16,417.92",
SURFACE TRANSPORT CORP,SIEMENS MOBILITY LIMITED,Traffic Signals,1002\5109406986,10-Oct-18,"16,415.72",
LONDON UNDERGROUND LTD,NCP SERVICES LTD,Planning & Development Consultancy,1005\5109387549,26-Sep-18,"16,390.91",
LONDON UNDERGROUND LTD,NCP SERVICES LTD,Planning & Development Consultancy,1005\5109387566,19-Sep-18,"16,390.91",
LONDON UNDERGROUND LTD,NCP SERVICES LTD,Planning & Development Consultancy,1005\5109387581,19-Sep-18,"16,390.91",
LONDON UNDERGROUND LTD,NCP SERVICES LTD,Planning & Development Consultancy,1005\5109392707,10-Oct-18,"16,390.91",
TUBE LINES LTD,HARVEN FORM FOUNDRY LTD,Materials,795036,26-Sep-18,"16,375.00",
LONDON BUS SERVICES LTD,TRAPEZE PTI LTD,Computer Consumables,1006\5109398473,28-Sep-18,"16,367.89",
TFL CORPORATE,HAYS ACCOUNTANCY PERSONNEL,Agency Staff,1001\5109377800,17-Sep-18,"16,354.82",
LONDON UNDERGROUND LTD,MORSON HUMAN RESOURCES LTD,Agency Staff,1005\5109382455,24-Sep-18,"16,309.60",
RAIL FOR LONDON LIMITED,TELENT TECHNOLOGY SERVICES LTD,Professional Engineering Services,1020\5109394950,10-Oct-18,"16,268.70",
TRANSPORT TRADING LTD,SAVILLS (L&P) LTD,Planning & Development Consultancy,1004\5109393169,26-Sep-18,"16,250.00",
LONDON UNDERGROUND LTD,RULLION ENGINEERING LTD,Agency Staff,1005\5109382874,24-Sep-18,"16,245.41",
LUL NOMINEE SSL LIMITED,ECON CONSTRUCTION LTD,Maintenance Materials,1031\5109392684,10-Oct-18,"16,243.72",
LONDON BUS SERVICES LTD,ARRIVA LONDON SOUTH LIMITED,Bus Contract Payments,1006\1900041404,12-Oct-18,"16,243.49",
TFL CORPORATE,INSIGHT DIRECT UK LIMITED,Manage IT Services,1001\5109387659,26-Sep-18,"16,234.00",
LONDON UNDERGROUND LTD,FUSION PEOPLE LIMITED,Agency Staff,1005\5109406647,10-Oct-18,"16,228.80",
LUL NOMINEE BCV LIMITED,CREACTIVE DESIGN LTD,Maintenance Materials,1033\5109403428,03-Oct-18,"16,170.00",
LUL NOMINEE SSL LIMITED,DELATIM LIMITED,MR Construction Costs,1031\5109392656,19-Sep-18,"16,169.48",
TRANSPORT TRADING LTD,LONDON BOROUGH OF HAMM& FULHAM,Rates,1004\1901661460,27-Sep-18,"16,159.00",
TUBE LINES LTD,GNB INDUSTRIAL POWER (UK) LTD,Materials,799488,10-Oct-18,"16,153.20",
RAIL FOR LONDON LIMITED,UK POWER NETWORKS LTD,Management & Support Consultancy,1020\5109390530,03-Oct-18,"16,147.07",
TRANSPORT TRADING LTD,HISTORIC,Ticket & Pass Production,1004\1901661067,26-Sep-18,"16,117.08",
LUL NOMINEE BCV LIMITED,STEPHENSON HARWOOD,Legal Fees,1033\5109398966,26-Sep-18,"16,100.50",
TFL CORPORATE,WALDRAMS LTD,Planning & Development Consultancy,1001\5109408070,11-Oct-18,"16,090.00",
LUL NOMINEE SSL LIMITED,ALSTOM TRANSPORT LTD,Track General Maintenance,1031\5109390568,24-Sep-18,"16,067.10",
LUL NOMINEE BCV LIMITED,R S CLARE & CO LTD,Track General Maintenance,1033\5109391674,08-Oct-18,"16,056.00",
LONDON UNDERGROUND LTD,MORSON HUMAN RESOURCES LTD,Agency Staff,1005\5109382433,24-Sep-18,"16,013.60",
SURFACE TRANSPORT CORP,THE NICHOLS GROUP LTD,Management & Support Consultancy,1002\5109403244,04-Oct-18,"16,009.38",
TRANSPORT TRADING LTD,GFK NOP LTD,Customer Research And Counts,1004\5109394923,26-Sep-18,"16,006.00",
LONDON UNDERGROUND LTD,RULLION ENGINEERING LTD,Agency Staff,1005\5109382870,24-Sep-18,"16,005.60",
LONDON BUS SERVICES LTD,ABELLIO LONDON LTD,Rail Replacement Service Costs,1006\1900041365,08-Oct-18,"15,955.43",
TFL CORPORATE,AXON SOLUTIONS LTD,Computer Software,1001\5109395992,24-Sep-18,"15,900.00",
TRANSPORT TRADING LTD,DELOITTE,Planning & Development Consultancy,1004\5109396447,03-Oct-18,"15,809.54",
SURFACE TRANSPORT CORP,METIS,Professional Engineering Services,1002\5109403246,10-Oct-18,"15,800.00",
TFL CORPORATE,LEICA GEOSYSTEMS LTD,Software Maintenance,1001\5109395755,10-Oct-18,"15,755.00",
LONDON UNDERGROUND LTD,CPC PROJECT SERVICES LLP,Maintenance Materials,1005\5109390625,19-Sep-18,"15,750.00",
LONDON UNDERGROUND LTD,CPC PROJECT SERVICES LLP,Maintenance Materials,1005\5109404507,05-Oct-18,"15,750.00",
LONDON UNDERGROUND LTD,CPC PROJECT SERVICES LLP,Maintenance Materials,1005\5109404511,09-Oct-18,"15,750.00",
TFL CORPORATE,MEDIAEDGE,Social Media And Digital Advertising Space,1001\5109391827,26-Sep-18,"15,693.94",
TRANSPORT TRADING LTD,ARCADIS UK LIMITED,Management & Support Consultancy,1004\5109387364,26-Sep-18,"15,675.00",
RAIL FOR LONDON LIMITED,GFK NOP LTD,Research For Marketing Campaigns And Activities,1020\5109398449,01-Oct-18,"15,650.00",
LONDON UNDERGROUND LTD,EVERSHEDS,Legal Fees,1005\5109396467,26-Sep-18,"15,620.80",
LONDON UNDERGROUND LTD,RULLION ENGINEERING LTD,Agency Staff,1005\5109382834,24-Sep-18,"15,617.47",
LONDON BUS SERVICES LTD,EMINOX,Purchases from TTL Properties Limited,1006\5109383353,17-Sep-18,"15,587.00",
LONDON BUS SERVICES LTD,EMINOX,Purchases from TTL Properties Limited,1006\5109391200,10-Oct-18,"15,587.00",
LONDON BUS SERVICES LTD,EMINOX,Purchases from TTL Properties Limited,1006\5109391201,10-Oct-18,"15,587.00",
LONDON BUS SERVICES LTD,EMINOX,Purchases from TTL Properties Limited,1006\5109391202,10-Oct-18,"15,587.00",
LONDON BUS SERVICES LTD,EMINOX,Purchases from TTL Properties Limited,1006\5109394998,10-Oct-18,"15,587.00",
LONDON BUS SERVICES LTD,EMINOX,Purchases from TTL Properties Limited,1006\5109395301,10-Oct-18,"15,587.00",
LONDON BUS SERVICES LTD,EMINOX,Purchases from TTL Properties Limited,1006\5109395302,10-Oct-18,"15,587.00",
TFL CORPORATE,FAITHFUL+GOULD LIMITED,Professional Engineering Services,1001\5109380489,17-Sep-18,"15,575.00",
LONDON UNDERGROUND LTD,KEYTREE LIMITED,IT Consultancy,1005\5109394852,19-Sep-18,"15,560.00",
LONDON UNDERGROUND LTD,POS RAIL SERVICES LTD,Track General Maintenance,1005\5109404270,08-Oct-18,"15,525.00",
TFL CORPORATE,1 SPATIAL LTD,Software Maintenance,1001\5109399499,28-Sep-18,"15,520.00",
TRANSPORT TRADING LTD,LONDON BOROUGH OF GREENWICH,Rates,1004\1901661501,27-Sep-18,"15,518.00",
LUL NOMINEE SSL LIMITED,DMC RAIL LTD,MR Construction Costs,1031\5109396269,24-Sep-18,"15,508.35",
LUL NOMINEE SSL LIMITED,GPX ENGINEERING LTD,Track General Maintenance,1031\5109405788,10-Oct-18,"15,505.49",
LUL NOMINEE SSL LIMITED,GIFFEN GROUP LTD,Civil Engineering Construction Works,1031\5109399501,27-Sep-18,"15,496.08",
SURFACE TRANSPORT CORP,ITAL,PCN and Penalty Fare Processing,1002\5109366950,10-Oct-18,"15,490.00",
LONDON UNDERGROUND LTD,MCGINLEY SUPPORT SERVICES LTD,Track General Maintenance,1005\5109398544,26-Sep-18,"15,488.80",
SURFACE TRANSPORT CORP,INDRA SISTEMAS S.A.-BRANCH IN UK,Contracted Services - Roads,1002\5109388008,01-Oct-18,"15,479.06",
LONDON UNDERGROUND LTD,RULLION ENGINEERING LTD,Agency Staff,1005\5109382887,24-Sep-18,"15,470.30",
TFL CORPORATE,MVA CONSULTANCY GROUP,Transport Planning Consultancy & Services,1001\5109399904,10-Oct-18,"15,435.00",
SURFACE TRANSPORT CORP,SIEMENS MOBILITY LIMITED,Traffic Signals,1002\5109406988,10-Oct-18,"15,410.87",
TFL CORPORATE,MOTT MACDONALD LIMITED,Professional Engineering Services,1001\5109396127,24-Sep-18,"15,352.50",
DIAL A RIDE,ALLSTAR BUSINESS SOLUTIONS,Vehicle Running Costs,1010\5109393559,19-Sep-18,"15,330.45",
LUL NOMINEE SSL LIMITED,LENDLEASE JACOBS JOINT VENTURE,MR Construction Costs,1031\5109393225,19-Sep-18,"15,279.58",
LONDON UNDERGROUND LTD,NETWORK RAIL,Traction Current,1005\5109386575,26-Sep-18,"15,270.36",
LUL NOMINEE BCV LIMITED,BRITISH STEEL LIMITED,Track General Maintenance,1033\5109384026,17-Sep-18,"15,243.02",
LUL NOMINEE BCV LIMITED,BRITISH STEEL LIMITED,Track General Maintenance,1033\5109386995,26-Sep-18,"15,243.02",
LUL NOMINEE BCV LIMITED,BRITISH STEEL LIMITED,Track General Maintenance,1033\5109386997,19-Sep-18,"15,243.02",
LUL NOMINEE BCV LIMITED,BRITISH STEEL LIMITED,Track General Maintenance,1033\5109386998,26-Sep-18,"15,243.02",
LUL NOMINEE BCV LIMITED,BRITISH STEEL LIMITED,Track General Maintenance,1033\5109392193,01-Oct-18,"15,243.02",
LUL NOMINEE BCV LIMITED,BRITISH STEEL LIMITED,Track General Maintenance,1033\5109392194,01-Oct-18,"15,243.02",
LUL NOMINEE BCV LIMITED,BRITISH STEEL LIMITED,Track General Maintenance,1033\5109393378,08-Oct-18,"15,243.02",
LUL NOMINEE BCV LIMITED,BRITISH STEEL LIMITED,Track General Maintenance,1033\5109393381,08-Oct-18,"15,243.02",
LUL NOMINEE BCV LIMITED,BRITISH STEEL LIMITED,Track General Maintenance,1033\5109393391,10-Oct-18,"15,243.02",
LUL NOMINEE BCV LIMITED,BRITISH STEEL LIMITED,Track General Maintenance,1033\5109393394,10-Oct-18,"15,243.02",
LONDON UNDERGROUND LTD,CORONA ENERGY RETAIL 4 LTD,Gas,1005\5109390523,26-Sep-18,"15,173.90",
SURFACE TRANSPORT CORP,REDSPEED INTERNATIONAL  LTD,Maintenance of Plant & Equipment,1002\5109390773,24-Sep-18,"15,169.50",
LONDON RIVER SERVICES LTD,CVU JOINT VENTURE,Building Maintenance & Repairs,1007\5109401495,03-Oct-18,"15,159.87",
TFL CORPORATE,MEDIAEDGE,Radio TV Press Poster Cinema Airtime And Space,1001\5109395528,01-Oct-18,"15,127.24",
LONDON UNDERGROUND LTD,DELATIM LIMITED,Civil Engineering Construction Works,1005\5109395014,19-Sep-18,"15,087.26",
SURFACE TRANSPORT CORP,TRUEFORM ENGINEERING LTD,Building Maintenance & Repairs,1002\5109395432,21-Sep-18,"15,072.50",
RAIL FOR LONDON LIMITED,BROWSE BION LTD,Maintenance Materials,1020\5109393131,24-Sep-18,"15,071.72",
LONDON UNDERGROUND LTD,CORONA ENERGY RETAIL 4 LTD,Gas,1005\5109390524,26-Sep-18,"15,061.09",
TRANSPORT TRADING LTD,LONDON BOROUGH OF LAMBETH,Rates,1004\1901661493,27-Sep-18,"15,005.00",
TRANSPORT TRADING LTD,NETWORK RAIL,Commercial Property Rent,1004\1901661200,26-Sep-18,"15,000.00",
RAIL FOR LONDON LIMITED,EVERSHEDS,Management & Support Consultancy,1020\5109393157,03-Oct-18,"15,000.00",
LONDON UNDERGROUND LTD,GARDINER & THEOBALD LLP,Planning & Development Consultancy,1005\5109391766,26-Sep-18,"15,000.00",
TFL CORPORATE,7/7 TAVISTOCK SQUARE MEMORIAL TRUST,Charitable Donations,1001\1900061749,26-Sep-18,"15,000.00",
RAIL FOR LONDON LIMITED,INTERNATIONAL WORKPLACE LTD,Staff Training,1020\5109399383,01-Oct-18,"14,990.00",
TUBE LINES LTD,ENTERPRISE MANAGED SERVICES LTD,Litter/Refuse Removal,799496,10-Oct-18,"14,941.40",
TRANSPORT TRADING LTD,TURNER & TOWNSEND LLP,Planning & Development Consultancy,1004\5109351554,08-Oct-18,"14,885.00",
TUBE LINES LTD,ALSTOM TRANSPORT LTD,Materials,798220,12-Oct-18,"14,879.92",
TRANSPORT TRADING LTD,LONDON BOROUGH OF HAMM& FULHAM,Rates,1004\1901661458,27-Sep-18,"14,877.00",
RAIL FOR LONDON LIMITED,INTERSERVE,Security Services (Guards),1020\5109389125,03-Oct-18,"14,853.48",
LONDON UNDERGROUND LTD,HAYLEY GROUP PLC,Stock of Other Spares,1005\5109398492,01-Oct-18,"14,828.91",
CYCLE HIRE SCHEME,SERCO LTD,Concession Maintenance Charge,1016\5109384027,17-Sep-18,"14,820.05",
LUL NOMINEE BCV LIMITED,TRELLEBORG INDUSTRIAL AVS,Maintenance Materials,1033\5109387303,01-Oct-18,"14,810.00",
LONDON BUS SERVICES LTD,EMINOX,Vehicle Repairs & Maintenance,1006\5109383364,19-Sep-18,"14,799.00",
LONDON BUS SERVICES LTD,EMINOX,Vehicle Repairs & Maintenance,1006\5109383376,17-Sep-18,"14,799.00",
LONDON BUS SERVICES LTD,EMINOX,Vehicle Repairs & Maintenance,1006\5109383405,19-Sep-18,"14,799.00",
LONDON BUS SERVICES LTD,EMINOX,Vehicle Repairs & Maintenance,1006\5109383584,19-Sep-18,"14,799.00",
LONDON BUS SERVICES LTD,EMINOX,Vehicle Repairs & Maintenance,1006\5109385439,01-Oct-18,"14,799.00",
LONDON BUS SERVICES LTD,EMINOX,Vehicle Repairs & Maintenance,1006\5109385442,01-Oct-18,"14,799.00",
LONDON BUS SERVICES LTD,EMINOX,Vehicle Repairs & Maintenance,1006\5109385444,01-Oct-18,"14,799.00",
LONDON BUS SERVICES LTD,EMINOX,Vehicle Repairs & Maintenance,1006\5109385446,01-Oct-18,"14,799.00",
LONDON BUS SERVICES LTD,EMINOX,Vehicle Repairs & Maintenance,1006\5109385448,01-Oct-18,"14,799.00",
LONDON BUS SERVICES LTD,EMINOX,Vehicle Repairs & Maintenance,1006\5109385449,01-Oct-18,"14,799.00",
LONDON BUS SERVICES LTD,EMINOX,Vehicle Repairs & Maintenance,1006\5109385453,01-Oct-18,"14,799.00",
LONDON BUS SERVICES LTD,EMINOX,Vehicle Repairs & Maintenance,1006\5109385456,01-Oct-18,"14,799.00",
LONDON BUS SERVICES LTD,EMINOX,Vehicle Repairs & Maintenance,1006\5109385458,01-Oct-18,"14,799.00",
LONDON BUS SERVICES LTD,EMINOX,Vehicle Repairs & Maintenance,1006\5109385459,01-Oct-18,"14,799.00",
LONDON BUS SERVICES LTD,EMINOX,Vehicle Repairs & Maintenance,1006\5109385460,01-Oct-18,"14,799.00",
LONDON BUS SERVICES LTD,EMINOX,Vehicle Repairs & Maintenance,1006\5109385461,10-Oct-18,"14,799.00",
LONDON BUS SERVICES LTD,EMINOX,Vehicle Repairs & Maintenance,1006\5109385462,01-Oct-18,"14,799.00",
LONDON BUS SERVICES LTD,EMINOX,Vehicle Repairs & Maintenance,1006\5109385801,26-Sep-18,"14,799.00",
LONDON BUS SERVICES LTD,EMINOX,Vehicle Repairs & Maintenance,1006\5109386475,24-Sep-18,"14,799.00",
LONDON BUS SERVICES LTD,EMINOX,Vehicle Repairs & Maintenance,1006\5109391134,03-Oct-18,"14,799.00",
LONDON BUS SERVICES LTD,EMINOX,Vehicle Repairs & Maintenance,1006\5109391136,10-Oct-18,"14,799.00",
LONDON BUS SERVICES LTD,EMINOX,Vehicle Repairs & Maintenance,1006\5109391138,03-Oct-18,"14,799.00",
LONDON BUS SERVICES LTD,EMINOX,Vehicle Repairs & Maintenance,1006\5109391139,03-Oct-18,"14,799.00",
LONDON BUS SERVICES LTD,EMINOX,Vehicle Repairs & Maintenance,1006\5109391141,03-Oct-18,"14,799.00",
LONDON BUS SERVICES LTD,EMINOX,Vehicle Repairs & Maintenance,1006\5109391142,03-Oct-18,"14,799.00",
LONDON BUS SERVICES LTD,EMINOX,Vehicle Repairs & Maintenance,1006\5109391144,01-Oct-18,"14,799.00",
LONDON BUS SERVICES LTD,EMINOX,Vehicle Repairs & Maintenance,1006\5109391146,03-Oct-18,"14,799.00",
LONDON BUS SERVICES LTD,EMINOX,Vehicle Repairs & Maintenance,1006\5109392149,01-Oct-18,"14,799.00",
LONDON BUS SERVICES LTD,EMINOX,Vehicle Repairs & Maintenance,1006\5109393438,10-Oct-18,"14,799.00",
LONDON BUS SERVICES LTD,EMINOX,Vehicle Repairs & Maintenance,1006\5109393440,10-Oct-18,"14,799.00",
LONDON BUS SERVICES LTD,EMINOX,Vehicle Repairs & Maintenance,1006\5109393446,10-Oct-18,"14,799.00",
LONDON BUS SERVICES LTD,EMINOX,Vehicle Repairs & Maintenance,1006\5109393449,10-Oct-18,"14,799.00",
LONDON BUS SERVICES LTD,EMINOX,Vehicle Repairs & Maintenance,1006\5109393452,10-Oct-18,"14,799.00",
LONDON BUS SERVICES LTD,EMINOX,Vehicle Repairs & Maintenance,1006\5109393477,10-Oct-18,"14,799.00",
LONDON BUS SERVICES LTD,EMINOX,Vehicle Repairs & Maintenance,1006\5109395023,10-Oct-18,"14,799.00",
LUL NOMINEE BCV LIMITED,HIRD RAIL SERVICES LTD,Track General Maintenance,1033\5109387376,26-Sep-18,"14,729.50",
LONDON BUS SERVICES LTD,MITIE CLEANING & ENVIRONMENTAL,Building Maintenance & Repairs,1006\5109379408,17-Sep-18,"14,720.51",
TFL CORPORATE,MEDIAEDGE,Radio TV Press Poster Cinema Airtime And Space,1001\5109386804,17-Sep-18,"14,707.87",
TFL CORPORATE,MEDIAEDGE,Radio TV Press Poster Cinema Airtime And Space,1001\5109391836,26-Sep-18,"14,702.71",
TFL CORPORATE,CPC PROJECT SERVICES LLP,Contractors,1001\5109407261,10-Oct-18,"14,700.00",
LONDON UNDERGROUND LTD,SAFETY KLEEN UK LTD,Maintenance of Plant & Equipment,1005\5109388110,08-Oct-18,"14,674.13",
LUL NOMINEE SSL LIMITED,GIFFEN GROUP LTD,Civil Engineering Construction Works,1031\5109386664,17-Sep-18,"14,627.74",
TRANSPORT TRADING LTD,M B SINGH,Commercial Property Rent,1004\1901661194,26-Sep-18,"14,625.00",
LONDON UNDERGROUND LTD,O2 UK LTD,Radio Pagers,1005\1900205439,01-Oct-18,"14,616.00",
TFL CORPORATE,MEDIAEDGE,Radio TV Press Poster Cinema Airtime And Space,1001\5109386806,17-Sep-18,"14,602.91",
LONDON UNDERGROUND LTD,MORSON HUMAN RESOURCES LTD,Agency Staff,1005\5109382452,24-Sep-18,"14,583.33",
TRANSPORT TRADING LTD,GLOBAL REAL ESTATE LIMITED,Planning & Development Consultancy,1004\5109399410,01-Oct-18,"14,560.35",
LONDON UNDERGROUND LTD,FUSION PEOPLE LIMITED,Agency Staff,1005\5109397927,26-Sep-18,"14,553.00",
TRANSPORT TRADING LTD,ENGIE SERVICES LTD,Fire and Safety Equipment,1004\5109381098,17-Sep-18,"14,500.31",
LONDON UNDERGROUND LTD,TATEHINDLE LTD,Property Management Fees,1005\5109400676,02-Oct-18,"14,500.00",
LONDON UNDERGROUND LTD,TATEHINDLE LTD,Planning & Development Consultancy,1005\5109403756,04-Oct-18,"14,500.00",
RAIL FOR LONDON LIMITED,OVE ARUP & PARTNERS LTD,Management & Support Consultancy,1020\5109385437,26-Sep-18,"14,490.00",
LUL NOMINEE BCV LIMITED,INTEGRATED ELECTRONICS LTD,Fleet,1033\5109388001,25-Sep-18,"14,475.00",
LONDON BUS SERVICES LTD,CASTLE WATER LIMITED,Water,1006\5109380361,19-Sep-18,"14,464.27",
TFL CORPORATE,AECOM LTD,Planning & Development Consultancy,1001\5109380979,10-Oct-18,"14,457.56",
LONDON UNDERGROUND LTD,NCP SERVICES LTD,Property Development-Planning & Development Consul,1005\5109387615,19-Sep-18,"14,417.50",
SURFACE TRANSPORT CORP,QUOD (2010) LIMITED,Research & Study Fees,1002\5109396941,25-Sep-18,"14,377.34",
TFL CORPORATE,EVERSHEDS,Legal Fees,1001\5109400988,03-Oct-18,"14,329.00",
LONDON UNDERGROUND LTD,INTERFLEET TECHNOLOGY LIMITED,Civil Engineering Construction Works,1005\5109394700,01-Oct-18,"14,318.00",
LONDON UNDERGROUND LTD,PROJECT 7 CONSULTANCY LTD,MR Construction Costs,1005\5109387499,26-Sep-18,"14,300.00",
LUL NOMINEE SSL LIMITED,BOMBARDIER TRANSPORT UK,Fleet,1031\5109383724,19-Sep-18,"14,264.42",
TRANSPORT TRADING LTD,CITY OF WESTMINSTER,Rates,1004\1901661471,27-Sep-18,"14,235.00",
LONDON UNDERGROUND LTD,MACE LTD,Civil Engineering Construction Works,1005\5109394696,24-Sep-18,"14,233.75",
DOCKLANDS LIGHT RAILWAY,NEXUS ALPHA LTD,Civil Engineering Construction Works,1012\5109395630,20-Sep-18,"14,226.67",
SURFACE TRANSPORT CORP,SKY HIGH PLC,Passenger Surveys,1002\5109385261,19-Sep-18,"14,205.00",
DIAL A RIDE,ALLSTAR BUSINESS SOLUTIONS,Vehicle Running Costs,1010\5109405771,10-Oct-18,"14,199.64",
LONDON UNDERGROUND LTD,RULLION ENGINEERING LTD,Agency Staff,1005\5109382857,24-Sep-18,"14,196.02",
SURFACE TRANSPORT CORP,CONWAY AECOM LTD,Contracted Services - Roads,1002\5109395887,26-Sep-18,"14,172.89",
LUL NOMINEE SSL LIMITED,AMARO SIGNALLING LIMITED,Civil Engineering Construction Works,1031\5109391241,19-Sep-18,"14,150.96",
RAIL FOR LONDON LIMITED,MOTT MACDONALD LIMITED,Management & Support Consultancy,1020\5109390402,03-Oct-18,"14,149.78",
SURFACE TRANSPORT CORP,CSTS LTD,Road Maintenance,1002\5109400246,08-Oct-18,"14,135.30",
LONDON UNDERGROUND LTD,ALSTOM TRANSPORT LTD,Maintenance Materials,1005\5109364450,10-Oct-18,"14,126.00",
LONDON BUS SERVICES LTD,EMINOX,Vehicle Repairs & Maintenance,1006\5109383379,19-Sep-18,"14,112.00",
LONDON BUS SERVICES LTD,EMINOX,Vehicle Repairs & Maintenance,1006\5109383384,19-Sep-18,"14,112.00",
LONDON BUS SERVICES LTD,EMINOX,Vehicle Repairs & Maintenance,1006\5109383410,19-Sep-18,"14,112.00",
LONDON BUS SERVICES LTD,EMINOX,Vehicle Repairs & Maintenance,1006\5109386094,19-Sep-18,"14,112.00",
LONDON BUS SERVICES LTD,EMINOX,Vehicle Repairs & Maintenance,1006\5109386422,26-Sep-18,"14,112.00",
LONDON BUS SERVICES LTD,EMINOX,Vehicle Repairs & Maintenance,1006\5109386472,26-Sep-18,"14,112.00",
LONDON BUS SERVICES LTD,EMINOX,Vehicle Repairs & Maintenance,1006\5109386604,26-Sep-18,"14,112.00",
LONDON BUS SERVICES LTD,EMINOX,Vehicle Repairs & Maintenance,1006\5109391188,03-Oct-18,"14,112.00",
LONDON BUS SERVICES LTD,EMINOX,Vehicle Repairs & Maintenance,1006\5109391190,03-Oct-18,"14,112.00",
LONDON BUS SERVICES LTD,EMINOX,Vehicle Repairs & Maintenance,1006\5109391193,03-Oct-18,"14,112.00",
LONDON BUS SERVICES LTD,EMINOX,Vehicle Repairs & Maintenance,1006\5109392148,03-Oct-18,"14,112.00",
LONDON BUS SERVICES LTD,EMINOX,Vehicle Repairs & Maintenance,1006\5109392152,03-Oct-18,"14,112.00",
LONDON BUS SERVICES LTD,EMINOX,Vehicle Repairs & Maintenance,1006\5109393341,10-Oct-18,"14,112.00",
LONDON BUS SERVICES LTD,EMINOX,Vehicle Repairs & Maintenance,1006\5109393444,10-Oct-18,"14,112.00",
LONDON BUS SERVICES LTD,EMINOX,Vehicle Repairs & Maintenance,1006\5109394997,10-Oct-18,"14,112.00",
LONDON BUS SERVICES LTD,EMINOX,Vehicle Repairs & Maintenance,1006\5109394999,10-Oct-18,"14,112.00",
LONDON BUS SERVICES LTD,EMINOX,Vehicle Repairs & Maintenance,1006\5109395025,08-Oct-18,"14,112.00",
LONDON BUS SERVICES LTD,EMINOX,Vehicle Repairs & Maintenance,1006\5109395027,08-Oct-18,"14,112.00",
TFL CORPORATE,CORDEROY CONTRACT SERVICES LIMITED,Professional Engineering Services,1001\5109390545,26-Sep-18,"14,112.00",
TRANSPORT TRADING LTD,MADAME TUSSAUDS LTD,Ticket & Pass Production,1004\1901661069,17-Sep-18,"14,098.33",
TRANSPORT TRADING LTD,STRATFORD CITY SHOPPING CENTRE (NO.,Commercial Property Rent,1004\1901661172,27-Sep-18,"14,093.00",
TFL CORPORATE,MEDIAEDGE,Radio TV Press Poster Cinema Airtime And Space,1001\5109395806,01-Oct-18,"14,041.79",
TUBE LINES LTD,BIFFA WASTE SERVICES LIMITED,Litter/Refuse Removal,800675,10-Oct-18,"14,034.84",
LUL NOMINEE SSL LIMITED,CLANCY DOCWRA LTD,Building Maintenance & Repairs,1031\5109379869,26-Sep-18,"14,027.72",
SURFACE TRANSPORT CORP,TELENT TECHNOLOGY SERVICES LTD,Traffic Signals,1002\5109392783,17-Sep-18,"14,012.80",
TRANSPORT TRADING LTD,WORKMAN FACILITIES MANAGEMENT LTD,Commercial Property Rent,1004\1901661154,26-Sep-18,"14,008.00",
LUL NOMINEE SSL LIMITED,KN NETWORK SERVICES LTD,MR Construction Costs,1031\5109393475,19-Sep-18,"14,004.18",
RAIL FOR LONDON LIMITED,OSL RAIL LTD,Civil Engineering Construction Works,1020\5109403445,08-Oct-18,"14,003.97",
LONDON UNDERGROUND LTD,UK POWER NETWORKS LTD,Retentions Control Account > 1Year,1005\5109395453,26-Sep-18,"14,002.65",
TFL CORPORATE,ASPECT GREEN CONSULTING LTD,Professional Engineering Services,1001\5109392694,08-Oct-18,"14,000.00",
LONDON UNDERGROUND LTD,DENCO LUBRICATION LTD,MR Construction Costs,1005\5109403728,04-Oct-18,"13,925.00",
LUL NOMINEE SSL LIMITED,DMC RAIL LTD,MR Construction Costs,1031\5109396268,24-Sep-18,"13,914.70",
LONDON UNDERGROUND LTD,ETHOS COMMUNICATIONS SOLUTIONS PLC,Computer Hardware,1005\5109396462,08-Oct-18,"13,909.90",
TFL CORPORATE,ETHOS COMMUNICATIONS SOLUTIONS PLC,Stock of Other Spares,1001\1900061985,25-Sep-18,"13,909.90",
LONDON UNDERGROUND LTD,ASPIRE,Property Management Fees,1005\5109392099,17-Sep-18,"13,888.00",
TFL CORPORATE,MEDIAEDGE,Radio TV Press Poster Cinema Airtime And Space,1001\5109379289,01-Oct-18,"13,825.44",
RAIL FOR LONDON LIMITED,ATKINS LIMITED,Professional Engineering Services,1020\5109395038,24-Sep-18,"13,784.06",
TUBE LINES LTD,KNORR-BREMSE RAIL SERVICES,Materials,798583,28-Sep-18,"13,780.00",
LUL NOMINEE SSL LIMITED,BOMBARDIER TRANSPORT UK,Fleet,1031\5109391641,03-Oct-18,"13,763.65",
LUL NOMINEE SSL LIMITED,BOMBARDIER TRANSPORT UK,Fleet,1031\5109391642,03-Oct-18,"13,763.65",
LUL NOMINEE SSL LIMITED,BOMBARDIER TRANSPORT UK,Fleet,1031\5109391645,03-Oct-18,"13,763.65",
LUL NOMINEE SSL LIMITED,BOMBARDIER TRANSPORT UK,Fleet,1031\5109391646,03-Oct-18,"13,763.65",
LUL NOMINEE SSL LIMITED,BOMBARDIER TRANSPORT UK,Fleet,1031\5109391648,03-Oct-18,"13,763.65",
LONDON UNDERGROUND LTD,CITYLINK TELECOMMUNICATIONS LTD,Connect PFI Service Costs,1005\5109405329,10-Oct-18,"13,732.00",
LONDON UNDERGROUND LTD,JNG CONSTRUCTION & ENGINEERING,MR Construction Costs,1005\5109398886,26-Sep-18,"13,726.31",
DOCKLANDS LIGHT RAILWAY,MOTT MACDONALD LIMITED,Professional Engineering Services,1012\5109388378,17-Sep-18,"13,717.50",
TFL CORPORATE,MOTT MACDONALD LIMITED,Planning & Development Consultancy,1001\5109395866,08-Oct-18,"13,717.40",
LUL NOMINEE SSL LIMITED,HAYLEY GROUP PLC,Track General Maintenance,1031\5109380893,19-Sep-18,"13,700.00",
LUL NOMINEE SSL LIMITED,HAYLEY GROUP PLC,Track General Maintenance,1031\5109380894,19-Sep-18,"13,700.00",
DOCKLANDS LIGHT RAILWAY,XANTA LIMITED,Professional Engineering Services,1012\5109400242,01-Oct-18,"13,680.00",
TRANSPORT TRADING LTD,THE NICHOLS GROUP LTD,Planning & Development Consultancy,1004\5109403240,08-Oct-18,"13,668.75",
TUBE LINES LTD,TELENT COMMUNICATIONS LIMITED,Sub-Contractor,798246,19-Sep-18,"13,666.26",
LONDON UNDERGROUND LTD,COMPUTACENTER,Manage IT Services,1005\5109384391,26-Sep-18,"13,655.25",
DIAL A RIDE,GBM SERVICES LTD,Office Cleaning,1010\5109405665,10-Oct-18,"13,612.49",
TUBE LINES LTD,BRITISH TELECOMMUNICATIONS PLC,Telecommunications,800268,03-Oct-18,"13,606.63",
LONDON UNDERGROUND LTD,COONEEN DEFENCE LTD,Uniforms,1005\5109369460,19-Sep-18,"13,571.60",
TRANSPORT TRADING LTD,LONDON BOROUGH OF HAVERING,Rates,1004\1901661462,27-Sep-18,"13,543.00",
LUL NOMINEE BCV LIMITED,PROGRESS RAIL SERVICES UK LTD,Track General Maintenance,1033\5109393115,10-Oct-18,"13,542.00",
LUL NOMINEE SSL LIMITED,VVB ENGINEERING LTD,Civil Engineering Construction Works,1031\5109392814,17-Sep-18,"13,523.32",
SURFACE TRANSPORT CORP,TELENT TECHNOLOGY SERVICES LTD,Traffic Signals,1002\5109401305,10-Oct-18,"13,515.06",
CYCLE HIRE SCHEME,SERCO LTD,Concession Maintenance Charge,1016\5109386855,24-Sep-18,"13,508.51",
LONDON UNDERGROUND LTD,TELENT TECHNOLOGY SERVICES LTD,Retentions Control Account > 1Year,1005\5109390503,01-Oct-18,"13,500.46",
DIAL A RIDE,SUTTON COMMUNITY TRANSPORT,Commercial Property Rent,1010\5109403221,03-Oct-18,"13,500.00",
LONDON UNDERGROUND LTD,COONEEN DEFENCE LTD,Uniforms,1005\5109369463,19-Sep-18,"13,485.06",
SURFACE TRANSPORT CORP,STEER,Transport Planning Consultancy & Services,1002\5109391924,08-Oct-18,"13,466.25",
LUL NOMINEE BCV LIMITED,RJC (UK) LTD,Escalators,1033\5109398690,26-Sep-18,"13,458.56",
TFL CORPORATE,GFK NOP LTD,Customer Research And Counts,1001\5109391797,08-Oct-18,"13,450.00",
RAIL FOR LONDON LIMITED,COMPUTACENTER,Software Maintenance,1020\5109360766,24-Sep-18,"13,448.81",
LUL NOMINEE BCV LIMITED,TMD FRICTION UK LTD,Track General Maintenance,1033\5109379968,17-Sep-18,"13,440.00",
LUL NOMINEE SSL LIMITED,LUCCHINI UK LTD,Fleet,1031\5109391760,01-Oct-18,"13,407.80",
RAIL FOR LONDON LIMITED,DELATIM LIMITED,Contracted Services Buildings,1020\5109403484,08-Oct-18,"13,403.38",
TRANSPORT TRADING LTD,CBS OUTDOOR LIMITED,Purchase of Associates Loan Notes (Activity),1004\5109391123,26-Sep-18,"13,401.44",
LUL NOMINEE SSL LIMITED,ONGRADE LTD,Civil Engineering Construction Works,1031\5109390829,19-Sep-18,"13,400.00",
TUBE LINES LTD,ALSTOM TRANSPORT LTD,Materials,800146,03-Oct-18,"13,391.93",
TUBE LINES LTD,ALSTOM TRANSPORT LTD,Materials,800147,28-Sep-18,"13,391.93",
TUBE LINES LTD,ALSTOM TRANSPORT LTD,Materials,800148,28-Sep-18,"13,391.93",
TUBE LINES LTD,ALSTOM TRANSPORT LTD,Materials,800149,28-Sep-18,"13,391.93",
TRANSPORT TRADING LTD,NETWORK RAIL,Commercial Property Rent,1004\1901661185,26-Sep-18,"13,375.00",
LONDON UNDERGROUND LTD,RULLION ENGINEERING LTD,Agency Staff,1005\5109382836,24-Sep-18,"13,371.63",
TFL CORPORATE,GARDINER & THEOBALD LLP,Planning & Development Consultancy,1001\5109387853,03-Oct-18,"13,345.00",
LONDON UNDERGROUND LTD,GBM SERVICES LTD,Operational Cleaning,1005\5109391148,17-Sep-18,"13,342.88",
LONDON UNDERGROUND LTD,RULLION ENGINEERING LTD,Agency Staff,1005\5109382894,24-Sep-18,"13,277.44",
TRANSPORT TRADING LTD,GRANT MILLS WOOD,Property Management Fees,1004\5109396953,25-Sep-18,"13,224.75",
TUBE LINES LTD,SPEEDY ASSET SERVICES LTD,Hire Plant & Equipment,799543,28-Sep-18,"13,221.61",
LONDON UNDERGROUND LTD,FUSION PEOPLE LIMITED,Agency Staff,1005\5109397930,26-Sep-18,"13,201.65",
LUL NOMINEE SSL LIMITED,ARES SOFTWARE U.K. LIMITED,Civil Engineering Construction Works,1031\5109327671,11-Oct-18,"13,200.00",
TRANSPORT TRADING LTD,HAYS ACCOUNTANCY PERSONNEL,Agency Staff,1004\5109385820,01-Oct-18,"13,190.08",
LUL NOMINEE BCV LIMITED,SOLUTION RAIL LIMITED,MR Construction Costs,1033\5109405409,10-Oct-18,"13,181.21",
LONDON UNDERGROUND LTD,BROOKVEX IMS LTD,Lift Maintenance,1005\5109400760,03-Oct-18,"13,166.74",
TFL CORPORATE,DROPSTEP CONSULTING LTD,Planning & Development Consultancy,1001\5109407424,10-Oct-18,"13,125.00",
LUL NOMINEE SSL LIMITED,POS RAIL SERVICES LTD,MR Construction Costs,1031\5109393191,19-Sep-18,"13,113.37",
TRANSPORT TRADING LTD,SENATOR INTERNATIONAL LTD,Furniture & Equipment,1004\5109392173,08-Oct-18,"13,093.33",
LONDON UNDERGROUND LTD,NETWORK RAIL,National Rail Schedule 4 Payments,1005\5109386867,26-Sep-18,"13,085.18",
TFL CORPORATE,JACOBS U.K LIMITED,Planning & Development Consultancy,1001\5109380266,19-Sep-18,"13,059.57",
TFL CORPORATE,NETWORK FOR SKILLS LTD,Professional Engineering Services,1001\5109401540,03-Oct-18,"13,050.00",
TFL CORPORATE,AB PUBLISHING LIMITED,Storage And Distribution Of Publicity Materials,1001\5109392535,18-Sep-18,"13,047.50",
TFL CORPORATE,MEDIAEDGE,Social Media And Digital Advertising Space,1001\5109391859,26-Sep-18,"12,996.26",
RAIL FOR LONDON LIMITED,ASSET INFORMATION SOLUTIONS LTD,Management & Support Consultancy,1020\5109407032,12-Oct-18,"12,975.00",
LUL NOMINEE SSL LIMITED,BROOKVEX IMS LTD,Civil Engineering Construction Works,1031\5109390999,18-Sep-18,"12,975.00",
TRANSPORT TRADING LTD,HAYS ACCOUNTANCY PERSONNEL,Agency Staff,1004\5109378235,17-Sep-18,"12,961.90",
TFL CORPORATE,AB PUBLISHING LIMITED,Storage And Distribution Of Publicity Materials,1001\5109392538,18-Sep-18,"12,947.50",
LONDON UNDERGROUND LTD,HAWKINS BROWN,Planning & Development Consultancy,1005\5109402776,03-Oct-18,"12,897.00",
SURFACE TRANSPORT CORP,"SYSTEMS ENGINEERING, ASSESSMENT",Road Maintenance,1002\5109392803,26-Sep-18,"12,847.02",
LUL NOMINEE SSL LIMITED,CPC PROJECT SERVICES LLP,Civil Engineering Construction Works,1031\5109387975,04-Oct-18,"12,840.00",
LONDON BUS SERVICES LTD,ABELLIO LONDON LTD,Rail Replacement Service Costs,1006\1900041282,01-Oct-18,"12,790.49",
TFL CORPORATE,SENTRUM IV LIMITED,Manage IT Services,1001\5109391962,25-Sep-18,"12,779.85",
DOCKLANDS LIGHT RAILWAY,NEXUS ALPHA LTD,Civil Engineering Construction Works,1012\5109395632,20-Sep-18,"12,775.17",
LUL NOMINEE SSL LIMITED,AMARO SIGNALLING LIMITED,Track General Maintenance,1031\5109392774,19-Sep-18,"12,773.76",
LONDON UNDERGROUND LTD,CPC PROJECT SERVICES LLP,MR Construction Costs,1005\5109405729,09-Oct-18,"12,762.75",
LONDON BUS SERVICES LTD,AIR PRODUCTS PLC,Vehicle Running Costs,1006\5109386611,26-Sep-18,"12,758.60",
LUL NOMINEE SSL LIMITED,ENGIE SERVICES LTD,Fire and Safety Equipment,1031\5109381101,17-Sep-18,"12,754.84",
LONDON UNDERGROUND LTD,PROJECT 7 CONSULTANCY LTD,Professional Engineering Services,1005\5109387497,26-Sep-18,"12,750.00",
LUL NOMINEE SSL LIMITED,SIEMENS MOBILITY LIMITED,Maintenance Materials,1031\5109381672,19-Sep-18,"12,726.28",
TRANSPORT TRADING LTD,LONDON BOROUGH OF NEWHAM,Rates,1004\1901661403,27-Sep-18,"12,696.00",
LONDON UNDERGROUND LTD,SPS DOORGUARD LTD,Maintenance of Plant & Equipment,1005\5109401299,01-Oct-18,"12,672.00",
TFL CORPORATE,HYDER CONSULTING (UK) LTD,Contractors,1001\5109387110,26-Sep-18,"12,656.25",
LONDON UNDERGROUND LTD,DENCO LUBRICATION LTD,Escalators,1005\5109404087,10-Oct-18,"12,645.00",
LUL NOMINEE SSL LIMITED,W A FAIRHURST & PARTNERS,MR Construction Costs,1031\5109395945,04-Oct-18,"12,631.30",
LONDON UNDERGROUND LTD,TRANSFORMER MANUFACTURING CO LTD,Signalling Systems,1005\5109392519,17-Sep-18,"12,627.80",
TFL CORPORATE,HAYS ACCOUNTANCY PERSONNEL,Agency Staff,1001\5109378264,17-Sep-18,"12,618.48",
SURFACE TRANSPORT CORP,NETWORK RAIL,Road Maintenance,1002\5109329718,19-Sep-18,"12,609.72",
LONDON UNDERGROUND LTD,MORSON HUMAN RESOURCES LTD,Agency Staff,1005\5109382458,24-Sep-18,"12,592.52",
TFL CORPORATE,MEDIAEDGE,Production Artwork And Design For Marketing,1001\5109395502,01-Oct-18,"12,554.62",
LONDON UNDERGROUND LTD,MACE LTD,Civil Engineering Construction Works,1005\5109366046,19-Sep-18,"12,545.00",
SURFACE TRANSPORT CORP,LONDON BOROUGH OF NEWHAM,Borough Services - Claim Against Pr Yr Accrual,1002\1900056253,24-Sep-18,"12,500.68",
TRANSPORT TRADING LTD,CAROLE A FLACK,Commercial Property Rent,1004\1901661206,27-Sep-18,"12,500.00",
TRANSPORT TRADING LTD,TURNER & TOWNSEND LLP,Planning & Development Consultancy,1004\5109335862,08-Oct-18,"12,480.00",
TUBE LINES LTD,MODULAR DISTRIBUTION SYSTEMS,Materials,799388,19-Sep-18,"12,457.44",
LONDON UNDERGROUND LTD,SIEMENS MOBILITY LIMITED,Signalling Systems,1005\5109380685,19-Sep-18,"12,435.92",
SURFACE TRANSPORT CORP,MOTT MACDONALD LIMITED,Contracted Services - Roads,1002\5109359543,26-Sep-18,"12,417.00",
LONDON RIVER SERVICES LTD,BRIGGS MARINE CONTRACTORS LIMITED,Operator Costs,1007\5109399909,08-Oct-18,"12,408.00",
TFL CORPORATE,JACOBS U.K LIMITED,Planning & Development Consultancy,1001\5109395826,20-Sep-18,"12,407.47",
DOCKLANDS LIGHT RAILWAY,INTERFLEET TECHNOLOGY LIMITED,Professional Engineering Services,1012\5109394733,26-Sep-18,"12,406.24",
LONDON UNDERGROUND LTD,CITYLINK TELECOMMUNICATIONS LTD,Connect PFI Service Costs,1005\5109404280,10-Oct-18,"12,384.00",
TUBE LINES LTD,SPEEDY ASSET SERVICES LTD,Hire Plant & Equipment,799546,28-Sep-18,"12,350.59",
TFL CORPORATE,INTERFLEET TECHNOLOGY LIMITED,Professional Engineering Services,1001\5109394727,01-Oct-18,"12,324.32",
TFL CORPORATE,MARSH SERVICES LTD,General Insurance,1001\5109391046,26-Sep-18,"12,320.00",
RAIL FOR LONDON LIMITED,PROBRAND LTD,Computer Software,1020\5109401333,03-Oct-18,"12,298.00",
LONDON BUS SERVICES LTD,CVU JOINT VENTURE,Contracted Services - Roads,1006\5109401507,03-Oct-18,"12,286.80",
TRANSPORT TRADING LTD,QUILL CONSTRUCTION LIMITED,Building Maintenance & Repairs,1004\5109396962,26-Sep-18,"12,260.00",
TFL CORPORATE,DROPSTEP CONSULTING LTD,Planning & Development Consultancy,1001\5109404183,10-Oct-18,"12,250.00",
TFL CORPORATE,MEDIAEDGE,Radio TV Press Poster Cinema Airtime And Space,1001\5109391834,26-Sep-18,"12,224.95",
LONDON RIVER SERVICES LTD,BRIGGS MARINE CONTRACTORS LIMITED,Operator Costs,1007\5109380757,17-Sep-18,"12,221.04",
PUBLIC CARRIAGE OFFICE,NSL LIMITED,Computer Hardware,1003\5109387505,26-Sep-18,"12,137.08",
LUL NOMINEE BCV LIMITED,1STINRAIL LIMITED,Track General Maintenance,1033\5109400850,03-Oct-18,"12,133.31",
DOCKLANDS LIGHT RAILWAY,GARDINER & THEOBALD LLP,Professional Engineering Services,1012\5109393568,10-Oct-18,"12,103.00",
LONDON UNDERGROUND LTD,MORSON HUMAN RESOURCES LTD,Track General Maintenance,1005\5109395202,19-Sep-18,"12,102.30",
VICTORIA COACH STATN LTD,OYSTER SALES SERVICE,VCS Repayments & Commission,1008\5109395045,19-Sep-18,"12,102.20",
LONDON UNDERGROUND LTD,PROJECT 7 CONSULTANCY LTD,Professional Engineering Services,1005\5109392187,26-Sep-18,"12,089.35",
TUBE LINES LTD,MODULAR DISTRIBUTION SYSTEMS,Subcontractor Labour,800278,03-Oct-18,"12,070.52",
TRANSPORT TRADING LTD,F J CLEVELAND LLP,Legal Fees,1004\5109399128,27-Sep-18,"12,063.30",
TRANSPORT TRADING LTD,MADAME TUSSAUDS LTD,Ticket & Pass Production,1004\1901661334,01-Oct-18,"12,054.17",
LONDON TRANSPORT MUSEUM,EPIC PERFORMANCE IMPROVEMENT LTD,Computer Software,1011\5109383761,21-Sep-18,"12,046.29",
LONDON UNDERGROUND LTD,WINGATE ELECTRICAL PLC,MR Construction Costs,1005\5109379932,17-Sep-18,"12,000.00",
LONDON BUS SERVICES LTD,TRUEFORM ENGINEERING LTD,Purchase of Land & Buildings,1006\5109365979,08-Oct-18,"12,000.00",
DOCKLANDS LIGHT RAILWAY,ESG RAIL,Professional Engineering Services,1012\5109399524,01-Oct-18,"12,000.00",
LONDON UNDERGROUND LTD,MORSON HUMAN RESOURCES LTD,Agency Staff,1005\5109386168,01-Oct-18,"11,982.99",
LONDON UNDERGROUND LTD,CPS RAIL LTD,MR Construction Costs,1005\5109398939,26-Sep-18,"11,961.75",
SURFACE TRANSPORT CORP,PETER BRETT ASSOCIATES LLP,Transport Planning Consultancy & Services,1002\5109393514,21-Sep-18,"11,952.00",
LUL NOMINEE SSL LIMITED,DK REWIND LTD,Fleet,1031\5109395503,24-Sep-18,"11,950.00",
LUL NOMINEE SSL LIMITED,DK REWIND LTD,Fleet,1031\5109399826,10-Oct-18,"11,950.00",
TFL CORPORATE,COMPUTACENTER,Computer Hardware,1001\5109386537,26-Sep-18,"11,925.15",
LUL NOMINEE SSL LIMITED,DK REWIND LTD,Fleet,1031\5109398443,26-Sep-18,"11,920.00",
LUL NOMINEE SSL LIMITED,DK REWIND LTD,Fleet,1031\5109399850,01-Oct-18,"11,920.00",
TFL CORPORATE,EC HARRIS UK LTD,Contractors,1001\5109387897,26-Sep-18,"11,900.00",
LONDON UNDERGROUND LTD,PINSENTS MASONS,Legal Fees,1005\5109398961,26-Sep-18,"11,900.00",
LUL NOMINEE SSL LIMITED,TIMKEN RAIL SERVICES,Fleet,1031\5109399473,10-Oct-18,"11,900.00",
LONDON UNDERGROUND LTD,TELENT TECHNOLOGY SERVICES LTD,Civil Engineering Construction Works,1005\5109392141,17-Sep-18,"11,877.26",
TUBE LINES LTD,RAILWAY WHEELSET & BRAKE LTD,Materials,799243,28-Sep-18,"11,856.00",
LONDON UNDERGROUND LTD,RULLION ENGINEERING LTD,Agency Staff,1005\5109382842,24-Sep-18,"11,830.47",
TUBE LINES LTD,VVB ENGINEERING LTD,Sub-Contractor,798244,19-Sep-18,"11,808.74",
LUL NOMINEE SSL LIMITED,GIFFEN GROUP LTD,Civil Engineering Construction Works,1031\5109394666,19-Sep-18,"11,777.83",
TFL CORPORATE,PROBRAND LTD,Software Maintenance,1001\5109391351,17-Sep-18,"11,723.50",
TFL CORPORATE,PROBRAND LTD,Software Maintenance,1001\5109405294,10-Oct-18,"11,723.50",
TFL CORPORATE,OVE ARUP & PARTNERS LTD,Transport Planning Consultancy & Services,1001\5109380220,17-Sep-18,"11,696.66",
RAIL FOR LONDON LIMITED,WABTEC RAIL LIMITED,Management & Support Consultancy,1020\5109384457,17-Sep-18,"11,692.59",
LONDON UNDERGROUND LTD,METS LTD,Traction Current,1005\5109400935,03-Oct-18,"11,688.42",
LONDON UNDERGROUND LTD,RULLION ENGINEERING LTD,Agency Staff,1005\5109382861,24-Sep-18,"11,675.60",
TFL CORPORATE,MEDIAEDGE,Social Media And Digital Advertising Space,1001\5109391294,26-Sep-18,"11,673.69",
TRANSPORT TRADING LTD,HAYS ACCOUNTANCY PERSONNEL,Agency Staff,1004\5109385526,01-Oct-18,"11,665.71",
TUBE LINES LTD,MODULAR DISTRIBUTION SYSTEMS,Materials,801066,12-Oct-18,"11,650.50",
TFL CORPORATE,ATKINS LIMITED,Planning & Development Consultancy,1001\5109384334,24-Sep-18,"11,648.00",
LUL NOMINEE SSL LIMITED,VVB ENGINEERING LTD,Civil Engineering Construction Works,1031\5109400726,03-Oct-18,"11,647.49",
LONDON BUS SERVICES LTD,DELATIM LIMITED,Building Maintenance & Repairs,1006\5109400994,04-Oct-18,"11,630.03",
LONDON BUS SERVICES LTD,DELATIM LIMITED,Building Maintenance & Repairs,1006\5109400995,04-Oct-18,"11,630.03",
LONDON BUS SERVICES LTD,DELATIM LIMITED,Building Maintenance & Repairs,1006\5109400996,04-Oct-18,"11,630.03",
TRANSPORT TRADING LTD,O2 UK LTD,Telephony Mobile,1004\1901661255,24-Sep-18,"11,629.99",
RAIL FOR LONDON LIMITED,WABTEC RAIL LIMITED,Management & Support Consultancy,1020\5109384465,19-Sep-18,"11,570.11",
LONDON UNDERGROUND LTD,RULLION ENGINEERING LTD,Agency Staff,1005\5109382846,24-Sep-18,"11,554.90",
TFL CORPORATE,FAITHFUL+GOULD LIMITED,Professional Engineering Services,1001\5109380490,17-Sep-18,"11,550.00",
TFL CORPORATE,XANTA LIMITED,Professional Engineering Services,1001\5109394937,27-Sep-18,"11,550.00",
DOCKLANDS LIGHT RAILWAY,CPC PROJECT SERVICES LLP,Professional Engineering Services,1012\5109400270,05-Oct-18,"11,531.25",
LUL NOMINEE SSL LIMITED,HIMA-SELLA LTD,Civil Engineering Construction Works,1031\5109385247,18-Sep-18,"11,520.00",
SURFACE TRANSPORT CORP,TELENT TECHNOLOGY SERVICES LTD,Traffic Signals,1002\5109392720,17-Sep-18,"11,494.71",
LONDON RIVER SERVICES LTD,PORT OF LONDON AUTHORITY,Pier Charges,1007\5109383085,26-Sep-18,"11,479.78",
TFL CORPORATE,MEDIAEDGE,Radio TV Press Poster Cinema Airtime And Space,1001\5109399789,10-Oct-18,"11,441.43",
TFL CORPORATE,AECOM LTD,Planning & Development Consultancy,1001\5109395925,10-Oct-18,"11,431.04",
TFL CORPORATE,EC HARRIS UK LTD,Contractors,1001\5109387107,26-Sep-18,"11,423.70",
TFL CORPORATE,HYDER CONSULTING (UK) LTD,Contractors,1001\5109387116,26-Sep-18,"11,400.00",
TFL CORPORATE,MEDIAEDGE,Radio TV Press Poster Cinema Airtime And Space,1001\5109395809,01-Oct-18,"11,396.84",
LUL NOMINEE BCV LIMITED,PROGRESS RAIL SERVICES UK LTD,Track General Maintenance,1033\5109393110,10-Oct-18,"11,385.00",
TFL CORPORATE,HYDER CONSULTING (UK) LTD,Contractors,1001\5109387101,26-Sep-18,"11,363.44",
LONDON RIVER SERVICES LTD,PORT OF LONDON AUTHORITY,Pier Charges,1007\5109383084,19-Sep-18,"11,363.23",
TFL CORPORATE,MEDIAEDGE,Radio TV Press Poster Cinema Airtime And Space,1001\5109395529,01-Oct-18,"11,348.95",
RAIL FOR LONDON LIMITED,WABTEC RAIL LIMITED,Management & Support Consultancy,1020\5109390221,26-Sep-18,"11,341.37",
LONDON UNDERGROUND LTD,PCG ASSOCIATES LIMITED,Contractors,1005\5109395022,20-Sep-18,"11,324.00",
TFL CORPORATE,MEDIAEDGE,Radio TV Press Poster Cinema Airtime And Space,1001\5109391854,26-Sep-18,"11,321.44",
RAIL FOR LONDON LIMITED,LEND LEASE CONSULTING (EMEA) LTD,Professional Engineering Services,1020\5109398866,26-Sep-18,"11,298.00",
TRANSPORT TRADING LTD,FRANKHAM CONSULTANCY GROUP LTD,Building Maintenance & Repairs,1004\5109404965,08-Oct-18,"11,292.23",
LONDON RIVER SERVICES LTD,PORT OF LONDON AUTHORITY,Pier Charges,1007\5109383088,26-Sep-18,"11,282.99",
LUL NOMINEE SSL LIMITED,SIEMENS MOBILITY LIMITED,Signalling Systems,1031\5109385251,24-Sep-18,"11,255.00",
TRANSPORT TRADING LTD,GROSVENOR ESTATE BELGRAVIA,Commercial Property Rent,1004\1901661187,26-Sep-18,"11,250.00",
TRANSPORT TRADING LTD,VAIL WILLIAMS LLP,Commercial Property Rent,1004\1901661229,26-Sep-18,"11,250.00",
SURFACE TRANSPORT CORP,DRAKEWELL COMPUTERS,Manage IT Services,1002\5109403430,03-Oct-18,"11,250.00",
LONDON UNDERGROUND LTD,ALSTOM TRANSPORT LTD,Maintenance Materials,1005\5109355438,10-Oct-18,"11,216.70",
LONDON UNDERGROUND LTD,BROOKVEX IMS LTD,Building Maintenance & Repairs,1005\5109395603,28-Sep-18,"11,202.17",
TFL CORPORATE,MARSH SERVICES LTD,General Insurance,1001\5109391086,17-Sep-18,"11,200.00",
LONDON BUS SERVICES LTD,HJS EMISSION TECHNOLOGY GMBH&CO.KG,Vehicle Repairs & Maintenance,1006\5109390664,05-Oct-18,"11,195.00",
RAIL FOR LONDON LIMITED,HAYS ACCOUNTANCY PERSONNEL,Agency Staff,1020\5109389542,08-Oct-18,"11,194.20",
SURFACE TRANSPORT CORP,TELENT TECHNOLOGY SERVICES LTD,Traffic Signals,1002\5109392580,26-Sep-18,"11,189.51",
LUL NOMINEE BCV LIMITED,KNORR-BREMSE RAIL SERVICES,Fleet,1033\5109372881,08-Oct-18,"11,165.88",
LONDON RIVER SERVICES LTD,PORT OF LONDON AUTHORITY,Pier Charges,1007\5109383089,26-Sep-18,"11,151.79",
RAIL FOR LONDON LIMITED,MOTT MACDONALD LIMITED,Professional Engineering Services,1020\5109399344,01-Oct-18,"11,115.00",
DOCKLANDS LIGHT RAILWAY,AECOM LTD,Professional Engineering Services,1012\5109385161,26-Sep-18,"11,114.65",
TUBE LINES LTD,TRELLEBORG AUTOMATIVE UK LTD,Materials,799017,03-Oct-18,"11,107.50",
LUL NOMINEE SSL LIMITED,ALSTOM TRANSPORT LTD,Fleet,1031\5109404195,08-Oct-18,"11,100.00",
TFL CORPORATE,JACOBS U.K LIMITED,Professional Engineering Services,1001\5109384209,24-Sep-18,"11,098.00",
TFL CORPORATE,BT SERVICE AGILITY,Purchase of Telecommunications Equipment,1001\1900061135,24-Sep-18,"11,086.92",
LUL NOMINEE SSL LIMITED,AQUA GEOCOMPOSITES LTD,Track General Maintenance,1031\5109403606,11-Oct-18,"11,085.00",
SURFACE TRANSPORT CORP,TELENT TECHNOLOGY SERVICES LTD,Traffic Signals,1002\5109391402,26-Sep-18,"11,054.44",
TFL CORPORATE,MEDIAEDGE,Social Media And Digital Advertising Space,1001\5109391889,26-Sep-18,"11,051.06",
LONDON UNDERGROUND LTD,TALBOT DESIGNS LIMITED,Signalling Systems,1005\5109395818,21-Sep-18,"11,039.00",
TFL CORPORATE,JACOBS U.K LIMITED,Contractors,1001\5109387602,24-Sep-18,"11,029.25",
TFL CORPORATE,JACOBS U.K LIMITED,Contractors,1001\5109388119,03-Oct-18,"11,029.25",
LUL NOMINEE SSL LIMITED,HONEYWELL BUILDING SOLUTIONS,Equipment Repairs & Maintenance,1031\5109380230,17-Sep-18,"11,002.04",
TFL CORPORATE,MEDIAEDGE,Social Media And Digital Advertising Space,1001\5109387348,17-Sep-18,"11,000.00",
LONDON UNDERGROUND LTD,TATEHINDLE LTD,Planning & Development Consultancy,1005\5109408459,12-Oct-18,"11,000.00",
LUL NOMINEE BCV LIMITED,CEMEX UK OPERATIONS LTD,Track General Maintenance,1033\5109384049,19-Sep-18,"11,000.00",
LUL NOMINEE BCV LIMITED,CEMEX UK OPERATIONS LTD,Track General Maintenance,1033\5109393453,08-Oct-18,"11,000.00",
LUL NOMINEE SSL LIMITED,ISS LTD,Civil Engineering Construction Works,1031\5109395385,10-Oct-18,"10,976.21",
LONDON UNDERGROUND LTD,ACANTHUS LW ARCHITECTS,Planning & Development Consultancy,1005\5109408409,12-Oct-18,"10,974.44",
TFL CORPORATE,CHROME ANGEL SOLUTIONS LIMITED,Professional Engineering Services,1001\5109402882,03-Oct-18,"10,945.00",
TRANSPORT TRADING LTD,ESA RETAIL,Property Management Fees,1004\5109393594,10-Oct-18,"10,934.00",
LONDON UNDERGROUND LTD,ALSTOM NL SERVICE PROVISION LTD,Fleet Tsssa Contract,1005\5109388507,26-Sep-18,"10,926.00",
LONDON UNDERGROUND LTD,RULLION ENGINEERING LTD,Agency Staff,1005\5109382864,24-Sep-18,"10,922.34",
LUL NOMINEE SSL LIMITED,TIFLEX LTD,Fleet,1031\5109384492,24-Sep-18,"10,914.42",
LUL NOMINEE SSL LIMITED,TIFLEX LTD,Fleet,1031\5109392179,10-Oct-18,"10,914.42",
LUL NOMINEE BCV LIMITED,REHAU LTD,Track General Maintenance,1033\5109392189,08-Oct-18,"10,912.32",
RAIL FOR LONDON LIMITED,XANTA LIMITED,Professional Engineering Services,1020\5109395832,24-Sep-18,"10,912.00",
LONDON UNDERGROUND LTD,PROJECT 7 CONSULTANCY LTD,Professional Engineering Services,1005\5109387495,26-Sep-18,"10,890.00",
TUBE LINES LTD,HALL FUELS LTD,Fuel,799401,10-Oct-18,"10,884.54",
TUBE LINES LTD,HALL FUELS LTD,Fuel,799400,10-Oct-18,"10,882.37",
LONDON UNDERGROUND LTD,CPC PROJECT SERVICES LLP,MR Construction Costs,1005\5109405723,09-Oct-18,"10,881.00",
RAIL FOR LONDON LIMITED,SYSTECON (UK) LIMITED,Software Maintenance,1020\5109380048,02-Oct-18,"10,880.00",
LONDON UNDERGROUND LTD,WEST COAST TRAINCARE,Maintenance Materials,1005\5109289273,26-Sep-18,"10,876.80",
LONDON UNDERGROUND LTD,ALSTOM TRANSPORT LTD,Maintenance Materials,1005\5109377112,10-Oct-18,"10,876.80",
LONDON UNDERGROUND LTD,ALSTOM TRANSPORT LTD,Maintenance Materials,1005\5109390268,10-Oct-18,"10,876.80",
TUBE LINES LTD,EUROPCAR GROUP UK LIMITED,Vehicle Hire,799660,28-Sep-18,"10,866.57",
LUL NOMINEE SSL LIMITED,GIFFEN GROUP LTD,Civil Engineering Construction Works,1031\5109394648,19-Sep-18,"10,866.53",
LUL NOMINEE BCV LIMITED,L.B. FOSTER RAIL TECH LTD,Fleet,1033\5109398774,26-Sep-18,"10,845.00",
TUBE LINES LTD,TRELLEBORG AUTOMATIVE UK LTD,Materials,798532,28-Sep-18,"10,845.00",
RAIL FOR LONDON LIMITED,GFK NOP LTD,Research For Marketing Campaigns And Activities,1020\5109398452,01-Oct-18,"10,800.00",
LONDON UNDERGROUND LTD,BARWIT CONTROL SYSTEMS LTD,Maintenance Materials,1005\5109387831,26-Sep-18,"10,798.12",
LUL NOMINEE SSL LIMITED,DK REWIND LTD,Fleet,1031\5109391948,17-Sep-18,"10,755.00",
TRANSPORT TRADING LTD,O2 UK LTD,Telephony Mobile,1004\1901661574,08-Oct-18,"10,750.02",
LONDON BUS SERVICES LTD,UNIVERSITYBUS LTD,Bus Contract Payments,1006\1900041430,12-Oct-18,"10,747.51",
LUL NOMINEE SSL LIMITED,SOLUTION RAIL LIMITED,Civil Engineering Construction Works,1031\5109391251,19-Sep-18,"10,745.00",
RAIL FOR LONDON LIMITED,XANTA LIMITED,Professional Engineering Services,1020\5109395833,24-Sep-18,"10,725.00",
LONDON UNDERGROUND LTD,FUSION PEOPLE LIMITED,Agency Staff,1005\5109394480,19-Sep-18,"10,699.84",
RAIL FOR LONDON LIMITED,WABTEC RAIL LIMITED,Management & Support Consultancy,1020\5109399930,10-Oct-18,"10,690.40",
LONDON UNDERGROUND LTD,ABB LTD,Electrical Equipment Maintenance,1005\5109376678,17-Sep-18,"10,657.00",
DOCKLANDS LIGHT RAILWAY,KEOLIS AMEY DOCKLANDS LIMITED,Professional Engineering Services,1012\5109393419,10-Oct-18,"10,559.19",
LUL NOMINEE SSL LIMITED,HOPPECKE INDUSTRIAL BATTERIES,Stock Issues - Repairables,1031\5109401513,03-Oct-18,"10,548.72",
LONDON UNDERGROUND LTD,RULLION ENGINEERING LTD,Agency Staff,1005\5109382838,24-Sep-18,"10,545.70",
LUL NOMINEE BCV LIMITED,MJ QUINN INTEGRATED SERVICES LTD,Lift Maintenance,1033\5109399426,03-Oct-18,"10,543.77",
LONDON UNDERGROUND LTD,WYG MANAGEMENT SERVICES,Planning & Development Consultancy,1005\5109392004,10-Oct-18,"10,500.00",
DOCKLANDS LIGHT RAILWAY,ESG RAIL,Professional Engineering Services,1012\5109405244,10-Oct-18,"10,500.00",
TRANSPORT TRADING LTD,TURNER & TOWNSEND LLP,Planning & Development Consultancy,1004\5109400144,08-Oct-18,"10,495.00",
TFL CORPORATE,GLEEDS COST MANAGEMENT LIMITED,Contractors,1001\5109387865,26-Sep-18,"10,494.60",
TRANSPORT TRADING LTD,INITIATE CONSULTING LTD,Management & Support Consultancy,1004\5109396984,10-Oct-18,"10,477.50",
TUBE LINES LTD,PANDROL UK LTD,Tools,799015,21-Sep-18,"10,460.00",
TRANSPORT TRADING LTD,NCC GROUP SECURITY SERVICES LTD,IT Consultancy,1004\5109395883,01-Oct-18,"10,450.00",
LUL NOMINEE BCV LIMITED,BARWIT CONTROL SYSTEMS LTD,Escalators,1033\5109399267,11-Oct-18,"10,450.00",
TFL CORPORATE,GLOBAL SWITCH LIMITED,Manage IT Services,1001\5109392866,19-Sep-18,"10,400.40",
DOCKLANDS LIGHT RAILWAY,VANDA ENGINEERING LIMITED,Professional Engineering Services,1012\5109368593,17-Sep-18,"10,400.00",
TFL CORPORATE,EOS ENVIRONMENT LTD,Planning & Development Consultancy,1001\5109405730,11-Oct-18,"10,376.57",
LONDON UNDERGROUND LTD,WRAGGE & CO,Legal Fees,1005\5109392843,26-Sep-18,"10,365.60",
LUL NOMINEE BCV LIMITED,MACHINE TOOL ENGINEERS,Stock of Lifts and Escalators,1033\5109408492,12-Oct-18,"10,356.00",
LUL NOMINEE BCV LIMITED,TYLER BROTHERS (S-IN-A) LTD,Stock of Lifts and Escalators,1033\5109395999,24-Sep-18,"10,351.84",
TFL CORPORATE,OTM (UK) LTD,Production Artwork And Design For Marketing,1001\5109376991,26-Sep-18,"10,350.00",
TUBE LINES LTD,MODULAR DISTRIBUTION SYSTEMS,Subcontractor Labour,799389,19-Sep-18,"10,346.16",
TFL CORPORATE,MVA CONSULTANCY GROUP,Planning & Development Consultancy,1001\5109388075,26-Sep-18,"10,337.60",
PUBLIC CARRIAGE OFFICE,NSL LIMITED,PCO Outsourced Services,1003\5109396999,26-Sep-18,"10,335.00",
LONDON UNDERGROUND LTD,CPC PROJECT SERVICES LLP,MR Construction Costs,1005\5109405731,09-Oct-18,"10,334.00",
TUBE LINES LTD,BIFFA WASTE SERVICES LIMITED,Litter/Refuse Removal,799616,26-Sep-18,"10,331.02",
LUL NOMINEE SSL LIMITED,SCHUNK UK LTD,Fleet,1031\5109380680,20-Sep-18,"10,321.73",
TRANSPORT TRADING LTD,LONDON BOROUGH OF HAMM& FULHAM,Rates,1004\1901661459,27-Sep-18,"10,311.00",
SURFACE TRANSPORT CORP,TELENT TECHNOLOGY SERVICES LTD,Traffic Signals,1002\5109401283,10-Oct-18,"10,296.66",
LUL NOMINEE BCV LIMITED,RENOLD GEARS,Lift Maintenance,1033\5109396384,24-Sep-18,"10,282.00",
DOCKLANDS LIGHT RAILWAY,ARDENT MANAGEMENT LTD,Property Management Fees,1012\5109380600,10-Oct-18,"10,252.28",
LONDON UNDERGROUND LTD,BRITISH STEEL LIMITED,Civil Engineering Construction Works,1005\5109393384,08-Oct-18,"10,240.00",
TFL CORPORATE,GLOBAL SWITCH LIMITED,Manage IT Services,1001\5109392861,08-Oct-18,"10,238.40",
SURFACE TRANSPORT CORP,DRAKEWELL COMPUTERS,Manage IT Services,1002\5109399245,01-Oct-18,"10,224.99",
LUL NOMINEE SSL LIMITED,DMC RAIL LTD,MR Construction Costs,1031\5109390809,17-Sep-18,"10,221.72",
TRANSPORT TRADING LTD,LONDON BOROUGH OF SOUTHWARK,Rates,1004\1901661428,27-Sep-18,"10,208.00",
TRANSPORT TRADING LTD,LONDON BOROUGH OF HACKNEY,Commercial Property Rent,1004\1901661193,26-Sep-18,"10,162.50",
TFL CORPORATE,EQUINIX (UK) LTD,Manage IT Services,1001\5109356325,01-Oct-18,"10,161.60",
TFL CORPORATE,EQUINIX (UK) LTD,Manage IT Services,1001\5109374613,01-Oct-18,"10,161.60",
TFL CORPORATE,EQUINIX (UK) LTD,Manage IT Services,1001\5109391265,01-Oct-18,"10,161.60",
TFL CORPORATE,GUTTERIDGE HASKINS & DAVEY LIMITED,Professional Engineering Services,1001\5109384107,24-Sep-18,"10,144.25",
LT MUSEUM TRADING LTD,GINGERSNAP,Purchase of Souvenirs for Resale,1024\1900015932,20-Sep-18,"10,137.60",
TUBE LINES LTD,BRUSH TRACTION LTD,Materials,798314,21-Sep-18,"10,135.50",
TFL CORPORATE,JACOBS U.K LIMITED,Contractors,1001\5109390719,03-Oct-18,"10,116.00",
LUL NOMINEE BCV LIMITED,ICON POLYMER LTD,Fleet,1033\5109379627,17-Sep-18,"10,115.00",
LUL NOMINEE BCV LIMITED,ICON POLYMER LTD,Fleet,1033\5109391004,08-Oct-18,"10,115.00",
LUL NOMINEE SSL LIMITED,BERENDSEN,Protective Clothing,1031\5109395028,10-Oct-18,"10,094.18",
TFL CORPORATE,HYDER CONSULTING (UK) LTD,Contractors,1001\5109387115,26-Sep-18,"10,091.25",
LONDON UNDERGROUND LTD,CITYLINK TELECOMMUNICATIONS LTD,Connect PFI Service Costs,1005\5109400923,01-Oct-18,"10,082.00",
TFL CORPORATE,MEDIAEDGE,Radio TV Press Poster Cinema Airtime And Space,1001\5109391841,26-Sep-18,"10,081.78",
SURFACE TRANSPORT CORP,TELENT TECHNOLOGY SERVICES LTD,Traffic Signals,1002\5109399369,08-Oct-18,"10,075.76",
DIAL A RIDE,INTERSERVE,Security Services (Guards),1010\5109407059,10-Oct-18,"10,066.00",
TFL CORPORATE,A J WELLS & SONS LTD,Non Permanent Signage And Way Finding,1001\5109403125,03-Oct-18,"10,037.00",
TFL CORPORATE,FREEDOM CHARTERS LTD,Contractors,1001\5109399339,04-Oct-18,"10,000.00",
LONDON UNDERGROUND LTD,MOTT MACDONALD LIMITED,Property Management Fees,1005\5109396595,26-Sep-18,"10,000.00",
LONDON UNDERGROUND LTD,HENNESSYGODDEN,Property Management Fees,1005\5109398634,26-Sep-18,"10,000.00",
LONDON UNDERGROUND LTD,TATEHINDLE LTD,Property Management Fees,1005\5109398639,26-Sep-18,"10,000.00",
TFL CORPORATE,PRICEWATERHOUSECOOPERS LLP,Software Maintenance,1001\5109382911,19-Sep-18,"10,000.00",
TFL CORPORATE,CASA CUNHA LTD,Art And Poetry Installations And Programmes,1001\5109408692,12-Oct-18,"10,000.00",
TFL CORPORATE,DAWLEYS,Data Hosting Email Design And Transmission Inc SMS,1001\5109399846,04-Oct-18,"10,000.00",
TRANSPORT TRADING LTD,MA JONES LTD,Management & Support Consultancy,1004\5109403385,08-Oct-18,"10,000.00",
TFL CORPORATE,STEER,Planning & Development Consultancy,1001\5109380561,19-Sep-18,"10,000.00",
TFL CORPORATE,GARDINER & THEOBALD LLP,Planning & Development Consultancy,1001\5109387852,03-Oct-18,"10,000.00",
LONDON UNDERGROUND LTD,ALLFORD HALL MONAGHAN MORRIS LTD,Planning & Development Consultancy,1005\5109392169,26-Sep-18,"10,000.00",
TFL CORPORATE,EUROPEAN DYNAMICS U.K. LTD,IT Consultancy,1001\5109407458,10-Oct-18,"10,000.00",
TRANSPORT TRADING LTD,UNIVERSAL,Office Accommodation Moves,1004\5109403549,04-Oct-18,"9,987.50",
TFL CORPORATE,ATKINS LIMITED,Planning & Development Consultancy,1001\5109399301,10-Oct-18,"9,985.00",
TFL CORPORATE,SIMOCO EMEA LTD,Radio Systems Equipment & Maintenance,1001\5109395363,24-Sep-18,"9,980.00",
LUL NOMINEE BCV LIMITED,RJC (UK) LTD,Escalators,1033\5109398701,01-Oct-18,"9,979.03",
DOCKLANDS LIGHT RAILWAY,XANTA LIMITED,Professional Engineering Services,1012\5109394976,21-Sep-18,"9,975.00",
TRANSPORT TRADING LTD,THAMES RIVER SERVICES,Gross Sales Clearance,1004\800037363,24-Sep-18,"9,966.00",
TFL CORPORATE,ADFIELD HARVEY LTD,Management & Support Consultancy,1001\5109408166,12-Oct-18,"9,949.40",
RAIL FOR LONDON LIMITED,UK POWER NETWORKS LTD,Management & Support Consultancy,1020\5109390529,03-Oct-18,"9,947.86",
LONDON UNDERGROUND LTD,STS STORAGE SYSTEMS LTD,Maintenance Materials,1005\5109403045,03-Oct-18,"9,925.00",
TRANSPORT TRADING LTD,UNIVERSAL,Office Accommodation Moves,1004\5109396939,25-Sep-18,"9,922.50",
TFL CORPORATE,HARKNESSKENNETT,Management & Support Consultancy,1001\5109399372,28-Sep-18,"9,915.00",
TRANSPORT TRADING LTD,VOGUE CONTRACTORS LTD,Building Maintenance & Repairs,1004\5109405192,08-Oct-18,"9,895.00",
LONDON UNDERGROUND LTD,STS STORAGE SYSTEMS LTD,Maintenance Materials,1005\5109403080,03-Oct-18,"9,890.00",
TFL CORPORATE,WSP UK LTD,Professional Engineering Services,1001\5109390246,03-Oct-18,"9,885.00",
TUBE LINES LTD,FUSION PEOPLE LIMITED,Agency Staff,800732,10-Oct-18,"9,861.58",
LUL NOMINEE SSL LIMITED,MBM CONSULTING LTD,MR Construction Costs,1031\5109395374,26-Sep-18,"9,860.00",
DOCKLANDS LIGHT RAILWAY,G4S CASH SOLUTIONS (UK) LTD,Cash Handling & Processing,1012\5109316935,01-Oct-18,"9,854.94",
DOCKLANDS LIGHT RAILWAY,G4S CASH SOLUTIONS (UK) LTD,Cash Handling & Processing,1012\5109373526,17-Sep-18,"9,854.94",
DOCKLANDS LIGHT RAILWAY,G4S CASH SOLUTIONS (UK) LTD,Cash Handling & Processing,1012\5109374417,17-Sep-18,"9,854.94",
DOCKLANDS LIGHT RAILWAY,G4S CASH SOLUTIONS (UK) LTD,Cash Handling & Processing,1012\5109388948,26-Sep-18,"9,854.94",
SURFACE TRANSPORT CORP,TRAFFIC DATA CENTRE,Engineering Feasibility Studies,1002\5109387404,18-Sep-18,"9,850.00",
LUL NOMINEE SSL LIMITED,RJC (UK) LTD,Escalators,1031\5109388369,26-Sep-18,"9,827.00",
DOCKLANDS LIGHT RAILWAY,ATKINS LIMITED,Professional Engineering Services,1012\5109392643,17-Sep-18,"9,823.00",
LONDON UNDERGROUND LTD,WSP UK LTD,Contractors,1005\5109391901,08-Oct-18,"9,817.50",
TRANSPORT TRADING LTD,SHREKS ADVENTURE,Ticket & Pass Production,1004\1901661100,17-Sep-18,"9,808.33",
SURFACE TRANSPORT CORP,CSTS LTD,Road Maintenance,1002\5109393226,26-Sep-18,"9,781.14",
LONDON UNDERGROUND LTD,HAWKINS BROWN,Planning & Development Consultancy,1005\5109402775,03-Oct-18,"9,776.47",
SURFACE TRANSPORT CORP,CSTS LTD,Traffic Signals,1002\5109386685,26-Sep-18,"9,764.79",
LUL NOMINEE SSL LIMITED,VVB ENGINEERING LTD,Civil Engineering Construction Works,1031\5109392786,24-Sep-18,"9,757.09",
LONDON UNDERGROUND LTD,JNG CONSTRUCTION & ENGINEERING,MR Construction Costs,1005\5109396455,26-Sep-18,"9,750.31",
TFL CORPORATE,GARDINER & THEOBALD LLP,Management & Support Consultancy,1001\5109391085,08-Oct-18,"9,750.00",
TUBE LINES LTD,GK ENGINEERING SERVICES,Materials,798951,28-Sep-18,"9,750.00",
TFL CORPORATE,HYDER CONSULTING (UK) LTD,Contractors,1001\5109387059,26-Sep-18,"9,735.00",
LONDON UNDERGROUND LTD,CLANCY DOCWRA LTD,Civil Engineering Construction Works,1005\5109386876,19-Sep-18,"9,731.55",
LUL NOMINEE BCV LIMITED,LANES GROUP PLC,Building Maintenance & Repairs,1033\5109374655,01-Oct-18,"9,730.00",
LUL NOMINEE BCV LIMITED,DIRECT TRACK SOLUTIONS LTD,Track General Maintenance,1033\5109395868,24-Sep-18,"9,723.60",
RAIL FOR LONDON LIMITED,KALLIDUS LIMITED,Staff Training,1020\5109398682,01-Oct-18,"9,713.11",
LONDON UNDERGROUND LTD,BROOKVEX TECH SERVICES LTD,Building Maintenance & Repairs,1005\5109393463,02-Oct-18,"9,700.15",
LONDON UNDERGROUND LTD,ALLELYS HEAVY HAULAGE LTD,Maintenance Materials,1005\5109377538,19-Sep-18,"9,700.00",
DOCKLANDS LIGHT RAILWAY,ARDENT MANAGEMENT LTD,Property Management Fees,1012\5109380509,10-Oct-18,"9,692.75",
LUL NOMINEE SSL LIMITED,CITYLINK TELECOMMUNICATIONS LTD,PFI Service Costs - Power,1031\5109400917,10-Oct-18,"9,691.50",
LUL NOMINEE SSL LIMITED,VVB ENGINEERING LTD,Civil Engineering Construction Works,1031\5109392781,17-Sep-18,"9,690.01",
DOCKLANDS LIGHT RAILWAY,ATKINS LIMITED,Professional Engineering Services,1012\5109390800,03-Oct-18,"9,685.13",
LONDON BUS SERVICES LTD,TRUEFORM ENGINEERING LTD,Maintenance of  Bus Stops,1006\5109398226,25-Sep-18,"9,684.87",
DOCKLANDS LIGHT RAILWAY,XANTA LIMITED,Professional Engineering Services,1012\5109394975,24-Sep-18,"9,675.00",
LUL NOMINEE SSL LIMITED,GPX ENGINEERING LTD,Track General Maintenance,1031\5109405785,10-Oct-18,"9,673.92",
LONDON BUS SERVICES LTD,TRAPEZE PTI LTD,Computer Consumables,1006\5109384509,01-Oct-18,"9,646.42",
TFL CORPORATE,AECOM LTD,Planning & Development Consultancy,1001\5109396106,10-Oct-18,"9,633.11",
LUL NOMINEE SSL LIMITED,TOTAL RAIL SOLUTIONS,Civil Engineering Construction Works,1031\5109393457,01-Oct-18,"9,625.00",
TRANSPORT TRADING LTD,STRAIGHTFORWARD COMMUNICATIONS LTD,Photography And Video Design And Production,1004\5109394685,01-Oct-18,"9,600.00",
TRANSPORT TRADING LTD,CRYOTRON CONSULTANCY LTD,Water,1004\5109398841,04-Oct-18,"9,597.88",
TFL CORPORATE,EC HARRIS UK LTD,Contractors,1001\5109387069,26-Sep-18,"9,585.00",
LUL NOMINEE SSL LIMITED,DK REWIND LTD,Fleet,1031\5109407344,10-Oct-18,"9,560.00",
LUL NOMINEE SSL LIMITED,IPS COMMUNICATIONS LTD,Civil Engineering Construction Works,1031\5109405403,12-Oct-18,"9,552.75",
LUL NOMINEE BCV LIMITED,WABTEC RAIL LIMITED,Fleet,1033\5109400178,10-Oct-18,"9,549.60",
TRANSPORT TRADING LTD,CITY OF WESTMINSTER,Rates,1004\1901661469,27-Sep-18,"9,541.00",
LONDON UNDERGROUND LTD,CPC PROJECT SERVICES LLP,MR Construction Costs,1005\5109405753,09-Oct-18,"9,535.50",
TUBE LINES LTD,BRUSH TRACTION LTD,Materials,798316,21-Sep-18,"9,523.40",
TUBE LINES LTD,FASTENER DIRECT LTD,Materials,800577,05-Oct-18,"9,507.55",
TUBE LINES LTD,BRUSH TRACTION LTD,Materials,798131,19-Sep-18,"9,457.44",
LUL NOMINEE SSL LIMITED,TOTAL RAIL SOLUTIONS,Civil Engineering Construction Works,1031\5109393535,01-Oct-18,"9,455.00",
TUBE LINES LTD,BRUSH TRACTION LTD,Materials,798325,19-Sep-18,"9,452.53",
LONDON UNDERGROUND LTD,INITIATE CONSULTING LTD,Professional Engineering Services,1005\5109396982,10-Oct-18,"9,450.00",
TRANSPORT TRADING LTD,BPA CORPORATE FACILITATION LTD,Staff Training,1004\5109391772,20-Sep-18,"9,444.00",
